Workbook

Sheet INDEX
A1: INDEX
A2: Model Specs
A3: 1. Information Sheet
A4: 2. Current Tariff Schedule
A5: 3. Continuity Schedule
A6: 4. Billing Det. for Def-Var
A7: 5. Allocating Def-Var Balances
A8: 6. GA Calculation
A9: 6A. GA Allocation_Class A
A10: 6B. GA Allocation_new Class B
A11: 7. CBR Allocation
A12: 7A. CBR Allocation_Class A
A13: 7B. CBR Allocation_new Class B
A14: 8. Calculation of Def-Var RR
A15: 9. STS-Tax Change
A16: 10. Shared Tax - RR
A17: 11. RTSR - Current Rates
A18: 12. RTSR-UTRs & Sub-Tx
A19: 13. RTSR-Historic Wholesale
A20: 14. RTSR-Current Wholesale
A21: 15. RTSR-Forecast Wholesale
A22: 16. RTSR-Rates to Forecast
A23: 17. Rev2Cost-GDPIPI
A24: 18. Regulatory Charges
A25: 19. Additional Rates
A26: 20. Final Tariff Schedule
A27: 21. Bill Impacts
A28: RATES
A29: BoD Reporting
A30: 10th Percentile

Sheet Model Specs
A1: Back to Index | K1: Lists:
B2: Model Specifications
K3: Yes
B4: Utility | C4: Alectra - Enersource | K4: No
B6: Applying for Rates Effective | C6: 2018-01-01 | K6: kWh
K7: kW
K8: kVA
B9: Line Loss Factor | C9: 1.036
K10: Alectra Utilities - PowerStream Rate Zone
K11: Alectra Utilities - Enersource Rate Zone
K12: Alectra Utilities - Horizon Utilites Rate Zone
K13: Alectra Utilities - Brampton Rate Zone
C14: Rate Classes (select from the List)
B15: =IFERROR(VLOOKUP(C15,$K$16:$L$29,2,FALSE),"") -> RES | C15: RESIDENTIAL SERVICE CLASSIFICATION
B16: =IFERROR(VLOOKUP(C16,$K$16:$L$29,2,FALSE),"") -> GSL | C16: GENERAL SERVICE LESS THAN 50 kW SERVICE CLASSIFICATION | K16: RESIDENTIAL SERVICE CLASSIFICATION | L16: RES
B17: GS50_499 | C17: GENERAL SERVICE 50 to 499 kW SERVICE CLASSIFICATION | K17: GENERAL SERVICE LESS THAN 50 kW SERVICE CLASSIFICATION | L17: GSL
B18: GS500 | C18: GENERAL SERVICE 500 to 4,999 kW SERVICE CLASSIFICATION | K18: GENERAL SERVICE 50 to 499 kW SERVICE CLASSIFICATION | L18: GS50_499
B19: LU | C19: LARGE USE SERVICE CLASSIFICATION | K19: GENERAL SERVICE 50 to 699 KW SERVICE CLASSIFICATION | L19: GS50_699
B20: SB | C20: STANDBY POWER SERVICE CLASSIFICATION | K20: GENERAL SERVICE 500 to 4,999 kW SERVICE CLASSIFICATION | L20: GS500
B21: USL | C21: UNMETERED SCATTERED LOAD SERVICE CLASSIFICATION | K21: GENERAL SERVICE 700 to 4,999 KW SERVICE CLASSIFICATION | L21: GS700
B22: SL | C22: STREET LIGHTING SERVICE CLASSIFICATION | K22: LARGE USE SERVICE CLASSIFICATION | L22: LU
K23: UNMETERED SCATTERED LOAD SERVICE CLASSIFICATION | L23: USL
K24: STREET LIGHTING SERVICE CLASSIFICATION | L24: SL
K25: STANDBY POWER SERVICE CLASSIFICATION | L25: SB
K26: SENTINEL LIGHTING SERVICE CLASSIFICATION | L26: SEN
K27: EMBEDDED DISTRIBUTOR SERVICE CLASSIFICATION | L27: EMB
K28: DISTRIBUTED GENERATION [DGEN] SERVICE CLASSIFICATION | L28: DG
K29: ENERGY FROM WASTE SERVICE CLASSIFICATION | L29: WST
B34: Have one or more Class A customers | C34: Yes

Sheet 1. Information Sheet
A1: Back to Index | V1: a
B2: INCENTIVE REGULATION MODEL FOR 2018 FILERS
N12: Version | O12: 1
F14: Utility Name | G14: Alectra Utilities - Enersource Rate Zone
F16: Service Territory
F18: Assigned EB Number | G18: EB-2017-0024
F20: Name of Contact and Title | G20: Indy J. Butany-DeSouza, Vice-President, Regulatory Affairs
F22: Phone Number | G22: 905-821-5727
F24: Email Address | G24: indy.butany@alectrautilities.com
F26: We are applying for rates effective | G26: 2018-01-01
F28: Rate-Setting Method | G28: Price Cap IR
B30: Please indicate in which Rate Year the Group 1 accounts were last cleared1 | G30: 2017
B32: Please indicate the last Cost of Service Re-Basing Year | G32: 2013
C35: Notes
D37: Pale gray cells represent input cells.
D39: Pale blue cells represent drop-down lists.
D41: White cells contain fixed values, automatically generated values or formulae.
B44: Note: 1. Rate year of application

Sheet 2. Current Tariff Schedule
A1: Back to Index
B2: INCENTIVE REGULATION MODEL FOR 2018 FILERS
B11: Enersource Hydro Mississauga Inc.
B12: TARIFF OF RATES AND CHARGES
B13: Effective and Implementation Date January 1, 2017
B14: This schedule supersedes and replaces all previously
B15: approved schedules of Rates, Charges and Loss Factors
B16: EB-2016-0002
B17: RESIDENTIAL SERVICE CLASSIFICATION
B18: This classification refers to all residential services including, without limitation, single family or single unit dwellings, multi-family dwellings, row-type dwellings and subdivision developments. Energy is supplied in single phase, 3-wire, or three phase, 4-wire, having a nominal voltage of 120/240 Volts. There shall be only one delivery point to a dwelling. Further servicing details are available in the distributor’s Conditions of Service.
B20: APPLICATION
B22: The application of these rates and charges shall be in accordance with the Licence of the Distributor and any Code or Order of the Ontario Energy Board, and amendments thereto as approved by the Ontario Energy Board, which may be applicable to the administration of this schedule.
B24: No rates and charges for the distribution of electricity and charges to meet the costs of any work or service done or furnished for the purpose of the distribution of electricity shall be made except as permitted by this schedule, unless required by the Distributor’s Licence or a Code or Order of the Ontario Energy Board, and amendments thereto as approved by the Ontario Energy Board, or as specified herein.
B26: Unless specifically noted, this schedule does not contain any charges for the electricity commodity, be it under the Regulated Price Plan, a contract with a retailer or the wholesale market price, as applicable. In addition, the charges in the MONTHLY RATES AND CHARGES – Regulatory Component of this schedule do not apply to a customer that is an embedded wholesale market participant.
B28: It should be noted that this schedule does not list any charges, assessments or credits that are required by law to be invoiced by a distributor and that are not subject to Ontario Energy Board approval, such as the Debt Retirement Charge, the Global Adjustment and the HST.
B30: MONTHLY RATES AND CHARGES – Delivery Component
A32: R_F | B32: Service Charge | C32: $ | D32: 19.11
B33: Rate Rider for Smart Metering Entity Charge – effective until October 31, 2018 | C33: $ | D33: 0.79
A34: R_ICMF | B34: Rate Rider for Recovery of Incremental Capital Module Costs – in effect until the effective date of the next cost of service-based rate order | C34: $ | D34: 0.6
A35: R_V | B35: Distribution Volumetric Rate | C35: $/kWh | D35: 0.0069
A36: R_GA16 | B36: Rate Rider for Disposition of Global Adjustment Account (2018) - effective until December 31, 2017 Applicable only for Non-RPP Customers | C36: $/kWh | D36: 0.0013
A37: R_DVA16 | B37: Rate Rider for Disposition of Deferral/Variance Accounts (2018) - effective until December 31, 2017 | C37: $/kWh | D37: -0.002
A38: R_LV | B38: Low Voltage Service Rate | C38: $/kWh | D38: 0.0002
A39: R_CBR16 | B39: Rate Rider for Disposition of Wholesale Market Service Sub-account CBR Class B (2017) - effective until December 31, 2017 | C39: $/kWh | D39: 0.0003
A40: R_TN | B40: Retail Transmission Rate – Network Service Rate | C40: $/kWh | D40: 0.0076
A41: R_TC | B41: Retail Transmission Rate – Line and Transformation Connection Service Rate | C41: $/kWh | D41: 0.0063
B43: MONTHLY RATES AND CHARGES – Regulatory Component
B45: Wholesale Market Service Rate (WMS) - Not including CBR | C45: $/kWh | D45: 0.0032
B46: Capacity Based Recovery (CBR) - Applicable for Class B Customers | C46: $/kWh | D46: 0.0004
B47: Rural or Remote Electricity Rate Protection Charge (RRRP) | C47: $/kWh | D47: 0.0021
B48: Ontario Electricity Support Program Charge (OESP) | C48: $/kWh | D48: 0
B49: Standard Supply Service – Administrative Charge (if applicable) | C49: $ | D49: 0.25
B50: ONTARIO ELECTRICITY SUPPORT PROGRAM RECIPIENTS
B51: In addition to the charges specified on page 1 of this tariff of rates and charges, the following credits are to be applied to eligible residential customers.
B53: APPLICATION
B55: The application of the credits is in accordance with the Distribution System Code (Section 9) and subsection 79.2 of the Ontario Energy Board Act, 1998.
B56: The application of these credits shall be in accordance with the Licence of the Distributor and any Code or Order of the Ontario Energy Board, and amendments thereto as approved by the Ontario Energy Board, which may be applicable to the administration of this schedule.
B57: In this class: “Aboriginal person” includes a person who is a First Nations person, a Métis person or an Inuit person; “account-holder” means a consumer who has an account with a distributor that falls within a residential-rate classification as specified in a rate order made by the Ontario Energy Board under section 78 of the Act, and who lives at the service address to which the account relates for at least six months in a year; “electricity-intensive medical device” means an oxygen concentrator, a mechanical ventilator, or such other device as may be specified by the Ontario Energy Board; “household” means the account-holder and any other people living at the accountholder’s service address for at least six months in a year, including people other than the account-holder’s spouse, children or other relatives; “household income” means the combined annual after-tax income of all members of a household aged 16 or over;
B59: MONTHLY RATES AND CHARGES
B62: Class A
B63: (a) account-holders with a household income of $28,000 or less living in a household of one or two persons; (b) account-holders with a household income of between $28,001 and $39,000 living in a household of three persons; (c) account-holders with a household income of between $39,001 and $48,000 living in a household of five persons; and (d) account-holders with a household income of between $48,001 and $52,000 living in a household of seven or more persons; but does not include account-holders in Class E.
B64: OESP Credit | C64: $ | D64: -30
B66: Class B
B67: (a) account-holders with a household income of $28,000 or less living in a household of three persons; (b) account-holders with a household income of between $28,001 and $39,000 living in a household of four persons; (c) account-holders with a household income of between $39,001 and $48,000 living in a household of six persons; but does not include account-holders in Class F.
B68: OESP Credit | C68: $ | D68: -34
B70: Class C
B71: (a) account-holders with a household income of $28,000 or less living in a household of four persons; (b) account-holders with a household income of between $28,001 and $39,000 living in a household of five persons; (c) account-holders with a household income of between $39,001 and $48,000 living in a household of seven or more persons; but does not include account-holders in Class G.
B72: OESP Credit | C72: $ | D72: -38
B74: Class D
B75: (a) account-holders with a household income of $28,000 or less living in a household of five persons; and (b) account-holders with a household income of between $28,001 and $39,000 living in a household of six persons; but does not include account-holders in Class H.
B76: OESP Credit | C76: $ | D76: -42
B78: Class E
B79: Class E comprises account-holders with a household income and household size described under Class A who also meet any of the following conditions: (a) the dwelling to which the account relates is heated primarily by electricity; (b) the account-holder or any member of the account-holder’s household is an Aboriginal person; or (c) the account-holder or any member of the account-holder’s household regularly uses, for medical purposes, an electricity-intensive medical device at the dwelling to which the account relates.
B80: OESP Credit | C80: $ | D80: -45
B82: Class F
B83: (a) account-holders with a household income of $28,000 or less living in a household of six or more persons; (b) account-holders with a household income of between $28,001 and $39,000 living in a household of seven or more persons; or (c) account-holders with a household income and household size described under Class B who also meet any of the following conditions:
B84: i. the dwelling to which the account relates is heated primarily by electricity; ii. the account-holder or any member of the account-holder’s household is an Aboriginal person; or iii. the account-holder or any member of the account-holder’s household regularly uses, for medical purposes, an electricity-intensive medical device at the dwelling to which the account relates
B85: OESP Credit | C85: $ | D85: -50
B87: Class G
B88: Class G comprises account-holders with a household income and household size described under Class C who also meet any of the following conditions: (a) the dwelling to which the account relates is heated primarily by electricity; (b) the account-holder or any member of the account-holder’s household is an Aboriginal person; or (c) the account-holder or any member of the account-holder’s household regularly uses, for medical purposes, an electricity-intensive medical device at the dwelling to which the account relates.
B89: OESP Credit | C89: $ | D89: -55
B91: Class H
B92: Class H comprises account-holders with a household income and household size described under Class D who also meet any of the following conditions: (a) the dwelling to which the account relates is heated primarily by electricity; (b) the account-holder or any member of the account-holder’s household is an Aboriginal person ; or (c) the account-holder or any member of the account-holder’s household regularly uses, for medical purposes, an electricity-intensive medical device at the dwelling to which the account relates.
B93: OESP Credit | C93: $ | D93: -60
B95: Class I
B96: Class I comprises account-holders with a household income and household size described under paragraphs (a) or (b) of Class F who also meet any of the following conditions: (a) the dwelling to which the account relates is heated primarily by electricity; (b) the account-holder or any member of the account-holder’s household is an Aboriginal person; or (c) the account-holder or any member of the account-holder’s household regularly uses, for medical purposes, an electricity-intensive medical device at the dwelling to which the account relates.
B97: OESP Credit | C97: $ | D97: -75
B98: GENERAL SERVICE LESS THAN 50 KW SERVICE CLASSIFICATION
B99: This classification refers to a non-residential account whose monthly average peak demand is less than, or is forecast to be less than, 50 kW. Further servicing details are available in the distributor’s Conditions of Service.
B101: APPLICATION
B103: The application of these rates and charges shall be in accordance with the Licence of the Distributor and any Code or Order of the Ontario Energy Board, and amendments thereto as approved by the Ontario Energy Board, which may be applicable to the administration of this schedule.
B105: No rates and charges for the distribution of electricity and charges to meet the costs of any work or service done or furnished for the purpose of the distribution of electricity shall be made except as permitted by this schedule, unless required by the Distributor’s Licence or a Code or Order of the Ontario Energy Board, and amendments thereto as approved by the Ontario Energy Board, or as specified herein.
B107: Unless specifically noted, this schedule does not contain any charges for the electricity commodity, be it under the Regulated Price Plan, a contract with a retailer or the wholesale market price, as applicable. In addition, the charges in the MONTHLY RATES AND CHARGES – Regulatory Component of this schedule do not apply to a customer that is an embedded wholesale market participant.
B109: It should be noted that this schedule does not list any charges, assessments or credits that are required by law to be invoiced by a distributor and that are not subject to Ontario Energy Board approval, such as the Debt Retirement Charge, the Global Adjustment and the HST.
B111: MONTHLY RATES AND CHARGES – Delivery Component
A113: GSL_F | B113: Service Charge | C113: $ | D113: 43.6
B114: Rate Rider for Smart Metering Entity Charge – effective until October 31, 2018 | C114: $ | D114: 0.79
A115: GSL_ICMF | B115: Rate Rider for Recovery of Incremental Capital Module Costs – in effect until the effective date of the next cost of service-based rate order | C115: $ | D115: 1.1
A116: GSL_V | B116: Distribution Volumetric Rate | C116: $/kWh | D116: 0.0127
A117: GSL_GA16 | B117: Rate Rider for Disposition of Global Adjustment Account (2018) - effective until December 31, 2017 Applicable only for Non-RPP Customers | C117: $/kWh | D117: 0.0013
A118: GSL_DVA16 | B118: Rate Rider for Disposition of Deferral/Variance Accounts (2018) - effective until December 31, 2017 | C118: $/kWh | D118: -0.002
A119: GSL_LV | B119: Low Voltage Service Rate | C119: $/kWh | D119: 0.0002
A120: GSL_ICMV | B120: Rate Rider for Recovery of Incremental Capital Module Costs – in effect until the effective date of the next cost of service-based rate order | C120: $/kWh | D120: 0.0003
A121: GSL_CBR16 | B121: Rate Rider for Disposition of Wholesale Market Service Sub-account CBR Class B (2017) - effective until December 31, 2017 | C121: $/kWh | D121: 0.0003
A122: GSL_TN | B122: Retail Transmission Rate – Network Service Rate | C122: $/kWh | D122: 0.0071
A123: GSL_TC | B123: Retail Transmission Rate – Line and Transformation Connection Service Rate | C123: $/kWh | D123: 0.0057
B125: MONTHLY RATES AND CHARGES – Regulatory Component
B127: Wholesale Market Service Rate (WMS) - Not including CBR | C127: $/kWh | D127: 0.0032
B128: Capacity Based Recovery (CBR) - Applicable for Class B Customers | C128: $/kWh | D128: 0.0004
B129: Rural or Remote Electricity Rate Protection Charge (RRRP) | C129: $/kWh | D129: 0.0021
B130: Ontario Electricity Support Program Charge (OESP) | C130: $/kWh | D130: 0
B131: Standard Supply Service – Administrative Charge (if applicable) | C131: $ | D131: 0.25
B132: GENERAL SERVICE 50 TO 499 KW SERVICE CLASSIFICATION
B133: This classification refers to a non-residential account whose monthly average peak demand is equal to or greater than, or is forecast to be equal to or greater than, 50 kW but less than 500 kW. Further servicing details are available in the distributor’s Conditions of Service.
B135: APPLICATION
B137: The application of these rates and charges shall be in accordance with the Licence of the Distributor and any Code or Order of the Ontario Energy Board, and amendments thereto as approved by the Ontario Energy Board, which may be applicable to the administration of this schedule.
B139: No rates and charges for the distribution of electricity and charges to meet the costs of any work or service done or furnished for the purpose of the distribution of electricity shall be made except as permitted by this schedule, unless required by the Distributor’s Licence or a Code or Order of the Ontario Energy Board, and amendments thereto as approved by the Ontario Energy Board, or as specified herein.
B141: Unless specifically noted, this schedule does not contain any charges for the electricity commodity, be it under the Regulated Price Plan, a contract with a retailer or the wholesale market price, as applicable. In addition, the charges in the MONTHLY RATES AND CHARGES – Regulatory Component of this schedule do not apply to a customer that is an embedded wholesale market participant.
B143: It should be noted that this schedule does not list any charges, assessments or credits that are required by law to be invoiced by a distributor and that are not subject to Ontario Energy Board approval, such as the Debt Retirement Charge, the Global Adjustment and the HST.
B144: Billing demands are established at the greater of 100% of the kW, or 90% of the kVA amounts.
B146: MONTHLY RATES AND CHARGES – Delivery Component
A148: GS50_499_F | B148: Service Charge | C148: $ | D148: 76.79
A149: GS50_499_ICMF | B149: Rate Rider for Recovery of Incremental Capital Module Costs – in effect until the effective date of the next cost of service-based rate order | C149: $ | D149: 1.93
A150: GS50_499_V | B150: Distribution Volumetric Rate | C150: $/kW | D150: 4.6213
A151: GS50_499_GA16 | B151: Rate Rider for Disposition of Global Adjustment Account (2018) - effective until December 31, 2017 Applicable only for Non-RPP Customers | C151: $/kWh | D151: 0.0013
A152: GS50_499_DVA_nonWMP | B152: Rate Rider for Disposition of Deferral/Variance Accounts (2018) - effective until December 31, 2017 Applicable only for Non-Wholesale Market Participants | C152: $/kW | D152: -0.7227
A153: GS50_499_DVA16 | B153: Rate Rider for Disposition of Deferral/Variance Accounts (2018) - effective until December 31, 2017 | C153: $/kW | D153: 0.0291
A154: GS50_499_LV | B154: Low Voltage Service Rate | C154: $/kW | D154: 0.0802
A155: GS50_499_ICMV | B155: Rate Rider for Recovery of Incremental Capital Module Costs – in effect until the effective date of the next cost of service-based rate order | C155: $/kW | D155: 0.1163
A156: GS50_499_CBR16 | B156: Rate Rider for Disposition of Wholesale Market Service Sub-account CBR Class B (2017) - effective until 31/12/2017 Applicable only for Non-Wholesale Market Participants | C156: $/kW | D156: 0.0994
A157: GS50_499_TN | B157: Retail Transmission Rate – Network Service Rate | C157: $/kW | D157: 2.7431
A158: GS50_499_TC | B158: Retail Transmission Rate – Line and Transformation Connection Service Rate | C158: $/kW | D158: 2.2543
B160: MONTHLY RATES AND CHARGES – Regulatory Component
B162: Wholesale Market Service Rate (WMS) - Not including CBR | C162: $/kWh | D162: 0.0032
B163: Capacity Based Recovery (CBR) - Applicable for Class B Customers | C163: $/kWh | D163: 0.0004
B164: Rural or Remote Electricity Rate Protection Charge (RRRP) | C164: $/kWh | D164: 0.0021
B165: Ontario Electricity Support Program Charge (OESP) | C165: $/kWh | D165: 0
B166: Standard Supply Service – Administrative Charge (if applicable) | C166: $ | D166: 0.25
B167: GENERAL SERVICE 500 TO 4,999 KW SERVICE CLASSIFICATION
B168: This classification refers to a non-residential account whose monthly average peak demand is equal to or greater than, or is forecast to be equal to or greater than, 500 kW but less than 5,000 kW. Further servicing details are available in the distributor’s Conditions of Service. Class A and Class B consumers are defined in accordance with O.Reg. 429/04.
B170: APPLICATION
B172: The application of these rates and charges shall be in accordance with the Licence of the Distributor and any Code or Order of the Ontario Energy Board, and amendments thereto as approved by the Ontario Energy Board, which may be applicable to the administration of this schedule.
B174: No rates and charges for the distribution of electricity and charges to meet the costs of any work or service done or furnished for the purpose of the distribution of electricity shall be made except as permitted by this schedule, unless required by the Distributor’s Licence or a Code or Order of the Ontario Energy Board, and amendments thereto as approved by the Ontario Energy Board, or as specified herein.
B176: Unless specifically noted, this schedule does not contain any charges for the electricity commodity, be it under the Regulated Price Plan, a contract with a retailer or the wholesale market price, as applicable. In addition, the charges in the MONTHLY RATES AND CHARGES – Regulatory Component of this schedule do not apply to a customer that is an embedded wholesale market participant.
B178: It should be noted that this schedule does not list any charges, assessments or credits that are required by law to be invoiced by a distributor and that are not subject to Ontario Energy Board approval, such as the Debt Retirement Charge, the Global Adjustment and the HST.
B179: Billing demands are established at the greater of 100% of the kW, or 90% of the kVA amounts.
B181: MONTHLY RATES AND CHARGES – Delivery Component
A183: GS500_F | B183: Service Charge | C183: $ | D183: 1748.68
A184: GS500_ICMF | B184: Rate Rider for Recovery of Incremental Capital Module Costs – in effect until the effective date of the next cost of service-based rate order | C184: $ | D184: 44
A185: GS500_V | B185: Distribution Volumetric Rate | C185: $/kW | D185: 2.378
A186: GS500_GA16 | B186: Rate Rider for Disposition of Global Adjustment Account (2018) - effective until December 31, 2017 Applicable only for Non-RPP Customers | C186: $/kWh | D186: 0.0013
A187: GS500_DVA_nonWMP | B187: Rate Rider for Disposition of Deferral/Variance Accounts (2018) - effective until December 31, 2017 Applicable only for Non-Wholesale Market Participants | C187: $/kW | D187: -0.9028
A188: GS500_DVA16 | B188: Rate Rider for Disposition of Deferral/Variance Accounts (2018) - effective until December 31, 2017 | C188: $/kW | D188: 0.0365
A189: GS500_LV | B189: Low Voltage Service Rate | C189: $/kW | D189: 0.0784
A190: GS500_ICMV | B190: Rate Rider for Recovery of Incremental Capital Module Costs – in effect until the effective date of the next cost of service-based rate order | C190: $/kW | D190: 0.0598
A191: GS500_CBR16 | B191: Rate Rider for Disposition of Wholesale Market Service Sub-account CBR Class B (2017) - effective until 31/12/2017 Applicable only for Non-Wholesale Market Participants and Class B Customers | C191: $/kW | D191: 0.1226
A192: GS500_TN | B192: Retail Transmission Rate – Network Service Rate | C192: $/kW | D192: 2.6539
A193: GS500_TC | B193: Retail Transmission Rate – Line and Transformation Connection Service Rate | C193: $/kW | D193: 2.2059
B195: MONTHLY RATES AND CHARGES – Regulatory Component
B197: Wholesale Market Service Rate (WMS) - Not including CBR | C197: $/kWh | D197: 0.0032
B198: Capacity Based Recovery (CBR) - Applicable for Class B Customers | C198: $/kWh | D198: 0.0004
B199: Rural or Remote Electricity Rate Protection Charge (RRRP) | C199: $/kWh | D199: 0.0021
B200: Ontario Electricity Support Program Charge (OESP) | C200: $/kWh | D200: 0
B201: Standard Supply Service – Administrative Charge (if applicable) | C201: $ | D201: 0.25
B202: LARGE USE SERVICE CLASSIFICATION
B203: This classification refers to an account whose monthly average peak demand is equal to or greater than, or is forecast to be equal to or greater than, 5,000 kW. Further servicing details are available in the distributor’s Conditions of Service. Class A and Class B consumers are defined in accordance with O.Reg. 429/04.
B205: APPLICATION
B207: The application of these rates and charges shall be in accordance with the Licence of the Distributor and any Code or Order of the Ontario Energy Board, and amendments thereto as approved by the Ontario Energy Board, which may be applicable to the administration of this schedule.
B209: No rates and charges for the distribution of electricity and charges to meet the costs of any work or service done or furnished for the purpose of the distribution of electricity shall be made except as permitted by this schedule, unless required by the Distributor’s Licence or a Code or Order of the Ontario Energy Board, and amendments thereto as approved by the Ontario Energy Board, or as specified herein.
B211: Unless specifically noted, this schedule does not contain any charges for the electricity commodity, be it under the Regulated Price Plan, a contract with a retailer or the wholesale market price, as applicable. In addition, the charges in the MONTHLY RATES AND CHARGES – Regulatory Component of this schedule do not apply to a customer that is an embedded wholesale market participant.
B213: It should be noted that this schedule does not list any charges, assessments or credits that are required by law to be invoiced by a distributor and that are not subject to Ontario Energy Board approval, such as the Debt Retirement Charge, the Global Adjustment and the HST.
B214: Billing demands are established at the greater of 100% of the kW, or 90% of the kVA amounts.
B216: MONTHLY RATES AND CHARGES – Delivery Component
A218: LU_F | B218: Service Charge | C218: $ | D218: 13787.64
A219: LU_ICMF | B219: Rate Rider for Recovery of Incremental Capital Module Costs – in effect until the effective date of the next cost of service-based rate order | C219: $ | D219: 346.9
A220: LU_V | B220: Distribution Volumetric Rate | C220: $/kW | D220: 2.9516
A221: LU_GA16 | B221: Rate Rider for Disposition of Global Adjustment Account (2018) - effective until December 31, 2017 Applicable only for Non-RPP Customers | C221: $/kWh | D221: 0.0013
A222: LU_DVA16 | B222: Rate Rider for Disposition of Deferral/Variance Accounts (2018) - effective until December 31, 2017 | C222: $/kW | D222: -1.0616
A223: LU_LV | B223: Low Voltage Service Rate | C223: $/kW | D223: 0.0838
A224: LU_ICMV | B224: Rate Rider for Recovery of Incremental Capital Module Costs – in effect until the effective date of the next cost of service-based rate order | C224: $/kW | D224: 0.0743
A225: LU_CBR16 | B225: Rate Rider for Disposition of Wholesale Market Service Sub-account CBR Class B (2017) - effective until 31/12/2017 Applicable only for Class B Customers | C225: $/kW | D225: 0.1451
A226: LU_TN | B226: Retail Transmission Rate – Network Service Rate – Interval Metered | C226: $/kW | D226: 2.832
A227: LU_TC | B227: Retail Transmission Rate – Line and Transformation Connection Service Rate – Interval Metered | C227: $/kW | D227: 2.356
B229: MONTHLY RATES AND CHARGES – Regulatory Component
B231: Wholesale Market Service Rate (WMS) - Not including CBR | C231: $/kWh | D231: 0.0032
B232: Capacity Based Recovery (CBR) - Applicable for Class B Customers | C232: $/kWh | D232: 0.0004
B233: Rural or Remote Electricity Rate Protection Charge (RRRP) | C233: $/kWh | D233: 0.0021
B234: Ontario Electricity Support Program Charge (OESP) | C234: $/kWh | D234: 0
B235: Standard Supply Service – Administrative Charge (if applicable) | C235: $ | D235: 0.25
B236: STANDBY DISTRIBUTION SERVICE CLASSIFICATION
B237: This classification refers to an account that requires Enersource Hydro Mississauga to provide distribution service on a standby basis as a back-up supply to an on-site generator. Further servicing details are available in the distributor’s Conditions of Service.
B239: APPLICATION
B241: The application of these rates and charges shall be in accordance with the Licence of the Distributor and any Code or Order of the Ontario Energy Board, and amendments thereto as approved by the Ontario Energy Board, which may be applicable to the administration of this schedule.
B243: No rates and charges for the distribution of electricity and charges to meet the costs of any work or service done or furnished for the purpose of the distribution of electricity shall be made except as permitted by this schedule, unless required by the Distributor’s Licence or a Code or Order of the Ontario Energy Board, and amendments thereto as approved by the Ontario Energy Board, or as specified herein.
B245: Unless specifically noted, this schedule does not contain any charges for the electricity commodity, be it under the Regulated Price Plan, a contract with a retailer or the wholesale market price, as applicable.
B247: It should be noted that this schedule does not list any charges, assessments or credits that are required by law to be invoiced by a distributor and that are not subject to Ontario Energy Board approval, such as the Debt Retirement Charge, the Global Adjustment and the HST.
B249: MONTHLY RATES AND CHARGES – Delivery Component
B251: A Standby Service Charge will be applied for a month where standby power is not provided. The applicable rate is the approved Distribution Volumetric Rate of the applicable service class and is applied to gross metered demand or contracted amount, whichever is greater. A monthly administration charge of $200, for simple metering arrangements, or $500, for complex metering arrangements, will also be applied.
B252: UNMETERED SCATTERED LOAD SERVICE CLASSIFICATION
B253: This classification applies to an account taking electricity at 750 volts or less whose average monthly maximum demand is less than, or is forecast to be less than, 50 kW and the consumption is unmetered. The amount of electricity consumed by unmetered connections will be based on detailed information/documentation provided by the device’s manufacturer and will be agreed to by Enersource Hydro Mississauga Inc. and the customer and may be subject to periodic monitoring of actual consumption. Eligible unmetered loads include cable TV power packs, bus shelters, telephone booths, traffic lights, railway crossings. Further servicing details are available in the distributor’s Conditions of Service.
B255: APPLICATION
B257: The application of these rates and charges shall be in accordance with the Licence of the Distributor and any Code or Order of the Ontario Energy Board, and amendments thereto as approved by the Ontario Energy Board, which may be applicable to the administration of this schedule.
B259: No rates and charges for the distribution of electricity and charges to meet the costs of any work or service done or furnished for the purpose of the distribution of electricity shall be made except as permitted by this schedule, unless required by the Distributor’s Licence or a Code or Order of the Ontario Energy Board, and amendments thereto as approved by the Ontario Energy Board, or as specified herein.
B261: Unless specifically noted, this schedule does not contain any charges for the electricity commodity, be it under the Regulated Price Plan, a contract with a retailer or the wholesale market price, as applicable. In addition, the charges in the MONTHLY RATES AND CHARGES – Regulatory Component of this schedule do not apply to a customer that is an embedded wholesale market participant.
B263: It should be noted that this schedule does not list any charges, assessments or credits that are required by law to be invoiced by a distributor and that are not subject to Ontario Energy Board approval, such as the Debt Retirement Charge, the Global Adjustment and the HST.
B265: MONTHLY RATES AND CHARGES – Delivery Component
A267: USL_F | B267: Service Charge (per connection) | C267: $ | D267: 9
A268: USL_ICMF | B268: Rate Rider for Recovery of Incremental Capital Module Costs – in effect until the effective date of the next cost of service-based rate order | C268: $ | D268: 0.23
A269: USL_V | B269: Distribution Volumetric Rate | C269: $/kWh | D269: 0.0164
A270: USL_GA16 | B270: Rate Rider for Disposition of Global Adjustment Account (2018) - effective until December 31, 2017 Applicable only for Non-RPP Customers | C270: $/kWh | D270: 0.0013
A271: USL_DVA16 | B271: Rate Rider for Disposition of Deferral/Variance Accounts (2018) - effective until December 31, 2017 | C271: $/kWh | D271: -0.002
A272: USL_LV | B272: Low Voltage Service Rate | C272: $/kWh | D272: 0.0002
A273: USL_ICMV | B273: Rate Rider for Recovery of Incremental Capital Module Costs – in effect until the effective date of the next cost of service-based rate order | C273: $/kWh | D273: 0.0004
A274: USL_CBR16 | B274: Rate Rider for Disposition of Wholesale Market Service Sub-account CBR Class B (2017) - effective until December 31, 2017 | C274: $/kWh | D274: 0.0003
A275: USL_TN | B275: Retail Transmission Rate – Network Service Rate | C275: $/kWh | D275: 0.0071
A276: USL_TC | B276: Retail Transmission Rate – Line and Transformation Connection Service Rate | C276: $/kWh | D276: 0.0057
B278: MONTHLY RATES AND CHARGES – Regulatory Component
B280: Wholesale Market Service Rate (WMS) - Not including CBR | C280: $/kWh | D280: 0.0032
B281: Capacity Based Recovery (CBR) - Applicable for Class B Customers | C281: $/kWh | D281: 0.0004
B282: Rural or Remote Electricity Rate Protection Charge (RRRP) | C282: $/kWh | D282: 0.0021
... 92 more rows

Sheet 3. Continuity Schedule
A1: Back to Index | B1: Back to Index | CK1: FALSE
C2: INCENTIVE REGULATION MODEL FOR 2018 FILERS | CK2: FALSE
CK3: FALSE
CK4: FALSE
CK5: FALSE
CK6: FALSE
CK7: FALSE
CK8: FALSE
CK9: FALSE
CK10: TRUE
CK11: TRUE
C12: Please complete the following continuity schedule for the following Deferral/Variance Accounts. Enter information into green cells only. Column CE shoudl match the latest 2.1.7 RRR filing. When inputting balances in the continuity schedule, Account 1580 RSVA - Wholesale Market Service Charge is to exclude any amounts relating to CBR. The CBR amounts are to be entered separately in the Class A and Class B 1580 sub-accounts. Only Class B amounts are to be disposed. Class A amounts are not to be disposed. If you have received approval to dispose of balances from prior years, the starting point for entries in the schedule below will be the balance sheet date as per your general ledger for which you received approval. For example, if in the 2016 EDR process (CoS or IRM) you received approval for the December 31, 2014 balances, the starting point for your entries below should be the 2013 year. This will allow for the correct starting point for the 2014 opening balance columns for both principal and interest. Please refer to the footnotes for further instructions.
E16: 2010 | O16: 2011 | Y16: 2012 | AI16: 2013 | AS16: 2014 | BC16: 2015 | BM16: 2016 | BW16: 2017 | CA16: Projected Interest on Dec-31-16 Balances | CE16: 2.1.7 RRR
C17: Account Descriptions | D17: Account Number | E17: Opening Principal Amounts as of Jan 1, 2010 | F17: Transactions2 Debit / (Credit) during 2010 | G17: OEB-Approved Disposition during 2010 | H17: Principal Adjustments1 during 2010 | I17: Closing Principal Balance as of Dec 31, 2010 | J17: Opening Interest Amounts as of Jan 1, 2010 | K17: Interest Jan 1 to Dec 31, 2010 | L17: OEB-Approved Disposition during 2010 | M17: Interest Adjustments1 during 2010 | N17: Closing Interest Amounts as of Dec 31, 2010 | O17: Opening Principal Amounts as of Jan 1, 2011 | P17: Transactions2 Debit / (Credit) during 2011 | Q17: OEB-Approved Disposition during 2011 | R17: Principal Adjustments1 during 2011 | S17: Closing Principal Balance as of Dec 31, 2011 | T17: Opening Interest Amounts as of Jan 1, 2011 | U17: Interest Jan 1 to Dec 31, 2011 | V17: OEB-Approved Disposition during 2011 | W17: Interest Adjustments1 during 2011 | X17: Closing Interest Amounts as of Dec 31, 2011 | Y17: Opening Principal Amounts as of Jan 1, 2012 | Z17: Transactions2 Debit / (Credit) during 2012 | AA17: OEB-Approved Disposition during 2012 | AB17: Principal Adjustments1 during 2012 | AC17: Closing Principal Balance as of Dec 31, 2012 | AD17: Opening Interest Amounts as of Jan 1, 2012 | AE17: Interest Jan 1 to Dec 31, 2012 | AF17: OEB-Approved Disposition during 2012 | AG17: Interest Adjustments1 during 2012 | AH17: Closing Interest Amounts as of Dec 31, 2012 | AI17: Opening Principal Amounts as of Jan 1, 2013 | AJ17: Transactions2 Debit / (Credit) during 2013 | AK17: OEB-Approved Disposition during 2013 | AL17: Principal Adjustments1 during 2013 | AM17: Closing Principal Balance as of Dec 31, 2013 | AN17: Opening Interest Amounts as of Jan 1, 2013 | AO17: Interest Jan 1 to Dec 31, 2013 | AP17: OEB-Approved Disposition during 2013 | AQ17: Interest Adjustments1 during 2013 | AR17: Closing Interest Amounts as of Dec 31, 2013 | AS17: Opening Principal Amounts as of Jan 1, 2014 | AT17: Transactions2 Debit / (Credit) during 2014 | AU17: OEB-Approved Disposition during 2014 | AV17: Principal Adjustments1 during 2014 | AW17: Closing Principal Balance as of Dec 31, 2014 | AX17: Opening Interest Amounts as of Jan 1, 2014 | AY17: Interest Jan 1 to Dec 31. 2014 | AZ17: OEB-Approved Disposition during 2014 | BA17: Interest Adjustments1 during 2014 | BB17: Closing Interest Amounts as of Dec 31, 2014 | BC17: Opening Principal Amounts as of Jan 1, 2015 | BD17: Transactions2 Debit / (Credit) during 2015 | BE17: OEB-Approved Disposition during 2015 | BF17: Principal Adjustments1 during 2015 | BG17: Closing Principal Balance as of Dec 31, 15 | BH17: Opening Interest Amounts as of Jan 1, 15 | BI17: Interest Jan 1 to Dec 31, 15 | BJ17: OEB-Approved Disposition during 2015 | BK17: Interest Adjustments1 during 2015 | BL17: Closing Interest Amounts as of Dec 31, 15 | BM17: Opening Principal Amounts as of Jan 1, 2016 | BN17: Transactions2 Debit / (Credit) during 2016 | BO17: OEB-Approved Disposition during 2016 | BP17: Principal Adjustments1 during 2016 | BQ17: Closing Principal Balance as of Dec 31, 16 | BR17: Opening Interest Amounts as of Jan 1, 16 | BS17: Interest Jan 1 to Dec 31, 16 | BT17: OEB-Approved Disposition during 2016 | BU17: Interest Adjustments1 during 2016 | BV17: Closing Interest Amounts as of Dec 31, 16 | BW17: Principal Disposition during 2017 - instructed by OEB | BX17: Interest Disposition during 2017 - instructed by OEB | BY17: Closing Principal Balances as of Dec 31, 2017 Adjusted for Dispositions during 2017 | BZ17: Closing Interest Balances as of Dec 31, 16 Adjusted for Disposition in 2017 | CA17: Projected Interest from Jan 1, 2017 to December 31, 2017 on Dec 31 -16 balance adjusted for disposition on May 1, 2018 | CB17: Projected Interest from January 1, 2018 to April 30, 2018 on Dec 31 -16 balance adjusted for disposition during 2017 3 | CC17: Total Interest | CD17: Total Claim | CE17: As of Dec 31-16 | CF17: Variance RRR vs. 2016 Balance (Principal + Interest)
CD19: Claim before Forecasted Transactions
C20: Group 1 Accounts
C21: LV Variance Account | D21: 1550 | I21: =E21+F21-G21+H21 -> 0 | N21: =J21+K21-L21+M21 -> 0 | O21: =I21 -> 0 | S21: =O21+P21-Q21+SUM(R21:R21) -> 0 | T21: =N21 -> 0 | X21: =T21+U21-V21+W21 -> 0 | AS21: 2495672.18 | AT21: 938909.09 | AU21: 1690690.02 | AW21: =AS21+AT21-AU21+SUM(AV21:AV21) -> 1743891.25 | AX21: 51131.9 | AY21: 20669.6 | AZ21: 41280.14 | BB21: =AX21+AY21-AZ21+BA21 -> 30521.36 | BC21: =AW21 -> 1743891.25 | BD21: 1545686.91 | BG21: =BC21+BD21-BE21+SUM(BF21:BF21) -> 3289578.16 | BH21: =BB21 -> 30521.36 | BI21: 26398.21 | BL21: =BH21+BI21-BJ21+BK21 -> 56919.57 | BM21: =BG21 -> 3289578.16 | BN21: 2290281.55 | BO21: 1743890.16 | BQ21: =BM21+BN21-BO21+SUM(BP21:BP21) -> 3835969.55 | BR21: =BL21 -> 56919.57 | BS21: 33128.83 | BT21: 49705.77 | BV21: =BR21+BS21-BT21+BU21 -> 40342.63 | BW21: 1545688 | BX21: 24215.26 | BY21: =BQ21-BW21 -> 2290281.55 | BZ21: =BV21-BX21 -> 16127.37 | CA21: =(BY21*(1.1%*0.75+1.5%*0.5+1.89%*1/12)) -> 39679.12785 | CC21: =BZ21+CA21+CB21 -> 55806.49785 | CD21: =SUM(BY21:CB21) -> 2346088.048 | CE21: 3876312.18 | CF21: =CE21-SUM(BQ21,BV21) -> 0
C22: Smart Metering Entity Charge Variance Account | D22: 1551 | I22: =E22+F22-G22+H22 -> 0 | N22: =J22+K22-L22+M22 -> 0 | O22: =I22 -> 0 | S22: 0 | T22: 0 | X22: =T22+U22-V22+W22 -> 0 | AS22: -36015.11 | AT22: -33601.45 | AW22: -69616.56 | AX22: -147.98 | AY22: -667.98 | AZ22: 0 | BB22: =AX22+AY22-AZ22+BA22 -> -815.96 | BC22: -69616.56 | BD22: -26931.2 | BG22: -96547.76 | BH22: -815.96 | BI22: -903.34 | BL22: =BH22+BI22-BJ22+BK22 -> -1719.3 | BM22: =BG22 -> -96547.76 | BN22: -33443.76 | BO22: -69616.56 | BQ22: =BM22+BN22-BO22+SUM(BP22:BP22) -> -60374.96 | BR22: -1719.3 | BS22: -621.31 | BT22: -1581.74 | BV22: =BR22+BS22-BT22+BU22 -> -758.87 | BW22: -26931.2 | BX22: -433.8 | BY22: =BQ22-BW22 -> -33443.76 | BZ22: =BV22-BX22 -> -325.07 | CA22: =(BY22*(1.1%*0.75+1.5%*0.5+1.89%*1/12)) -> -579.413142 | CC22: =BZ22+CA22+CB22 -> -904.483142 | CD22: =SUM(BY22:CB22) -> -34348.24314 | CE22: -61133.83 | CF22: =CE22-SUM(BQ22,BV22) -> 0
C23: RSVA - Wholesale Market Service Charge | D23: 1580 | I23: =E23+F23-G23+H23 -> 0 | N23: =J23+K23-L23+M23 -> 0 | O23: =I23 -> 0 | S23: 0 | T23: 0 | X23: =T23+U23-V23+W23 -> 0 | AS23: -14447498.53 | AT23: -1098113.85 | AU23: -9704806 | AW23: -5840806.38 | AX23: -303050.24 | AY23: -35370.7 | AZ23: -236108.65 | BB23: =AX23+AY23-AZ23+BA23 -> -102312.29 | BC23: -5840806.38 | BD23: -15911140.41 | BG23: -21751946.79 | BH23: -102312.29 | BI23: -126678.56 | BL23: =BH23+BI23-BJ23+BK23 -> -228990.85 | BM23: -21751946.79 | BN23: -6868014.85 | BO23: -5840806.06 | BQ23: =BM23+BN23-BO23+SUM(BP23:BP23) -> -22779155.58 | BR23: -228990.85 | BS23: -231088.58 | BT23: -166561.27 | BV23: =BR23+BS23-BT23+BU23 -> -293518.16 | BW23: -15911140.41 | BX23: -237452.12 | BY23: -6868015.17 | BZ23: -56066.04 | CA23: -118988.3628 | CC23: -175054.4028 | CD23: =SUM(BY23:CB23) -> -7043069.573 | CE23: -21606023.68 | CF23: 1466650.06
C24: Variance WMS – Sub-account CBR Class A | D24: 1580 | I24: 0 | N24: 0 | O24: 0 | S24: 0 | T24: 0 | X24: 0 | AS24: 0 | AW24: 0 | AX24: 0 | BB24: 0 | BC24: 0 | BD24: 163061.35 | BG24: =BC24+BD24-BE24+SUM(BF24:BF24) -> 163061.35 | BH24: 0 | BI24: 520.61 | BL24: 520.61 | BM24: 163061.35 | BN24: -163061.35 | BQ24: =BM24+BN24-BO24+SUM(BP24:BP24) -> 0 | BR24: 520.61 | BS24: -520.61 | BV24: 0 | BY24: 0 | BZ24: 0 | CA24: 0 | CC24: 0 | CD24: 0 | CE24: 0 | CF24: 0
C25: Variance WMS – Sub-account CBR Class B | D25: 1580 | I25: 0 | N25: 0 | O25: 0 | S25: 0 | T25: 0 | X25: 0 | AS25: 0 | AW25: 0 | AX25: 0 | BB25: 0 | BC25: 0 | BD25: 1719663.73 | BG25: 1719663.73 | BH25: 0 | BI25: 5728.32 | BL25: 5728.32 | BM25: 1719663.73 | BN25: -275214.3 | BQ25: =BM25+BN25-BO25+SUM(BP25:BP25) -> 1444449.43 | BR25: 5728.32 | BS25: 16472.1 | BV25: 22200.42 | BW25: 1719663.73 | BX25: 24644.62 | BY25: -275214.3 | BZ25: -2444.2 | CA25: -4768.087748 | CC25: -7212.287748 | CD25: -282426.5877 | CE25: 1466649.85 | CF25: 0
C26: RSVA - Retail Transmission Network Charge | D26: 1584 | I26: 0 | N26: 0 | O26: 0 | S26: 0 | T26: 0 | X26: 0 | AS26: 5108991.56 | AT26: 2422342.59 | AU26: 1692260 | AW26: 5839074.15 | AX26: 48925.1 | AY26: 71423.27 | AZ26: 27552.22 | BB26: 92796.15 | BC26: 5839074.15 | BD26: -1557809.05 | BG26: 4281265.1 | BH26: 92796.15 | BI26: 61504.02 | BL26: 154300.17 | BM26: 4281265.1 | BN26: -568200.56 | BO26: 5839073.98 | BQ26: -2126009.44 | BR26: 154300.17 | BS26: -7166.82 | BT26: 157025.1 | BV26: -9891.75 | BW26: -1557808.05 | BX26: -19861.82855 | BY26: -568201.39 | BZ26: 9970.07855 | CA26: -9844.089082 | CC26: 125.9894682 | CD26: -568075.4005 | CE26: -2135901.23 | CF26: -0.03999999911
C27: RSVA - Retail Transmission Connection Charge | D27: 1586 | I27: 0 | N27: 0 | O27: 0 | S27: 0 | T27: 0 | X27: 0 | AS27: 1710896.75 | AT27: 2297463.04 | AU27: 1028939 | AW27: 2979420.79 | AX27: 14045.73 | AY27: 28329.71 | AZ27: 10695.4 | BB27: 31680.04 | BC27: 2979420.79 | BD27: 593534.94 | BG27: 3572955.73 | BH27: 31680.04 | BI27: 38091.94 | BL27: 69771.98 | BM27: 3572955.73 | BN27: 333841.02 | BO27: 2979420.24 | BQ27: 927376.51 | BR27: 69771.98 | BS27: 15523.13 | BT27: 64454.46 | BV27: 20840.65 | BW27: 593534.94 | BX27: 11846.41434 | BY27: 333841.57 | BZ27: 8994.23566 | CA27: 5783.8052 | CC27: 14778.04086 | CD27: 348619.6109 | CE27: 948217.4 | CF27: 0.2400000002
C28: RSVA - Power | D28: 1588 | I28: 0 | N28: 0 | O28: 0 | S28: 0 | T28: 0 | X28: 0 | AS28: -1143566.33 | AT28: -490296.98 | AU28: 716650 | AW28: -2350513.31 | AX28: -36783.46 | AY28: 2506.51 | AZ28: -7074.25 | BB28: -27202.7 | BC28: -2350513.31 | BD28: 1362015.65 | BG28: -988497.66 | BH28: -27202.7 | BI28: -33475.46 | BL28: -60678.16 | BM28: -988497.66 | BN28: -2851171.44 | BO28: -2350512.34 | BP28: 2500544.264 | BQ28: 1011387.504 | BR28: -60678.16 | BS28: -6630.11 | BT28: -53059.35 | BV28: -14248.92 | BW28: 1362015.65 | BX28: 7363.36215 | BY28: -350628.1461 | BZ28: -21612.28215 | CA28: -6074.632631 | CC28: -27686.91478 | CD28: -378315.0608 | CE28: -1503405.71 | CF28: -2500544.294
C29: RSVA - Global Adjustment | D29: 1589 | I29: 0 | N29: 0 | O29: 0 | S29: 0 | T29: 0 | X29: 0 | AS29: 389458.43 | AT29: 7999425.66 | AU29: -2771959 | AW29: 11160843.09 | AX29: -20702.9 | AY29: 59398.74 | AZ29: -101964.8 | BB29: 140660.64 | BC29: 11160843.09 | BD29: 4890995.04 | BG29: 16051838.13 | BH29: 140660.64 | BI29: 139600.71 | BL29: 280261.35 | BM29: 16051838.13 | BN29: -1033668.01 | BO29: 11160843.08 | BP29: =-2514038+157273+1530001 -> -826764 | BQ29: 3030563.04 | BR29: 280261.35 | BS29: 96150.64 | BT29: 263430.19 | BV29: 112981.8 | BW29: 4890994.04 | BX29: 70633.10444 | BY29: -1860431 | BZ29: 42348.69556 | CA29: -32231.96708 | CC29: 10116.72848 | CD29: -1850314.272 | CE29: 3970308.11 | CF29: 826763.27
C30: Disposition and Recovery/Refund of Regulatory Balances (2009)4 | D30: 1595 | I30: 0 | N30: 0 | O30: 0 | S30: 0 | T30: 0 | X30: 0 | AS30: -2807103.74 | AU30: -2805249 | AV30: 1855 | AW30: 0.2599999998 | AX30: -192718.47 | AZ30: -192712 | BA30: 6 | BB30: -0.4700000001 | BC30: 0.2599999998 | BG30: 0.2599999998 | BH30: -0.4700000001 | BL30: -0.4700000001 | BM30: 0.2599999998 | BQ30: 0.2599999998 | BR30: -0.4700000001 | BV30: -0.4700000001 | BY30: 0.2599999998 | BZ30: -0.4700000001 | CA30: 0.004504499996 | CC30: -0.4654955001 | CD30: -0.2054955003 | CE30: 0 | CF30: 0.2100000003
C31: Disposition and Recovery/Refund of Regulatory Balances (2010)4 | D31: 1595 | I31: 0 | N31: 0 | O31: 0 | S31: 0 | T31: 0 | X31: 0 | AS31: -3681076.97 | AT31: 1560914.15 | AW31: -2120162.82 | AX31: -653022.51 | AY31: 3820.14 | BB31: -649202.37 | BC31: -2120162.82 | BD31: 961.36 | BG31: -2119201.46 | BH31: -649202.37 | BI31: -25253.91 | BL31: -674456.28 | BM31: -2119201.46 | BN31: -961.36 | BO31: -2120162.82 | BQ31: -2.793967724e-09 | BR31: -674456.28 | BS31: 1932.12 | BT31: -672524.16 | BV31: -1.164153218e-10 | BY31: -2.793967724e-09 | BZ31: -1.164153218e-10 | CA31: -4.840549082e-11 | CC31: -1.648208126e-10 | CD31: -2.958788536e-09 | CE31: 0 | CF31: 2.910383046e-09
C32: Disposition and Recovery/Refund of Regulatory Balances (2011)4 | D32: 1595 | I32: 0 | N32: 0 | O32: 0 | S32: =O32+P32-Q32+SUM(R32:R32) -> 0 | T32: 0 | X32: 0 | AS32: 2675 | AT32: 378.82 | AW32: 3053.82 | AX32: -5660 | AY32: 23.5 | BB32: -5636.5 | BC32: 3053.82 | BD32: 45.52 | BG32: 3099.34 | BH32: -5636.5 | BI32: 25.49 | BL32: -5611.01 | BM32: 3099.34 | BN32: -45.52 | BO32: 3053.63 | BQ32: 0.19 | BR32: -5611.01 | BS32: 8.6 | BT32: -5602.41 | BV32: 0 | BY32: 0.19 | BZ32: 0 | CA32: 0.00329175 | CC32: 0.00329175 | CD32: 0.19329175 | CE32: 0 | CF32: -0.19
C33: Disposition and Recovery/Refund of Regulatory Balances (2012)4 | D33: 1595 | I33: 0 | N33: 0 | O33: 0 | S33: 0 | T33: 0 | X33: 0 | AS33: 0 | AT33: 9885176.98 | AU33: 10153475 | AW33: -268298.02 | AX33: 0 | AY33: 383549.67 | AZ33: 458332.08 | BB33: -74782.41 | BC33: -268298.02 | BD33: -5335.64 | BG33: -273633.66 | BH33: -74782.41 | BI33: -2969.19 | BL33: -77751.6 | BM33: -273633.66 | BN33: 5335.64 | BO33: -268298.02 | BQ33: 4.656612873e-10 | BR33: -77751.6 | BS33: 17.91 | BT33: -77733.69 | BV33: 2.910383046e-11 | BY33: 4.656612873e-10 | BZ33: 2.910383046e-11 | CA33: 8.067581803e-12 | CC33: 3.717141226e-11 | CD33: 5.028326996e-10 | CE33: 0 | CF33: -4.947651178e-10
C34: Disposition and Recovery/Refund of Regulatory Balances (2013)4 | D34: 1595 | I34: 0 | N34: 0 | O34: 0 | S34: 0 | T34: 0 | X34: 0 | AS34: 0 | AW34: 0 | AX34: 0 | BB34: 0 | BC34: 0 | BG34: 0 | BH34: 0 | BL34: 0 | BM34: 0 | BQ34: 0 | BR34: 0 | BV34: 0 | BY34: 0 | BZ34: 0 | CA34: 0 | CC34: 0 | CD34: 0 | CE34: 0 | CF34: 0
C35: Disposition and Recovery/Refund of Regulatory Balances (2014)4 | D35: 1595 | I35: 0 | N35: 0 | O35: 0 | S35: 0 | T35: 0 | X35: 0 | AS35: 0 | AW35: 0 | AX35: 0 | BB35: 0 | BC35: 0 | BG35: 0 | BH35: 0 | BL35: 0 | BM35: 0 | BN35: -11165511 | BO35: -11106926.08 | BQ35: -58584.92 | BR35: 0 | BS35: 494808.82 | BT35: 441505.89 | BV35: 53302.93 | BY35: -58584.92 | BZ35: 53302.93 | CA35: -1014.983739 | CC35: =BZ35+CA35+CB35 -> 52287.94626 | CD35: =SUM(BY35:CB35) -> -6296.973739 | CE35: -5281.99 | CF35: -6.730260793e-11
C36: Disposition and Recovery/Refund of Regulatory Balances (2015)4 | D36: 1595 | I36: 0 | N36: 0 | O36: 0 | S36: 0 | T36: 0 | X36: 0 | AS36: 0 | AW36: 0 | AX36: 0 | BB36: 0 | BC36: 0 | BG36: 0 | BH36: 0 | BL36: 0 | BM36: 0 | BQ36: 0 | BR36: 0 | BV36: 0 | BY36: 0 | BZ36: 0 | CC36: 0 | CD36: 0 | CE36: 0 | CF36: 0
C37: Disposition and Recovery/Refund of Regulatory Balances (2016)4 Not to be disposed of unless rate rider has expired and balance has been audited | D37: 1595 | I37: 0 | N37: 0 | O37: 0 | S37: 0 | T37: 0 | X37: 0 | AS37: 0 | AW37: 0 | AX37: 0 | BB37: 0 | BC37: 0 | BG37: 0 | BH37: 0 | BL37: 0 | BM37: 0 | BQ37: 0 | BR37: 0 | BV37: 0 | BY37: 0 | BZ37: 0 | CC37: 0 | CD37: 0 | CE37: 0 | CF37: 0
C39: =C29 -> RSVA - Global Adjustment | D39: 1589 | E39: =E29 -> 0 | F39: 0 | G39: 0 | H39: 0 | I39: 0 | J39: 0 | K39: 0 | L39: 0 | M39: 0 | N39: 0 | O39: 0 | P39: 0 | Q39: 0 | R39: 0 | S39: 0 | T39: 0 | U39: 0 | V39: 0 | W39: 0 | X39: 0 | AS39: =AS29 -> 389458.43 | AT39: 7999425.66 | AU39: -2771959 | AV39: 0 | AW39: 11160843.09 | AX39: -20702.9 | AY39: 59398.74 | AZ39: -101964.8 | BA39: 0 | BB39: 140660.64 | BC39: 11160843.09 | BD39: 4890995.04 | BE39: 0 | BF39: 0 | BG39: 16051838.13 | BH39: 140660.64 | BI39: 139600.71 | BJ39: 0 | BK39: 0 | BL39: 280261.35 | BM39: 16051838.13 | BN39: -1033668.01 | BO39: 11160843.08 | BP39: -826764 | BQ39: =BQ29 -> 3030563.04 | BR39: 280261.35 | BS39: 96150.64 | BT39: 263430.19 | BU39: 0 | BV39: 112981.8 | BW39: 4890994.04 | BX39: 70633.10444 | BY39: -1860431 | BZ39: 42348.69556 | CA39: =CA29 -> -32231.96708 | CB39: =CB29 -> 0 | CC39: =CC29 -> 10116.72848 | CD39: =CD29 -> -1850314.272 | CE39: =CE29 -> 3970308.11 | CF39: =CE39-SUM(BQ39,BV39) -> 826763.27
C40: Total Group 1 Balance excluding Account 1589 - Global Adjustment | E40: =SUM(E21:E37)-E29 -> 0 | F40: =SUM(F21:F37)-F29 -> 0 | G40: 0 | H40: 0 | I40: 0 | J40: 0 | K40: 0 | L40: 0 | M40: 0 | N40: 0 | O40: 0 | P40: 0 | Q40: 0 | R40: 0 | S40: 0 | T40: 0 | U40: 0 | V40: 0 | W40: 0 | X40: 0 | AS40: =SUM(AS21:AS37)-AS29 -> -12797025.19 | AT40: 15483172.39 | AU40: 2771959.02 | AV40: 1855 | AW40: -83956.82 | AX40: -1077279.93 | AY40: 474283.72 | AZ40: 101964.94 | BA40: 6 | BB40: -704955.15 | BC40: -83956.82 | BD40: -12116246.84 | BE40: 0 | BF40: 0 | BG40: -12200203.66 | BH40: -704955.15 | BI40: -57011.87 | BJ40: 0 | BK40: 0 | BL40: -761967.02 | BM40: -12200203.66 | BN40: =SUM(BN21:BN37)-BN29 -> -19296165.93 | BO40: -11190883.87 | BP40: 2500544.264 | BQ40: -17804941.46 | BR40: =SUM(BR21:BR37)-BR29 -> -761967.02 | BS40: 315864.08 | BT40: -264371.4 | BU40: 0 | BV40: -181731.54 | BW40: -12274977.34 | BX40: -189678.0921 | BY40: -5529964.116 | BZ40: 7946.55206 | CA40: -95806.62831 | CB40: 0 | CC40: -87860.07625 | CD40: -5617824.192 | CE40: =SUM(CE21:CE37)-CE29-CE24-CE25 -> -20487216.86 | CF40: =CE40-SUM(BQ40,BV40) -> -2500543.864
C41: Total Group 1 Balance | E41: =SUM(E39,E40) -> 0 | F41: =SUM(F39,F40) -> 0 | G41: 0 | H41: 0 | I41: 0 | J41: 0 | K41: 0 | L41: 0 | M41: 0 | N41: 0 | O41: 0 | P41: =SUM(P39,P40) -> 0 | Q41: =SUM(Q39,Q40) -> 0 | R41: 0 | S41: 0 | T41: 0 | U41: 0 | V41: 0 | W41: 0 | X41: 0 | AS41: =SUM(AS39,AS40) -> -12407566.76 | AT41: 23482598.05 | AU41: 0.01999999955 | AV41: 1855 | AW41: 11076886.27 | AX41: -1097982.83 | AY41: 533682.46 | AZ41: 0.14 | BA41: 6 | BB41: -564294.51 | BC41: 11076886.27 | BD41: -7225251.8 | BE41: 0 | BF41: 0 | BG41: 3851634.47 | BH41: -564294.51 | BI41: 82588.84 | BJ41: 0 | BK41: 0 | BL41: -481705.67 | BM41: 3851634.47 | BN41: -20329833.94 | BO41: -30040.79 | BP41: 1673780.264 | BQ41: -14774378.42 | BR41: -481705.67 | BS41: 412014.72 | BT41: -941.21 | BU41: 0 | BV41: -68749.74 | BW41: -7383983.3 | BX41: -119044.9876 | BY41: -7390395.116 | BZ41: 50295.24762 | CA41: -128038.5954 | CB41: 0 | CC41: -77743.34777 | CD41: =SUM(CD39,CD40) -> -7468138.464 | CE41: =SUM(CE39,CE40) -> -16516908.75 | CF41: =CE41-SUM(BQ41,BV41) -> -1673780.594
A43: 29 | C43: LRAM Variance Account (only input amounts if applying for disposition of this account) | D43: 1568 | S43: =O43+P43-Q43+SUM(R43:R43) -> 0 | X43: =T43+U43-V43+W43 -> 0 | AS43: 61418.66 | AT43: 12856.94 | AW43: =AS43+AT43-AU43+SUM(AV43:AV43) -> 74275.6 | AX43: 5868.05 | AY43: 688.53 | BB43: =AX43+AY43-AZ43+BA43 -> 6556.58 | BC43: =AW43 -> 74275.6 | BD43: =2209737.02 -> 2209737.02 | BG43: =BC43+BD43-BE43+SUM(BF43:BF43) -> 2284012.62 | BH43: =BB43 -> 6556.58 | BI43: =63436.96 -> 63436.96 | BL43: =BH43+BI43-BJ43+BK43 -> 69993.54 | BM43: =BG43 -> 2284012.62 | BN43: =1131354.02 -> 1131354.02 | BQ43: =BM43+BN43-BO43+SUM(BP43:BP43) -> 3415366.64 | BR43: =BL43 -> 69993.54 | BS43: =29554.8 -> 29554.8 | BV43: =BR43+BS43-BT43+BU43 -> 99548.34 | BY43: =BQ43-BW43 -> 3415366.64 | BZ43: =BV43-BX43 -> 99548.34 | CA43: =(BY43*(1.1%*0.75+1.5%*0.5+1.89%*1/12)) -> 59171.22704 | CC43: =BZ43+CA43+CB43 -> 158719.567 | CD43: =SUM(BY43:CB43) -> 3574086.207 | CE43: 3514914.98 | CF43: =CE43-SUM(BQ43,BV43) -> 0
C45: Total including Account 1568 | E45: =SUM(E41,E43) -> 0 | F45: =SUM(F41,F43) -> 0 | G45: 0 | H45: 0 | I45: 0 | J45: 0 | K45: 0 | L45: 0 | M45: 0 | N45: 0 | O45: 0 | P45: 0 | Q45: 0 | R45: 0 | S45: 0 | T45: 0 | U45: 0 | V45: 0 | W45: 0 | X45: 0 | AS45: =SUM(AS41,AS43) -> -12346148.1 | AT45: 23495454.99 | AU45: 0.01999999955 | AV45: 1855 | AW45: 11151161.87 | AX45: -1092114.78 | AY45: 534370.99 | AZ45: 0.14 | BA45: 6 | BB45: -557737.93 | BC45: 11151161.87 | BD45: -5015514.78 | BE45: 0 | BF45: 0 | BG45: 6135647.09 | BH45: -557737.93 | BI45: 146025.8 | BJ45: 0 | BK45: 0 | BL45: -411712.13 | BM45: 6135647.09 | BN45: -19198479.92 | BO45: -30040.79 | BP45: 1673780.264 | BQ45: -11359011.78 | BR45: -411712.13 | BS45: 441569.52 | BT45: -941.21 | BU45: 0 | BV45: 30798.6 | BW45: -7383983.3 | BX45: -119044.9876 | BY45: -3975028.476 | BZ45: 149843.5876 | CA45: -68867.36835 | CB45: =SUM(CB41,CB43) -> 0 | CC45: =SUM(CC41,CC43) -> 80976.21927 | CD45: =SUM(CD41,CD43) -> -3894052.257 | CE45: =SUM(CE41,CE43) -> -13001993.77 | CF45: =SUM(CF41,CF43) -> -1673780.594
CD47: =+CD41 -> -7468138.464
C48: For all OEB-Approved dispositions, please ensure that the disposition amount has the same sign (e.g: debit balances are to have a positive figure and credit balance are to have a negative figure) as per the related OEB decision. | CD48: =+'7B. CBR Allocation_new Class B'!D27 -> -1686.606812
CD49: =+'6B. GA Allocation_new Class B'!D27 -> -18755.61441
CD50: =+CD47-CD48-CD49 -> -7447696.243
B51: 1 | C51: Please provide explanations for the nature of the adjustments. If the adjustment relates to previously OEB-Approved disposed balances, please provide amounts for adjustments and include supporting documentations.
B52: 2 | C52: For RSVA accounts only, report the net variance to the account during the year. For all other accounts, record the transactions during the year.
B53: 3 | C53: If the LDC’s rate year begins on January 1, 2017, the projected interest is recorded from January 1, 2016 to December 31, 2016 on the December 31, 2015 balances adjusted for the disposed balances approved by the OEB in the 2016 rate decision. If the LDC’s rate year begins on May 1, 2017, the projected interest is recorded from January 1, 2016 to April 30, 2017 on the December 31, 2015 balances adjusted for the disposed interest balances approved by the OEB in the 2016 rate decision.
B54: 4 | C54: Include Account 1595 as part of Group 1 accounts (lines 30-36) for review and disposition if the recovery (or refund) period has been completed. If the recovery (or refund) period has not been completed, do not include the respective balance in Account 1595 for disposition at this time.

Sheet 4. Billing Det. for Def-Var
A1: Back to Index | K1: Yes | T1: =IF(D18="YES", "YES", "NO") -> NO
B2: INCENTIVE REGULATION MODEL FOR 2018 FILERS
B13: Information from the most recent RRR (2016 for 2018 IRM)
L14: Approved Recoveries (class allocation %)
D15: Total Metered kWh | E15: Total Metered kW | F15: Metered kWh for Non-RPP Customers | G15: Metered kW for Non-RPP Customers | H15: Metered kWh for Wholesale Market Participants (WMP) | I15: Metered kW for Wholesale Market Participants (WMP) | J15: Total Metered kWh less WMP consumption (if applicable) | K15: Total Metered kW less WMP consumption (if applicable) | L15: 1595 Recovery Proportion (2009) 1 | M15: 1595 Recovery Proportion (2010) 1 | N15: 1595 Recovery Proportion (2011) 1 | O15: 1595 Recovery Proportion (2012) 1 | P15: 1595 Recovery Proportion (2013) 1 | Q15: 1595 Recovery Proportion (2014) 1 | R15: 1595 Recovery Proportion (2015) 1 | S15: 1595 Recovery Proportion (2016) 1 | T15: 1568 LRAM Variance Account Class Allocation ($ amounts) | U15: Number of Customers for Residential and GS<50 classes3
B16: Rate Class | C16: Unit
B17: ='Model Specs'!C15 -> RESIDENTIAL SERVICE CLASSIFICATION | C17: kWh | D17: 1532961311 | F17: 71430406.54 | J17: =D17-H17 -> 1532961311 | K17: =E17-I17 -> 0 | Q17: 0.042831737 | T17: -337833.0521 | U17: 182224
B18: ='Model Specs'!C16 -> GENERAL SERVICE LESS THAN 50 kW SERVICE CLASSIFICATION | C18: kWh | D18: 665390670.8 | F18: 105904811.4 | J18: =D18-H18 -> 665390670.8 | K18: =E18-I18 -> 0 | Q18: 0.03667843854 | T18: 389925.4007 | U18: 18025
B19: ='Model Specs'!C17 -> GENERAL SERVICE 50 to 499 kW SERVICE CLASSIFICATION | C19: kW | D19: 2095056256 | E19: 6021478.125 | F19: 1767662034 | G19: 5122196.905 | H19: 302122.2736 | I19: 10133.75 | J19: 2094754134 | K19: =E19-I19 -> 6011344.375 | Q19: 0.4138297114 | T19: 2760609.975
B20: ='Model Specs'!C18 -> GENERAL SERVICE 500 to 4,999 kW SERVICE CLASSIFICATION | C20: kW | D20: 2017241544 | E20: 4578124.526 | F20: 1858992152 | G20: 4236421.586 | H20: 17511585.82 | I20: 31112.19 | J20: 1999729958 | K20: 4547012.336 | Q20: 0.4838378656 | T20: 645505.3712
B21: ='Model Specs'!C19 -> LARGE USE SERVICE CLASSIFICATION | C21: kW | D21: 989946990.7 | E21: 1770337.046 | F21: 989946990.7 | G21: 1770337.046 | J21: 989946990.7 | K21: 1770337.046 | Q21: 0.0135704573 | T21: 155796.9214
B22: ='Model Specs'!C20 -> STANDBY POWER SERVICE CLASSIFICATION | C22: kW | J22: 0 | K22: 0
B23: ='Model Specs'!C21 -> UNMETERED SCATTERED LOAD SERVICE CLASSIFICATION | C23: kWh | D23: 11246373.87 | F23: 640021.35 | J23: 11246373.87 | K23: 0 | Q23: 0.0004108364085
B24: ='Model Specs'!C22 -> STREET LIGHTING SERVICE CLASSIFICATION | C24: kW | D24: 16413627.73 | E24: 45704.17899 | F24: 16413627.73 | G24: 45704.17899 | J24: 16413627.73 | K24: 45704.17899 | Q24: 0.008840953763 | T24: -1524378.564
J25: 0 | K25: 0
J26: 0 | K26: 0
J27: 0 | K27: 0
J28: 0 | K28: 0
C29: Total | D29: =SUM(D17:D28) -> 7328256775 | E29: =SUM(E17:E28) -> 12415643.88 | F29: 4810990044 | G29: 11174659.72 | H29: 17813708.09 | I29: 41245.94 | J29: 7310443066 | K29: 12374397.94 | L29: 0 | M29: 0 | N29: 0 | O29: 0 | P29: 0 | Q29: 1 | R29: 0 | S29: 0 | T29: 2089626.052 | U29: 200249
B32: Threshold Test | R32: 1568 Account Balance from Continuity Schedule | U32: ='3. Continuity Schedule'!CD43 -> 3574086.207
B33: Total Claim (including Account 1568) | D33: ='3. Continuity Schedule'!CD45 -> -3894052.257 | R33: =IF(U32=T29,"Total Balance of Account 1568 in Column R matches the amount entered on the Continuity Schedule","Total Balance of Account 1568 in Column T DOES NOT MATCH the amount entered on the Continuity Schedule") -> Total Balance of Account 1568 in Column T DOES NOT MATCH the amount entered on the Continuity Schedule
B34: Total Claim for Threshold Test (All Group 1 Accounts) | D34: ='3. Continuity Schedule'!CD41 -> -7468138.464
B35: Threshold Test (Total claim per kWh) 2 | D35: =IFERROR(D34/D29,"") -> -0.00101908799
B36: Exceeds Threshold? | D36: =IF(D35="","",IF(OR(D35>0.001,D35<-0.001),"Yes","No")) -> Yes
B37: ELECT TO DISPOSE of the Group 1 Account Balances? | D37: Yes
B40: As per Section 3.2.5 of the 2017 Filing Requirements for Electricity Distribution Rate Applications, an applicant may elect to dispose of the Group 1 account balances below the threshold.
B41: 1 Residual Account balance to be allocated to rate classes in proportion to the recovery share as established when rate riders were implemented.
B42: 2 The Threshold Test does not include the amount in 1568.
B43: 3 The proportion of customers for the Residential and GS<50 Classes will be used to allocate Account 1551.
B45: Information from the 2015 RRR
D47: Total Metered kWh | E47: Total Metered kW | F47: Metered kWh for Non-RPP Customers | G47: Metered kW for Non-RPP Customers | H47: Metered kWh for Wholesale Market Participants (WMP) | I47: Metered kW for Wholesale Market Participants (WMP) | J47: Total Metered kWh less WMP consumption (if applicable) | K47: Total Metered kW less WMP consumption (if applicable)
B48: Rate Class | C48: Unit
B49: =B17 -> RESIDENTIAL SERVICE CLASSIFICATION | C49: kWh | J49: =D49-H49 -> 0 | K49: =E49-I49 -> 0
B50: =B18 -> GENERAL SERVICE LESS THAN 50 kW SERVICE CLASSIFICATION | C50: kWh | J50: =D50-H50 -> 0 | K50: =E50-I50 -> 0
B51: GENERAL SERVICE 50 to 499 kW SERVICE CLASSIFICATION | C51: kW | J51: 0 | K51: =E51-I51 -> 0
B52: GENERAL SERVICE 500 to 4,999 kW SERVICE CLASSIFICATION | C52: kW | J52: 0 | K52: =E52-I52 -> 0
B53: LARGE USE SERVICE CLASSIFICATION | C53: kWh | J53: 0 | K53: 0
B54: STANDBY POWER SERVICE CLASSIFICATION | C54: kW | J54: 0 | K54: 0
B55: UNMETERED SCATTERED LOAD SERVICE CLASSIFICATION | C55: kW | J55: 0 | K55: 0
B56: STREET LIGHTING SERVICE CLASSIFICATION | C56: kW | J56: 0 | K56: 0
B57: 0 | C57: kWh | J57: 0 | K57: 0
B58: 0 | C58: kWh | J58: 0 | K58: 0
B59: 0 | C59: kW | J59: 0 | K59: 0
J60: 0 | K60: 0
C61: Total | D61: =SUM(D49:D60) -> 0 | E61: =SUM(E49:E60) -> 0 | F61: 0 | G61: 0 | H61: 0 | I61: 0 | J61: 0 | K61: 0

Sheet 5. Allocating Def-Var Balances
A1: Back to Index
B2: INCENTIVE REGULATION MODEL FOR 2018 FILERS
B11: No input required. This workshseet allocates the deferral/variance account balances (Group 1 and 1568) to the appropriate classes as per EDDVAR dated July 31, 2009
B13: Allocation of Group 1 Accounts (including Account 1568)
C14: % of Total kWh | D14: % of Total non-RPP kWh | E14: % of Customer Numbers ** | F14: % of Total kWh adjusted for WMP | I14: allocated based on Total less WMP | N14: allocated based on Total less WMP | O14: 1595_(2009) | P14: 1595_(2010) | Q14: 1595_(2011) | R14: 1595_(2012) | S14: 1595_(2013) | T14: 1595_(2014) | U14: 1595_(2015) | V14: 1595_(2016) | W14: 1595_(2017) | X14: 1568
B15: Rate Class | G15: 1550 | H15: 1551 | I15: 1580 | J15: 1580 (Class A) | K15: 1580 (Class B) | L15: 1584 | M15: 1586 | N15: 1588
B16: ='4. Billing Det. for Def-Var'!B17 -> RESIDENTIAL SERVICE CLASSIFICATION | C16: =IFERROR('4. Billing Det. for Def-Var'!D17/'4. Billing Det. for Def-Var'!D$29,"") -> 0.2091849888 | D16: =IFERROR('4. Billing Det. for Def-Var'!F17/'4. Billing Det. for Def-Var'!F$29,"") -> 0.01484734034 | E16: =IFERROR('4. Billing Det. for Def-Var'!U17/'4. Billing Det. for Def-Var'!U$29,"") -> 0.9099870661 | F16: =IFERROR('4. Billing Det. for Def-Var'!J17/'4. Billing Det. for Def-Var'!J$29,"") -> 0.2096947199 | G16: =IFERROR(G$28*C16,"") -> 490766.402 | H16: =IFERROR(H$28*E16,"") -> -31256.457 | I16: =IFERROR(I$28*F16,"") -> -1476894.501 | L16: =IFERROR(L$28*$C16,"") -> -118832.8463 | M16: =IFERROR(M$28*$C16,"") -> 72925.98939 | N16: =IFERROR(N$28*$F16,"") -> -79330.67072 | O16: ='4. Billing Det. for Def-Var'!L17*O$28 -> 0 | P16: ='4. Billing Det. for Def-Var'!M17*P$28 -> 0 | Q16: ='4. Billing Det. for Def-Var'!N17*Q$28 -> 0 | R16: ='4. Billing Det. for Def-Var'!O17*R$28 -> 0 | S16: ='4. Billing Det. for Def-Var'!P17*S$28 -> 0 | T16: ='4. Billing Det. for Def-Var'!Q17*T$28 -> -269.7103231 | U16: ='4. Billing Det. for Def-Var'!R17*U$28 -> 0 | V16: ='4. Billing Det. for Def-Var'!S17*V$28 -> 0 | W16: ='4. Billing Det. for Def-Var'!T17*W$28 -> 0 | X16: ='4. Billing Det. for Def-Var'!T17 -> -337833.0521
B17: ='4. Billing Det. for Def-Var'!B18 -> GENERAL SERVICE LESS THAN 50 kW SERVICE CLASSIFICATION | C17: =IFERROR('4. Billing Det. for Def-Var'!D18/'4. Billing Det. for Def-Var'!D$29,"") -> 0.09079794709 | D17: =IFERROR('4. Billing Det. for Def-Var'!F18/'4. Billing Det. for Def-Var'!F$29,"") -> 0.02201310133 | E17: =IFERROR('4. Billing Det. for Def-Var'!U18/'4. Billing Det. for Def-Var'!U$29,"") -> 0.0900129339 | F17: =IFERROR('4. Billing Det. for Def-Var'!J18/'4. Billing Det. for Def-Var'!J$29,"") -> 0.09101919881 | G17: =IFERROR(G$28*C17,"") -> 213019.9784 | H17: =IFERROR(H$28*E17,"") -> -3091.786139 | I17: =IFERROR(I$28*F17,"") -> -641054.5497 | L17: =IFERROR(L$28*$C17,"") -> -51580.08016 | M17: 31653.94498 | N17: =IFERROR(N$28*$F17,"") -> -34433.93374 | O17: ='4. Billing Det. for Def-Var'!L18*O$28 -> 0 | P17: ='4. Billing Det. for Def-Var'!M18*P$28 -> 0 | Q17: ='4. Billing Det. for Def-Var'!N18*Q$28 -> 0 | R17: ='4. Billing Det. for Def-Var'!O18*R$28 -> 0 | S17: ='4. Billing Det. for Def-Var'!P18*S$28 -> 0 | T17: ='4. Billing Det. for Def-Var'!Q18*T$28 -> -230.9631643 | U17: ='4. Billing Det. for Def-Var'!R18*U$28 -> 0 | V17: ='4. Billing Det. for Def-Var'!S18*V$28 -> 0 | W17: ='4. Billing Det. for Def-Var'!T18*W$28 -> 0 | X17: ='4. Billing Det. for Def-Var'!T18 -> 389925.4007
B18: ='4. Billing Det. for Def-Var'!B19 -> GENERAL SERVICE 50 to 499 kW SERVICE CLASSIFICATION | C18: =IFERROR('4. Billing Det. for Def-Var'!D19/'4. Billing Det. for Def-Var'!D$29,"") -> 0.2858873974 | D18: =IFERROR('4. Billing Det. for Def-Var'!F19/'4. Billing Det. for Def-Var'!F$29,"") -> 0.3674216779 | E18: =IFERROR('4. Billing Det. for Def-Var'!U19/'4. Billing Det. for Def-Var'!U$29,"") -> 0 | F18: =IFERROR('4. Billing Det. for Def-Var'!J19/'4. Billing Det. for Def-Var'!J$29,"") -> 0.2865427054 | G18: =IFERROR(G$28*C18,"") -> 670717.006 | H18: =IFERROR(H$28*E18,"") -> 0 | I18: =IFERROR(I$28*F18,"") -> -2018140.21 | L18: -162405.5978 | M18: 99665.95322 | N18: =IFERROR(N$28*$F18,"") -> -108403.421 | O18: ='4. Billing Det. for Def-Var'!L19*O$28 -> 0 | P18: ='4. Billing Det. for Def-Var'!M19*P$28 -> 0 | Q18: ='4. Billing Det. for Def-Var'!N19*Q$28 -> 0 | R18: ='4. Billing Det. for Def-Var'!O19*R$28 -> 0 | S18: ='4. Billing Det. for Def-Var'!P19*S$28 -> 0 | T18: ='4. Billing Det. for Def-Var'!Q19*T$28 -> -2605.874825 | U18: ='4. Billing Det. for Def-Var'!R19*U$28 -> 0 | V18: ='4. Billing Det. for Def-Var'!S19*V$28 -> 0 | W18: ='4. Billing Det. for Def-Var'!T19*W$28 -> 0 | X18: ='4. Billing Det. for Def-Var'!T19 -> 2760609.975
B19: ='4. Billing Det. for Def-Var'!B20 -> GENERAL SERVICE 500 to 4,999 kW SERVICE CLASSIFICATION | C19: =IFERROR('4. Billing Det. for Def-Var'!D20/'4. Billing Det. for Def-Var'!D$29,"") -> 0.2752689495 | D19: =IFERROR('4. Billing Det. for Def-Var'!F20/'4. Billing Det. for Def-Var'!F$29,"") -> 0.386405321 | E19: =IFERROR('4. Billing Det. for Def-Var'!U20/'4. Billing Det. for Def-Var'!U$29,"") -> 0 | F19: =IFERROR('4. Billing Det. for Def-Var'!J20/'4. Billing Det. for Def-Var'!J$29,"") -> 0.27354429 | G19: 645805.1923 | H19: 0 | I19: -1926591.466 | L19: -156373.5187 | M19: 95964.15405 | N19: -103485.9247 | O19: ='4. Billing Det. for Def-Var'!L20*O$28 -> 0 | P19: ='4. Billing Det. for Def-Var'!M20*P$28 -> 0 | Q19: ='4. Billing Det. for Def-Var'!N20*Q$28 -> 0 | R19: ='4. Billing Det. for Def-Var'!O20*R$28 -> 0 | S19: ='4. Billing Det. for Def-Var'!P20*S$28 -> 0 | T19: ='4. Billing Det. for Def-Var'!Q20*T$28 -> -3046.714334 | U19: ='4. Billing Det. for Def-Var'!R20*U$28 -> 0 | V19: ='4. Billing Det. for Def-Var'!S20*V$28 -> 0 | W19: ='4. Billing Det. for Def-Var'!T20*W$28 -> 0 | X19: ='4. Billing Det. for Def-Var'!T20 -> 645505.3712
B20: ='4. Billing Det. for Def-Var'!B21 -> LARGE USE SERVICE CLASSIFICATION | C20: =IFERROR('4. Billing Det. for Def-Var'!D21/'4. Billing Det. for Def-Var'!D$29,"") -> 0.135086286 | D20: =IFERROR('4. Billing Det. for Def-Var'!F21/'4. Billing Det. for Def-Var'!F$29,"") -> 0.2057678319 | E20: =IFERROR('4. Billing Det. for Def-Var'!U21/'4. Billing Det. for Def-Var'!U$29,"") -> 0 | F20: =IFERROR('4. Billing Det. for Def-Var'!J21/'4. Billing Det. for Def-Var'!J$29,"") -> 0.1354154573 | G20: 316924.3211 | H20: 0 | I20: -953740.4868 | L20: -76739.19604 | M20: 47093.72846 | N20: -51229.70695 | O20: ='4. Billing Det. for Def-Var'!L21*O$28 -> 0 | P20: ='4. Billing Det. for Def-Var'!M21*P$28 -> 0 | Q20: ='4. Billing Det. for Def-Var'!N21*Q$28 -> 0 | R20: ='4. Billing Det. for Def-Var'!O21*R$28 -> 0 | S20: ='4. Billing Det. for Def-Var'!P21*S$28 -> 0 | T20: ='4. Billing Det. for Def-Var'!Q21*T$28 -> -85.45281324 | U20: ='4. Billing Det. for Def-Var'!R21*U$28 -> 0 | V20: ='4. Billing Det. for Def-Var'!S21*V$28 -> 0 | W20: ='4. Billing Det. for Def-Var'!T21*W$28 -> 0 | X20: ='4. Billing Det. for Def-Var'!T21 -> 155796.9214
B21: ='4. Billing Det. for Def-Var'!B22 -> STANDBY POWER SERVICE CLASSIFICATION | C21: =IFERROR('4. Billing Det. for Def-Var'!D22/'4. Billing Det. for Def-Var'!D$29,"") -> 0 | D21: =IFERROR('4. Billing Det. for Def-Var'!F22/'4. Billing Det. for Def-Var'!F$29,"") -> 0 | E21: =IFERROR('4. Billing Det. for Def-Var'!U22/'4. Billing Det. for Def-Var'!U$29,"") -> 0 | F21: =IFERROR('4. Billing Det. for Def-Var'!J22/'4. Billing Det. for Def-Var'!J$29,"") -> 0 | G21: 0 | H21: 0 | I21: 0 | L21: 0 | M21: 0 | N21: 0 | O21: ='4. Billing Det. for Def-Var'!L22*O$28 -> 0 | P21: ='4. Billing Det. for Def-Var'!M22*P$28 -> 0 | Q21: ='4. Billing Det. for Def-Var'!N22*Q$28 -> 0 | R21: ='4. Billing Det. for Def-Var'!O22*R$28 -> 0 | S21: ='4. Billing Det. for Def-Var'!P22*S$28 -> 0 | T21: ='4. Billing Det. for Def-Var'!Q22*T$28 -> 0 | U21: ='4. Billing Det. for Def-Var'!R22*U$28 -> 0 | V21: ='4. Billing Det. for Def-Var'!S22*V$28 -> 0 | W21: ='4. Billing Det. for Def-Var'!T22*W$28 -> 0 | X21: ='4. Billing Det. for Def-Var'!T22 -> 0
B22: ='4. Billing Det. for Def-Var'!B23 -> UNMETERED SCATTERED LOAD SERVICE CLASSIFICATION | C22: =IFERROR('4. Billing Det. for Def-Var'!D23/'4. Billing Det. for Def-Var'!D$29,"") -> 0.001534658817 | D22: =IFERROR('4. Billing Det. for Def-Var'!F23/'4. Billing Det. for Def-Var'!F$29,"") -> 0.0001330331895 | E22: =IFERROR('4. Billing Det. for Def-Var'!U23/'4. Billing Det. for Def-Var'!U$29,"") -> 0 | F22: =IFERROR('4. Billing Det. for Def-Var'!J23/'4. Billing Det. for Def-Var'!J$29,"") -> 0.001538398394 | G22: 3600.444709 | H22: 0 | I22: -10835.04692 | L22: -871.8019223 | M22: 535.0121597 | N22: -581.9992821 | O22: ='4. Billing Det. for Def-Var'!L23*O$28 -> 0 | P22: ='4. Billing Det. for Def-Var'!M23*P$28 -> 0 | Q22: ='4. Billing Det. for Def-Var'!N23*Q$28 -> 0 | R22: ='4. Billing Det. for Def-Var'!O23*R$28 -> 0 | S22: ='4. Billing Det. for Def-Var'!P23*S$28 -> 0 | T22: ='4. Billing Det. for Def-Var'!Q23*T$28 -> -2.587026075 | U22: ='4. Billing Det. for Def-Var'!R23*U$28 -> 0 | V22: ='4. Billing Det. for Def-Var'!S23*V$28 -> 0 | W22: ='4. Billing Det. for Def-Var'!T23*W$28 -> 0 | X22: ='4. Billing Det. for Def-Var'!T23 -> 0
B23: ='4. Billing Det. for Def-Var'!B24 -> STREET LIGHTING SERVICE CLASSIFICATION | C23: =IFERROR('4. Billing Det. for Def-Var'!D24/'4. Billing Det. for Def-Var'!D$29,"") -> 0.002239772464 | D23: =IFERROR('4. Billing Det. for Def-Var'!F24/'4. Billing Det. for Def-Var'!F$29,"") -> 0.003411694388 | E23: =IFERROR('4. Billing Det. for Def-Var'!U24/'4. Billing Det. for Def-Var'!U$29,"") -> 0 | F23: =IFERROR('4. Billing Det. for Def-Var'!J24/'4. Billing Det. for Def-Var'!J$29,"") -> 0.002245230226 | G23: 5254.703408 | H23: 0 | I23: -15813.31269 | L23: -1272.35964 | M23: 780.8286049 | N23: -849.4044094 | O23: ='4. Billing Det. for Def-Var'!L24*O$28 -> 0 | P23: ='4. Billing Det. for Def-Var'!M24*P$28 -> 0 | Q23: ='4. Billing Det. for Def-Var'!N24*Q$28 -> 0 | R23: ='4. Billing Det. for Def-Var'!O24*R$28 -> 0 | S23: ='4. Billing Det. for Def-Var'!P24*S$28 -> 0 | T23: ='4. Billing Det. for Def-Var'!Q24*T$28 -> -55.67125367 | U23: ='4. Billing Det. for Def-Var'!R24*U$28 -> 0 | V23: ='4. Billing Det. for Def-Var'!S24*V$28 -> 0 | W23: ='4. Billing Det. for Def-Var'!T24*W$28 -> 0 | X23: ='4. Billing Det. for Def-Var'!T24 -> -1524378.564
C28: =SUM(C16:C27) -> 1 | D28: =SUM(D16:D27) -> 1 | E28: =SUM(E16:E27) -> 1 | F28: =SUM(F16:F27) -> 1 | G28: ='3. Continuity Schedule'!CD21 -> 2346088.048 | H28: ='3. Continuity Schedule'!CD22 -> -34348.24314 | I28: ='3. Continuity Schedule'!CD23 -> -7043069.573 | L28: ='3. Continuity Schedule'!CD26 -> -568075.4005 | M28: ='3. Continuity Schedule'!CD27 -> 348619.6109 | N28: ='3. Continuity Schedule'!CD28 -> -378315.0608 | O28: =TRANSPOSE('3. Continuity Schedule'!CD30:CD36) -> -0.2054955003 | P28: -2.958788536e-09 | Q28: 0.19329175 | R28: 5.028326996e-10 | S28: 0 | T28: -6296.973739 | U28: 0 | V28: 0 | W28: 0 | X28: =SUM(X16:X26) -> 2089626.052
G29: =SUM(G16:G27)-G28 -> 0 | H29: =SUM(H16:H27)-H28 -> 0 | I29: 0 | J29: 0 | K29: 0 | L29: 0 | M29: 0 | N29: 0 | O29: 0.2054955003 | P29: 2.958788536e-09 | Q29: -0.19329175 | R29: -5.028326996e-10 | S29: 0 | T29: 0 | U29: 0 | V29: 0 | X29: 0
B32: ** Used to allocate Account 1551 as this account records the variances arising from the Smart Metering Entity Charges to Residential and GS<50 customers.

Sheet 6. GA Calculation
A1: Back to Index
B2: INCENTIVE REGULATION MODEL FOR 2018 FILERS
B13: The purpose of this tab is to calculate the GA rate riders for all current Class B customers of the distributor. Identify the total billed consumption for former Class B customers prior to becoming Class A customers in Column G. Effective January 2017, the billing determinant and all rate riders for the disposition of GA balances will be calculated on an energy basis (kWhs) regardless of the billing determinant used for distribution rates for the particular class (see Chapter 3, Filing Requirements, section 3.2.5.2)
C14: Total Metered Non-RPP consumption minus WMP | E14: Total Metered Class A Consumption in 2016 (partial and/or full year Class A customers)* | G14: Total Metered Consumption for New Class A customer(s) in the period prior to becoming Class A (i.e. Jan. 1 - June 30, 2016) | H14: Total Metered Consumption for New Class B customer(s) in the period after becoming Class B (i.e. Jul 1 - Dec 31, 2016) | I14: Metered Consumption for Current Class B Customers (Non-RPP consumption LESS WMP, Class A and new Class A's former Class B consumption if applicable) | K14: % of total kWh | L14: Total GA $ allocated to Current Class B Customers | M14: GA Rate Rider | O14: Revenue Reconciliation | P14: Variance
C15: kWh | D15: kW | E15: kWh | F15: kW | G15: kWh | H15: kWh | I15: kWh | J15: kW
B17: ='4. Billing Det. for Def-Var'!B17 -> RESIDENTIAL SERVICE CLASSIFICATION | C17: ='4. Billing Det. for Def-Var'!F17-'4. Billing Det. for Def-Var'!H17 -> 71430406.54 | I17: =C17-E17-G17 -> 71430406.54 | K17: =IFERROR(I17/I$29,"") -> 0.01999144826 | L17: =IFERROR(L$29*K17,"") -> -36615.51013 | M17: =IFERROR(L17/I17,"") -> -0.0005126039722 | N17: kwh | O17: =IFERROR(ROUND(M17,4)*I17,"") -> -35715.20327 | P17: =IFERROR(L17-O17,"") -> -900.3068584
B18: ='4. Billing Det. for Def-Var'!B18 -> GENERAL SERVICE LESS THAN 50 kW SERVICE CLASSIFICATION | C18: ='4. Billing Det. for Def-Var'!F18-'4. Billing Det. for Def-Var'!H18 -> 105904811.4 | I18: =C18-E18-G18 -> 105904811.4 | K18: =IFERROR(I18/I$29,"") -> 0.0296399063 | L18: =IFERROR(L$29*K18,"") -> -54287.22698 | M18: =IFERROR(L18/I18,"") -> -0.0005126039722 | N18: kwh | O18: =IFERROR(ROUND(M18,4)*I18,"") -> -52952.40568 | P18: =IFERROR(L18-O18,"") -> -1334.821299
B19: ='4. Billing Det. for Def-Var'!B19 -> GENERAL SERVICE 50 to 499 kW SERVICE CLASSIFICATION | C19: ='4. Billing Det. for Def-Var'!F19-'4. Billing Det. for Def-Var'!H19 -> 1767359912 | I19: 1767359912 | K19: 0.4946364713 | L19: -905955.7112 | M19: =IFERROR(L19/I19,"") -> -0.0005126039722 | N19: kwh | O19: -883679.956 | P19: -22275.7552
B20: ='4. Billing Det. for Def-Var'!B20 -> GENERAL SERVICE 500 to 4,999 kW SERVICE CLASSIFICATION | C20: ='4. Billing Det. for Def-Var'!F20-'4. Billing Det. for Def-Var'!H20 -> 1841480566 | E20: ='[4]Summary kWh'!$M$18 -> 221283806.4 | G20: ='[4]Summary kWh'!$C$51 -> 8897423.067 | I20: 1611299337 | K20: 0.4509593167 | L20: -825958.4405 | M20: -0.0005126039722 | N20: kwh | O20: -805649.6685 | P20: -20308.77205
B21: ='4. Billing Det. for Def-Var'!B21 -> LARGE USE SERVICE CLASSIFICATION | C21: ='4. Billing Det. for Def-Var'!F21-'4. Billing Det. for Def-Var'!H21 -> 989946990.7 | E21: =[5]Summary!$G$76 -> 962255515.8 | G21: =[5]Summary!$G$77 -> 27691474.85 | H21: ='6B. GA Allocation_new Class B'!D44 -> 0 | I21: =C21-E21-G21 -> 0 | K21: 0 | L21: 0 | M21: =IFERROR(L21/I21,"") ->  | N21: kwh
B22: ='4. Billing Det. for Def-Var'!B22 -> STANDBY POWER SERVICE CLASSIFICATION | C22: ='4. Billing Det. for Def-Var'!F22-'4. Billing Det. for Def-Var'!H22 -> 0 | I22: 0 | K22: 0 | L22: 0 | N22: kwh
B23: ='4. Billing Det. for Def-Var'!B23 -> UNMETERED SCATTERED LOAD SERVICE CLASSIFICATION | C23: ='4. Billing Det. for Def-Var'!F23-'4. Billing Det. for Def-Var'!H23 -> 640021.35 | I23: 640021.35 | K23: 0.0001791247499 | L23: -328.0774863 | M23: -0.0005126039722 | N23: kwh | O23: -320.010675 | P23: -8.066811304
B24: ='4. Billing Det. for Def-Var'!B24 -> STREET LIGHTING SERVICE CLASSIFICATION | C24: ='4. Billing Det. for Def-Var'!F24-'4. Billing Det. for Def-Var'!H24 -> 16413627.73 | I24: 16413627.73 | K24: 0.004593732635 | L24: -8413.690775 | M24: -0.0005126039722 | N24: kwh | O24: -8206.813867 | P24: -206.8769077
C29: =SUM(C17:C28) -> 4793176336 | D29: =SUM(D17:D28) -> 0 | E29: 1183539322 | F29: 0 | G29: 36588897.92 | H29: 0 | I29: 3573048116 | J29: 0 | K29: 1 | L29: ='6B. GA Allocation_new Class B'!D28 -> -1831558.657 | O29: =SUM(O17:O24) -> -1786524.058 | P29: =SUM(P17:P24) -> -45034.59913
L30: from Sheet 6B
B32: *For new Class A customers (who became Class A in 2016), add their consumption only related to July to December period.
B36: 2015 DATA | C36: Total Metered Non-RPP consumption minus WMP | E36: Total Metered Class A Consumption in 2015 (partial and/or full year Class A customers)* | G36: Total Metered Consumption for New Class A customer(s) in the period prior to becoming Class A (i.e. Jan. 1 - June 30, 2015)
C37: kWh | D37: kW | E37: kWh | F37: kW | G37: kWh
B39: =B17 -> RESIDENTIAL SERVICE CLASSIFICATION | C39: ='4. Billing Det. for Def-Var'!F49-'4. Billing Det. for Def-Var'!H49 -> 0
B40: =B18 -> GENERAL SERVICE LESS THAN 50 kW SERVICE CLASSIFICATION | C40: ='4. Billing Det. for Def-Var'!F50-'4. Billing Det. for Def-Var'!H50 -> 0
B41: GENERAL SERVICE 50 to 499 kW SERVICE CLASSIFICATION | C41: ='4. Billing Det. for Def-Var'!F51-'4. Billing Det. for Def-Var'!H51 -> 0
B42: GENERAL SERVICE 500 to 4,999 kW SERVICE CLASSIFICATION | C42: ='4. Billing Det. for Def-Var'!F52-'4. Billing Det. for Def-Var'!H52 -> 0
B43: LARGE USE SERVICE CLASSIFICATION | C43: ='4. Billing Det. for Def-Var'!F53-'4. Billing Det. for Def-Var'!H53 -> 0
B44: STANDBY POWER SERVICE CLASSIFICATION | C44: ='4. Billing Det. for Def-Var'!F54-'4. Billing Det. for Def-Var'!H54 -> 0
B45: UNMETERED SCATTERED LOAD SERVICE CLASSIFICATION | C45: ='4. Billing Det. for Def-Var'!F55-'4. Billing Det. for Def-Var'!H55 -> 0
B46: STREET LIGHTING SERVICE CLASSIFICATION | C46: ='4. Billing Det. for Def-Var'!F56-'4. Billing Det. for Def-Var'!H56 -> 0
B47: 0 | C47: ='4. Billing Det. for Def-Var'!F57-'4. Billing Det. for Def-Var'!H57 -> 0
B48: 0 | C48: ='4. Billing Det. for Def-Var'!F58-'4. Billing Det. for Def-Var'!H58 -> 0
B49: 0 | C49: ='4. Billing Det. for Def-Var'!F59-'4. Billing Det. for Def-Var'!H59 -> 0
C51: =SUM(C39:C50) -> 0 | D51: =SUM(D39:D50) -> 0 | E51: 0 | F51: 0 | G51: 0

Sheet 6A. GA Allocation_Class A
A1: Back to Index
B2: INCENTIVE REGULATION MODEL FOR 2018 FILERS
B12: This tab allocates the GA balance to former Class B customers who contributed to the current GA balance but are now Class A customers. The tables below calculate specific amounts for each customer who made the change. Consistent with both decisions for 2016 rates and EDDVAR, distributors are generally expected to settle the amount through 12 equal adjustments to bills. A one-time settlement is acceptable if the affected customer has expressed a clear preference for this approach. (see Filing Requirements section 3.2.5.2)
B14: Year of Group 1 Account Balance Last Disposed | C14: 2015 | D14: (e.g. If in the 2017 EDR process, you received approval to dispose the GA variance account balance as of December 31, 2014, please enter 2014 in cell C16.)
B16: Allocation of total Non-RPP consumption (kWh) between Class B and New Class A (Former Class B) customers
D17: Total | E17: 2016 | F17: 2015 | G17: 2014 | H17: 2013 | I17: 2012
B18: Total Class B Consumption for Years Since Last Disposition (Non-RPP consumption LESS WMP and Class A) | C18: A | D18: =SUM(E18:I18) -> 3609637013 | E18: 3609637013
B19: New Class A Customer(s)' Former Class B Consumption | C19: B | D19: =SUM(E19:I19) -> 36588897.92 | E19: ='6. GA Calculation'!G29 -> 36588897.92 | F19: =F43 -> 0 | G19: =G43 -> 0 | H19: =H43 -> 0 | I19: =I43 -> 0
B20: Portion of Consumption of Former Class B Customers | C20: C=B/A | D20: =IFERROR(+D19/D18,0) -> 0.01013644801
B23: Allocation of Total GA Balance $
B25: Total GA Balance | C25: D | D25: ='3. Continuity Schedule'!CD29 -> -1850314.272
B26: New Class A Customer(s)' Former Class B Portion of GA Balance | C26: E=C*D | D26: =+D20*D25 -> -18755.61441
B27: GA Balance to be disposed to Current Class B Customers | C27: F=D-E | D27: =+D25-D26 -> -1831558.657
B29: Allocation of GA Balances to Former Class B Customers
B30: # of Former Class B customer(s)
B31: Customer | D31: Total Metered kWh Consumption for each new Class A customer for the period prior to becoming Class A | E31: Metered kWh Consumption for each new Class A customer for the period prior to becoming Class A in 2016 | F31: Metered kWh Consumption for each new Class A customer for the period prior to becoming Class A in 2015 | G31: Metered kWh Consumption for each new Class A customer for the period prior to becoming Class A in 2014 | H31: Metered kWh Consumption for each new Class A customer for the period prior to becoming Class A in 2013 | I31: Metered kWh Consumption for each new Class A customer for the period prior to becoming Class A in 2012 | J31: % of kWh | K31: Customer specific GA allocation for the period prior to becoming Class A | L31: Monthly Equal Payments
B32: Customer 1 | D32: =SUM(E32:I32) -> 27691474.85 | E32: =[5]Summary!$G$77 -> 27691474.85 | J32: =IFERROR(+D32/$D$43,0) -> 0.7568272462 | K32: =+J32*$D$26 -> -14194.76001 | L32: =+K32/12 -> -1182.896667
B33: Customer 2 | D33: 8897423.067 | E33: ='[4]Summary kWh'!$C$51 -> 8897423.067 | J33: 0.2431727538 | K33: =+J33*$D$26 -> -4560.854407 | L33: =+K33/12 -> -380.0712006
B34: Customer 3 | D34: 0 | J34: 0 | K34: 0 | L34: 0
B35: Customer 4 | D35: 0 | J35: 0 | K35: 0 | L35: 0
B36: Customer 5 | D36: 0 | J36: 0 | K36: 0 | L36: 0
B37: Customer 6 | D37: 0 | J37: 0 | K37: 0 | L37: 0
B38: Customer 7 | D38: 0 | J38: 0 | K38: 0 | L38: 0
B39: Customer 8 | D39: 0 | J39: 0 | K39: =+J39*$D$26 -> 0 | L39: =+K39/12 -> 0
B40: Customer 9 | D40: 0 | J40: 0 | K40: 0 | L40: 0
B41: Customer 10 | D41: 0 | J41: 0 | K41: 0 | L41: 0
B42: Customer 11 | D42: 0 | J42: 0 | K42: 0 | L42: 0
B43: Total | D43: =SUM(D32:D42) -> 36588897.92 | E43: =SUM(E32:E42) -> 36588897.92 | F43: =SUM(F32:F42) -> 0 | G43: =SUM(G32:G38) -> 0 | H43: 0 | I43: 0 | J43: =SUM(J32:J42) -> 1 | K43: =SUM(K32:K42) -> -18755.61441

Sheet 6B. GA Allocation_new Class B
A1: Back to Index
B2: INCENTIVE REGULATION MODEL FOR 2018 FILERS
B12: This tab allocates the GA balance to former Class A customers who contributed to the current Class B GA balance once switched to Class B customers. The tables below calculate specific amounts for each customer who made the transition. Consistent with both decisions for 2016 rates and EDDVAR, distributors are generally expected to settle the amount through 12 equal adjustments to bills. A one-time settlement is acceptable if the affected customer has expressed a clear preference for this approach. (see Filing Requirements section 3.2.5.2)
B14: Year of Group 1 Account Balance Last Disposed | C14: 2015 | D14: (e.g. If in the 2017 EDR process, you received approval to dispose the GA variance account balance as of December 31, 2014, please enter 2014 in cell C16.)
B16: Allocation of total Non-RPP consumption (kWh) between Class B and New Class B (Former Class A) customers
D17: Total | E17: 2016 | F17: 2015 | G17: 2014 | H17: 2013 | I17: 2012
B18: Total Class B Consumption for Years Since Last Disposition (Non-RPP consumption LESS WMP and Class A) | C18: A | D18: =SUM(E18:I18) -> 0
B19: New Class B Customer(s)' Consumption | C19: B | D19: =SUM(E19:I19) -> 0 | E19: =E44 -> 0 | F19: =F44 -> 0 | G19: =G44 -> 0 | H19: =H44 -> 0 | I19: =I44 -> 0
B20: Portion of Consumption of New Class B Customers | C20: C=B/A | D20: =IFERROR(+D19/D18,0) -> 0
B23: Allocation of Total GA Balance $
B25: Total GA Calss B Balance adjusted for Class A | C25: D | D25: ='6A. GA Allocation_Class A'!D25 -> -1850314.272
B26: New Class B Customer(s)' Former Class A Portion of GA Balance attributable to Class B | C26: E=C*D | D26: =+D20*D25 -> 0
B27: New Class A Customer(s)' Former Class B Portion of GA Balance | C27: F=Sheet 6A | D27: ='6A. GA Allocation_Class A'!D26 -> -18755.61441
B28: GA Balance to be disposed to Current Class B Customers | C28: G=D-E-F | D28: =+D25-D26-D27 -> -1831558.657 | E28: Input into Sheet 6. GA Calculation | O28: s
B30: Allocation of GA Balances to Former Class A Customers
B31: # of Former Class B customer(s) | F31: 9
B32: Customer | D32: Total Metered kWh Consumption for each new Class B customer for the period after becoming Class B | E32: Metered kWh Consumption for each new Class B customer for the period after becoming Class B in 2016 | F32: Metered kWh Consumption for each new Class B customer for the period prior to becoming Class B in 2015 | G32: Metered kWh Consumption for each new Class B customer for the period prior to becoming Class B in 2014 | H32: Metered kWh Consumption for each new Class B customer for the period prior to becoming Class B in 2013 | I32: Metered kWh Consumption for each new Class B customer for the period prior to becoming Class B in 2012 | J32: % of kWh | K32: Customer specific GA allocation for the period after becoming Class B | L32: Monthly Equal Payments
B33: Customer 1 | D33: =SUM(E33:I33) -> 0 | J33: =IFERROR(+D33/$D$44,0) -> 0 | K33: =+J33*$D$26 -> 0 | L33: =+K33/12 -> 0
J34: 0 | K34: =+J34*$D$26 -> 0 | L34: =+K34/12 -> 0
J35: 0 | K35: 0 | L35: 0
J36: 0 | K36: 0 | L36: 0
J37: 0 | K37: 0 | L37: 0
J38: 0 | K38: 0 | L38: 0
J39: 0 | K39: 0 | L39: 0
J40: 0 | K40: 0 | L40: 0
J41: 0 | K41: 0 | L41: 0
J42: 0 | K42: 0 | L42: 0
J43: 0 | K43: 0 | L43: 0
B44: Total | D44: =SUM(D33:D43) -> 0 | E44: =SUM(E33:E43) -> 0 | F44: =SUM(F33:F43) -> 0 | G44: =SUM(G33:G39) -> 0 | H44: 0 | I44: 0 | J44: =SUM(J33:J43) -> 0 | K44: =SUM(K33:K43) -> 0

Sheet 7. CBR Allocation
A1: Back to Index
B2: INCENTIVE REGULATION MODEL FOR 2018 FILERS
B13: The purpose of this tab is to calculate the CBR rate riders for all current Class B customers of the distributor. Identify and input the total billed consumption for former Class B customers prior to becoming Class A customers in Column H.
B15: Account 1580
B16: Variance WMS – Sub-account CBR Class A | C16: ='3. Continuity Schedule'!CD24 -> 0
B17: Variance WMS – Sub-account CBR Class B | C17: ='3. Continuity Schedule'!CD25 -> -282426.5877
C19: Total Metered LESS WMP | E19: Total Metered Class A Consumption/Demand in 2016 (partial and/or full year Class A customers)* | G19: Total Metered Consumption/Demand for New Class A customer(s) in the period prior to becoming Class A (i.e. Jan 1 - Jun 30, 2016) | I19: Total Metered Consumption for New Class B customer(s) in the period after becoming Class B (i.e. Jul 1 - Dec 31, 2016) | K19: Metered Consumption for Current Class B Customers (metered consumption/demand LESS WMP, Class A and new Class A's former Class B, if applicable) | M19: % of total kWh | N19: Total CBR $ allocated to Current Class B Customers | O19: CBR Rate Rider | Q19: Revenue Reconciliation | R19: Variance
C20: kWh | D20: kW | E20: kWh | F20: kW | G20: kWh | H20: kW | I20: kWh | J20: kW | K20: kWh | L20: kW
B22: ='4. Billing Det. for Def-Var'!B17 -> RESIDENTIAL SERVICE CLASSIFICATION | C22: ='4. Billing Det. for Def-Var'!D17-'4. Billing Det. for Def-Var'!H17 -> 1532961311 | D22: ='4. Billing Det. for Def-Var'!E17-'4. Billing Det. for Def-Var'!I17 -> 0 | E22: ='6. GA Calculation'!E17 -> 0 | G22: ='6. GA Calculation'!G17 -> 0 | K22: =C22-E22-G22-I22 -> 1532961311 | L22: =D22-F22-H22-J22 -> 0 | M22: =IFERROR(K22/K$34,"") -> 0.2517047722 | N22: =IFERROR(N$34*M22,"") -> -70663.59295 | O22: =IFERROR(IF(L22=0,N22/K22,N22/L22),"") -> -4.609613592e-05 | P22: kwh | Q22: =IFERROR(IF(L22=0,ROUND(O22,5)*K22,ROUND(O22,5)*L22),"") -> -76648.06556 | R22: =IFERROR(N22-Q22,"") -> 5984.472602
B23: ='4. Billing Det. for Def-Var'!B18 -> GENERAL SERVICE LESS THAN 50 kW SERVICE CLASSIFICATION | C23: ='4. Billing Det. for Def-Var'!D18-'4. Billing Det. for Def-Var'!H18 -> 665390670.8 | D23: ='4. Billing Det. for Def-Var'!E18-'4. Billing Det. for Def-Var'!I18 -> 0 | E23: ='6. GA Calculation'!E18 -> 0 | G23: ='6. GA Calculation'!G18 -> 0 | K23: =C23-E23-G23-I23 -> 665390670.8 | L23: =D23-F23-H23-J23 -> 0 | M23: =IFERROR(K23/K$34,"") -> 0.1092539036 | N23: =IFERROR(N$34*M23,"") -> -30671.9388 | O23: =IFERROR(IF(L23=0,N23/K23,N23/L23),"") -> -4.609613592e-05 | P23: kwh | Q23: =IFERROR(IF(L23=0,ROUND(O23,5)*K23,ROUND(O23,5)*L23),"") -> -33269.53354 | R23: =IFERROR(N23-Q23,"") -> 2597.594741
B24: ='4. Billing Det. for Def-Var'!B19 -> GENERAL SERVICE 50 to 499 kW SERVICE CLASSIFICATION | C24: ='4. Billing Det. for Def-Var'!D19-'4. Billing Det. for Def-Var'!H19 -> 2094754134 | D24: ='4. Billing Det. for Def-Var'!E19-'4. Billing Det. for Def-Var'!I19 -> 6011344.375 | E24: ='6. GA Calculation'!E19 -> 0 | G24: ='6. GA Calculation'!G19 -> 0 | K24: 2094754134 | L24: 6011344.375 | M24: 0.3439484143 | N24: -96560.07128 | O24: -0.01606297448 | P24: kW | Q24: -96542.19067 | R24: -17.8806169
B25: ='4. Billing Det. for Def-Var'!B20 -> GENERAL SERVICE 500 to 4,999 kW SERVICE CLASSIFICATION | C25: ='4. Billing Det. for Def-Var'!D20-'4. Billing Det. for Def-Var'!H20 -> 1999729958 | D25: ='4. Billing Det. for Def-Var'!E20-'4. Billing Det. for Def-Var'!I20 -> 4547012.336 | E25: ='6. GA Calculation'!E20 -> 221283806.4 | F25: 446799.227 | G25: ='6. GA Calculation'!G20 -> 8897423.067 | H25: 19616.166 | K25: 1769548729 | L25: 4080596.943 | M25: 0.2905512725 | N25: -81569.3587 | O25: -0.01998956521 | P25: kW | Q25: -81571.1329 | R25: 1.774195825
B26: ='4. Billing Det. for Def-Var'!B21 -> LARGE USE SERVICE CLASSIFICATION | C26: ='4. Billing Det. for Def-Var'!D21-'4. Billing Det. for Def-Var'!H21 -> 989946990.7 | D26: ='4. Billing Det. for Def-Var'!E21-'4. Billing Det. for Def-Var'!I21 -> 1770337.046 | E26: ='6. GA Calculation'!E21 -> 962255515.8 | F26: 1715965.368 | G26: ='6. GA Calculation'!G21 -> 27691474.85 | H26: 54371.678 | K26: -2.607703209e-08 | L26: 6.548361853e-11 | M26: -4.281721511e-18 | N26: 1.202050416e-12 | O26: =IFERROR(IF(L26=0,N26/K26,N26/L26),"")*0 -> 0 | P26: kwh | Q26: 0 | R26: 1.202050416e-12
B27: ='4. Billing Det. for Def-Var'!B22 -> STANDBY POWER SERVICE CLASSIFICATION | C27: ='4. Billing Det. for Def-Var'!D22-'4. Billing Det. for Def-Var'!H22 -> 0 | D27: ='4. Billing Det. for Def-Var'!E22-'4. Billing Det. for Def-Var'!I22 -> 0 | E27: ='6. GA Calculation'!E22 -> 0 | G27: ='6. GA Calculation'!G22 -> 0 | K27: 0 | L27: 0 | M27: 0 | N27: 0 | P27: kW
B28: ='4. Billing Det. for Def-Var'!B23 -> UNMETERED SCATTERED LOAD SERVICE CLASSIFICATION | C28: ='4. Billing Det. for Def-Var'!D23-'4. Billing Det. for Def-Var'!H23 -> 11246373.87 | D28: ='4. Billing Det. for Def-Var'!E23-'4. Billing Det. for Def-Var'!I23 -> 0 | E28: ='6. GA Calculation'!E23 -> 0 | G28: ='6. GA Calculation'!G23 -> 0 | K28: 11246373.87 | L28: 0 | M28: =IFERROR(K28/K$34,"") -> 0.00184659975 | N28: -518.4143787 | O28: -4.609613592e-05 | P28: kwh | Q28: -562.3186937 | R28: 43.90431503
B29: ='4. Billing Det. for Def-Var'!B24 -> STREET LIGHTING SERVICE CLASSIFICATION | C29: ='4. Billing Det. for Def-Var'!D24-'4. Billing Det. for Def-Var'!H24 -> 16413627.73 | D29: ='4. Billing Det. for Def-Var'!E24-'4. Billing Det. for Def-Var'!I24 -> 45704.17899 | E29: ='6. GA Calculation'!E24 -> 0 | G29: ='6. GA Calculation'!G24 -> 0 | K29: 16413627.73 | L29: 45704.17899 | M29: 0.002695037637 | N29: -756.604815 | O29: -0.01655439025 | P29: kW | Q29: -756.4041622 | R29: -0.2006527296
B30: ='4. Billing Det. for Def-Var'!B25 -> 0
C34: =SUM(C22:C33) -> 7310443066 | D34: =SUM(D22:D33) -> 12374397.94 | E34: 1183539322 | F34: 2162764.595 | G34: 36588897.92 | H34: 73987.844 | I34: 0 | J34: 0 | K34: 6090314846 | L34: 10137645.5 | M34: 1 | N34: ='7B. CBR Allocation_new Class B'!D28 -> -280739.9809 | Q34: =SUM(Q22:Q33) -> -289349.6455 | R34: =SUM(R22:R33) -> 8609.664584
N35: from Sheet 7B
Q36: NOTE: if rate rider is at 5 decimal places, then the balance dispostion is in full
B37: *For new Class A customers (who became Class A in 2016), add their consumption only related to July to December period.

Sheet 7A. CBR Allocation_Class A
A1: Back to Index
B2: INCENTIVE REGULATION MODEL FOR 2018 FILERS
B12: This tab allocates the CBR balance to former Class B customers who contributed to the current CBR balance but are now Class A customers. The tables below calculate specific amounts for each customer who made the change. Consistent with both decisions for 2016 rates and EDDVAR, distributors are generally expected to settle the amount through 12 equal adjustments to bills. A one-time settlement is acceptable if the affected customer has expressed a clear preference for this approach. (see Filing Requirements section 3.2.5.2)
B14: Year of Group 1 Account Balance Last Disposed | C14: 2015
B16: Allocation of total Non-RPP consumption (kWh) between Class B and New Class A (Former Class B) customers
D17: Total | E17: 2016
B18: Total MeteredConsumption for Years Since Last Disposition (consumption LESS WMP and Class A) | C18: A | D18: =SUM(E18:I18) -> 6126903744 | E18: 6126903744
B19: New Class A Customer(s)' Former Class B Consumption | C19: B | D19: =SUM(E19:I19) -> 36588897.92 | E19: =E44 -> 36588897.92
B20: Portion of Consumption of Former Class B Customers | C20: C=B/A | D20: =IFERROR(+D19/D18,0) -> 0.00597184148
B23: Allocation of Total CBR Class B Balance $
B25: Total CBR-Class B Balance | C25: D | D25: ='7. CBR Allocation'!C17 -> -282426.5877
B26: New Class A Customer(s)' Former Class B Portion of CBR-Class B Balance | C26: E=C*D | D26: =+D20*D25 -> -1686.606812
B27: CBR-Class B Balance to be disposed to Current Class B Customers (if no Class A to Class B Transition Customers) | C27: F=D-E | D27: =+D25-D26 -> -280739.9809 | O27: s
B29: Allocation of CBR Class B Balances to Former Class B Customers
B31: # of Former Class B customer(s) | E31: 2
B32: Customer | D32: Total Metered kWh Consumption for each new Class A customer for the period prior to becoming Class A | E32: Metered kWh Consumption for each new Class A customer for the period prior to becoming Class A in 2016 | J32: % of kWh | K32: Customer specific CBR-Class B allocation for the period prior to becoming Class A | L32: Monthly Equal Payments
B33: Customer 1 | D33: =SUM(E33:I33) -> 27691474.85 | E33: ='6A. GA Allocation_Class A'!E32 -> 27691474.85 | J33: =IFERROR(+D33/$D$44,0) -> 0.7568272462 | K33: =+J33*$D$26 -> -1276.469989 | L33: =+K33/12 -> -106.3724991
B34: Customer 2 | D34: 8897423.067 | E34: ='6A. GA Allocation_Class A'!E33 -> 8897423.067 | J34: 0.2431727538 | K34: =+J34*$D$26 -> -410.136823 | L34: =+K34/12 -> -34.17806858
B35: Customer 3 | D35: 0 | E35: ='6A. GA Allocation_Class A'!E34 -> 0 | J35: 0 | K35: 0 | L35: 0
B36: Customer 4 | D36: 0 | E36: ='6A. GA Allocation_Class A'!E35 -> 0 | J36: 0 | K36: 0 | L36: 0
B37: Customer 5 | D37: 0 | E37: ='6A. GA Allocation_Class A'!E36 -> 0 | J37: 0 | K37: 0 | L37: 0
B38: Customer 6 | D38: 0 | E38: ='6A. GA Allocation_Class A'!E37 -> 0 | J38: 0 | K38: 0 | L38: 0
B39: Customer 7 | D39: 0 | E39: ='6A. GA Allocation_Class A'!E38 -> 0 | J39: 0 | K39: 0 | L39: 0
B40: Customer 8 | D40: 0 | E40: ='6A. GA Allocation_Class A'!E39 -> 0 | J40: 0 | K40: 0 | L40: 0
B41: Customer 9 | D41: 0 | E41: ='6A. GA Allocation_Class A'!E40 -> 0 | J41: 0 | K41: 0 | L41: 0
B42: Customer 10 | D42: 0 | E42: ='6A. GA Allocation_Class A'!E41 -> 0 | J42: 0 | K42: 0 | L42: 0
B43: Customer 11 | D43: 0 | E43: ='6A. GA Allocation_Class A'!E42 -> 0 | J43: 0 | K43: 0 | L43: 0
B44: Total | D44: =SUM(D33:D43) -> 36588897.92 | E44: =SUM(E33:E43) -> 36588897.92 | F44: =SUM(F33:F43) -> 0 | G44: =SUM(G33:G39) -> 0 | H44: 0 | I44: 0 | J44: =SUM(J33:J43) -> 1 | K44: =SUM(K33:K43) -> -1686.606812

Sheet 7B. CBR Allocation_new Class B
A1: Back to Index
B2: INCENTIVE REGULATION MODEL FOR 2018 FILERS
B12: This tab allocates the CBR-Class B balance to former Class A customers who contributed to the current CBR-Class B balance once switched to Class B customers. The tables below calculate specific amounts for each customer who made the transition. Consistent with both decisions for 2016 rates and EDDVAR, distributors are generally expected to settle the amount through 12 equal adjustments to bills. A one-time settlement is acceptable if the affected customer has expressed a clear preference for this approach. (see Filing Requirements section 3.2.5.2)
B14: Year of Group 1 Account Balance Last Disposed | C14: 2015
B16: Allocation of total Non-RPP consumption (kWh) between Class B and New Class B (Former Class A) customers
D17: Total | E17: 2016 | F17: 2015 | G17: 2014 | H17: 2013 | I17: 2012
B18: Total Class B Consumption for Years Since Last Disposition (Non-RPP consumption LESS WMP and Class A) | C18: A | D18: =SUM(E18:I18) -> 0
B19: New Class B Customer(s)' Consumption | C19: B | D19: =SUM(E19:I19) -> 0 | E19: =E45 -> 0 | F19: =F45 -> 0 | G19: =G45 -> 0 | H19: =H45 -> 0 | I19: =I45 -> 0
B20: Portion of Consumption of New Class B Customers | C20: C=B/A | D20: =IFERROR(+D19/D18,0) -> 0
B23: Allocation of Total CBR-Class B Balance $
B25: Total CBR-Calss B Balance adjusted for Class A | C25: D | D25: ='7. CBR Allocation'!C17 -> -282426.5877
B26: New Class B Customer(s)' Former Class A Portion of CBR-Class B Balance attributable to Class B | C26: E=C*D | D26: =D20*D25 -> 0
B27: New Class A Customer(s)' Former Class B Portion of CBR-Class B Balance | C27: F=Sheet 6A | D27: ='7A. CBR Allocation_Class A'!D26 -> -1686.606812
B28: CBR-Class B Balance to be disposed to Current Class B Customers | C28: G=D-E-F | D28: =+D25-D26-D27 -> -280739.9809 | E28: Input into Sheet 7. CBR Calculation | O28: s
B30: Allocation of CBR-Class B Balances to Former Class A Customers
B32: # of Former Class B customer(s) | E32: 2
B33: Customer | D33: Total Metered kWh Consumption for each new Class B customer for the period after becoming Class B | E33: Metered kWh Consumption for each new Class B customer for the period after becoming Class B in 2016 | J33: % of kWh | K33: Customer specific CBR-Class B allocation for the period after becoming Class B | L33: Monthly Equal Payments
B34: Customer 1 | D34: =SUM(E34:I34) -> 0 | E34: ='6B. GA Allocation_new Class B'!E33 -> 0 | J34: =IFERROR(+D34/$D$45,0) -> 0 | K34: =+J34*$D$26 -> 0 | L34: =+K34/12 -> 0
E35: ='6B. GA Allocation_new Class B'!E34 -> 0 | J35: 0 | K35: =+J35*$D$26 -> 0 | L35: =+K35/12 -> 0
E36: ='6B. GA Allocation_new Class B'!E35 -> 0 | J36: 0 | K36: 0 | L36: 0
E37: ='6B. GA Allocation_new Class B'!E36 -> 0 | J37: 0 | K37: 0 | L37: 0
E38: ='6B. GA Allocation_new Class B'!E37 -> 0 | J38: 0 | K38: 0 | L38: 0
E39: ='6B. GA Allocation_new Class B'!E38 -> 0 | J39: 0 | K39: 0 | L39: 0
E40: ='6B. GA Allocation_new Class B'!E39 -> 0 | J40: 0 | K40: 0 | L40: 0
E41: ='6B. GA Allocation_new Class B'!E40 -> 0 | J41: 0 | K41: 0 | L41: 0
E42: ='6B. GA Allocation_new Class B'!E41 -> 0 | J42: 0 | K42: 0 | L42: 0
E43: ='6B. GA Allocation_new Class B'!E42 -> 0 | J43: 0 | K43: 0 | L43: 0
E44: ='6B. GA Allocation_new Class B'!E43 -> 0 | J44: 0 | K44: 0 | L44: 0
B45: Total | D45: =SUM(D34:D44) -> 0 | E45: =SUM(E34:E44) -> 0 | F45: =SUM(F34:F44) -> 0 | G45: =SUM(G34:G40) -> 0 | H45: 0 | I45: 0 | J45: =SUM(J34:J44) -> 0 | K45: =SUM(K34:K44) -> 0

Sheet 8. Calculation of Def-Var RR
A1: Back to Index
B2: INCENTIVE REGULATION MODEL FOR 2018 FILERS
B11: Input required at cell D13 only. This workshseet calculates rate riders related to the Deferral/Variance Account Disposition (if applicable) and rate riders for Account 1568. Rate Riders will not be generated for the microFIT class.
B12: Default Rate Rider Recovery Period (in months) | D12: 12
B13: Proposed Rate Rider Recovery Period (in months) | D13: 12 | E13: =IF(D13>0, "Rate Rider Recovery to be used below", "If no rate rider recovery period is proposed then the default recovery period of 12 months will be used") -> Rate Rider Recovery to be used below
D15: Total Metered kWh | E15: Metered kW or kVA | F15: Total Metered kWh less WMP consumption | G15: Total Metered kW less WMP consumption | H15: Allocation of Group 1 Account Balances to All Classes 2 | I15: Allocation of Group 1 Account Balances to Non-WMP Classes Only (if Applicable) 2 | J15: Deferral/Variance Account Rate Rider 2 | K15: Deferral/Variance Account Rate Rider for Non-WMP (if applicable) 2 | L15: Account 1568 Rate Rider | Q15: Account 1568 Fixed RR
B16: Rate Class | C16: Unit | M16: Revenue Reconciliation: | O16: Revenue Reconcilation 1 | Q16: Fixed RR
B17: ='4. Billing Det. for Def-Var'!B17 -> RESIDENTIAL SERVICE CLASSIFICATION | C17: ='4. Billing Det. for Def-Var'!C17 -> kWh | D17: ='4. Billing Det. for Def-Var'!D17 -> 1532961311 | E17: ='4. Billing Det. for Def-Var'!E17 -> 0 | F17: ='4. Billing Det. for Def-Var'!J17 -> 1532961311 | G17: ='4. Billing Det. for Def-Var'!K17 -> 0 | H17: =SUM('5. Allocating Def-Var Balances'!G16:V16)-I17 -> -1142891.794 | J17: =IF(ISERROR(H17/D17),0,IF(OR(ISBLANK(D$13), OR(D$13=0, D$13="")), H17/D17/(D$12/12), H17/D17/(D$13/12))) -> -0.0007455451002 | K17: =IF(ISERROR(I17/F17),0,IF(OR(ISBLANK(D$13), OR(D$13=0, D$13="")), I17/F17/(D$12/12), I17/F17/(D$13/12))) -> 0 | L17: =IF(ISERROR('4. Billing Det. for Def-Var'!T17/D17), 0, IF(OR(ISBLANK(D$13), OR(D$13=0, D$13="")), ('4. Billing Det. for Def-Var'!T17/D17)/(D$12/12), ('4. Billing Det. for Def-Var'!T17/D17)/(D$13/12))) -> -0.0002203793727 | M17: =J17*D17 -> -1142891.794 | N17: =K17*F17 -> 0 | Q17: =(('4. Billing Det. for Def-Var'!T17/'4. Billing Det. for Def-Var'!U17)/12)*0 -> 0 | R17: -344680.5596 | S17: =+R17/D17 -> -0.0002248462222
B18: ='4. Billing Det. for Def-Var'!B18 -> GENERAL SERVICE LESS THAN 50 kW SERVICE CLASSIFICATION | C18: ='4. Billing Det. for Def-Var'!C18 -> kWh | D18: ='4. Billing Det. for Def-Var'!D18 -> 665390670.8 | E18: ='4. Billing Det. for Def-Var'!E18 -> 0 | F18: ='4. Billing Det. for Def-Var'!J18 -> 665390670.8 | G18: ='4. Billing Det. for Def-Var'!K18 -> 0 | H18: =SUM('5. Allocating Def-Var Balances'!G17:V17)-I18 -> -485717.3895 | J18: =IF(ISERROR(H18/D18),0,IF(OR(ISBLANK(D$13), OR(D$13=0, D$13="")), H18/D18/(D$12/12), H18/D18/(D$13/12))) -> -0.0007299732484 | K18: =IF(ISERROR(I18/F18),0,IF(OR(ISBLANK(D$13), OR(D$13=0, D$13="")), I18/F18/(D$12/12), I18/F18/(D$13/12))) -> 0 | L18: =IF(ISERROR('4. Billing Det. for Def-Var'!T18/D18), 0, IF(OR(ISBLANK(D$13), OR(D$13=0, D$13="")), ('4. Billing Det. for Def-Var'!T18/D18)/(D$12/12), ('4. Billing Det. for Def-Var'!T18/D18)/(D$13/12))) -> 0.00058600972 | M18: =J18*D18 -> -485717.3895 | N18: =K18*F18 -> 0 | R18: 368325.6779 | S18: =R18/D18 -> 0.0005535480043
B19: ='4. Billing Det. for Def-Var'!B19 -> GENERAL SERVICE 50 to 499 kW SERVICE CLASSIFICATION | C19: ='4. Billing Det. for Def-Var'!C19 -> kW | D19: ='4. Billing Det. for Def-Var'!D19 -> 2095056256 | E19: ='4. Billing Det. for Def-Var'!E19 -> 6021478.125 | F19: ='4. Billing Det. for Def-Var'!J19 -> 2094754134 | G19: ='4. Billing Det. for Def-Var'!K19 -> 6011344.375 | H19: =SUM('5. Allocating Def-Var Balances'!G18:V18)-I19 -> 605371.4866 | I19: ='5. Allocating Def-Var Balances'!I18+'5. Allocating Def-Var Balances'!N18 -> -2126543.631 | J19: =IF(ISERROR(H19/E19),0,IF(OR(ISBLANK(D$13), OR(D$13=0, D$13="")), H19/E19/(D$12/12), H19/E19/(D$13/12))) -> 0.1005353626 | K19: =IF(ISERROR(I19/G19),0,IF(OR(ISBLANK(D$13), OR(D$13=0, D$13="")), I19/G19/(D$12/12), I19/G19/(D$13/12))) -> -0.3537550834 | L19: =IF(ISERROR('4. Billing Det. for Def-Var'!T19/E19), 0, IF(OR(ISBLANK(D$13), OR(D$13=0, D$13="")), ('4. Billing Det. for Def-Var'!T19/E19)/(D$12/12), ('4. Billing Det. for Def-Var'!T19/E19)/(D$13/12))) -> 0.458460517 | M19: =J19*E19 -> 605371.4866 | N19: =K19*G19 -> -2126543.631 | R19: 2658869.616 | S19: =R19/E19 -> 0.4415642739
B20: ='4. Billing Det. for Def-Var'!B20 -> GENERAL SERVICE 500 to 4,999 kW SERVICE CLASSIFICATION | C20: ='4. Billing Det. for Def-Var'!C20 -> kW | D20: ='4. Billing Det. for Def-Var'!D20 -> 2017241544 | E20: ='4. Billing Det. for Def-Var'!E20 -> 4578124.526 | F20: ='4. Billing Det. for Def-Var'!J20 -> 1999729958 | G20: ='4. Billing Det. for Def-Var'!K20 -> 4547012.336 | H20: =SUM('5. Allocating Def-Var Balances'!G19:V19)-I20 -> 582349.1133 | I20: ='5. Allocating Def-Var Balances'!I19+'5. Allocating Def-Var Balances'!N19 -> -2030077.39 | J20: =IF(ISERROR(H20/E20),0,IF(OR(ISBLANK(D$13), OR(D$13=0, D$13="")), H20/E20/(D$12/12), H20/E20/(D$13/12))) -> 0.1272025499 | K20: =IF(ISERROR(I20/G20),0,IF(OR(ISBLANK(D$13), OR(D$13=0, D$13="")), I20/G20/(D$12/12), I20/G20/(D$13/12))) -> -0.4464640164 | L20: =IF(ISERROR('4. Billing Det. for Def-Var'!T20/E20), 0, IF(OR(ISBLANK(D$13), OR(D$13=0, D$13="")), ('4. Billing Det. for Def-Var'!T20/E20)/(D$12/12), ('4. Billing Det. for Def-Var'!T20/E20)/(D$13/12))) -> 0.1409977748 | M20: =J20*E20 -> 582349.1133 | N20: =K20*G20 -> -2030077.39 | R20: 621339.3228 | S20: =R20/E20 -> 0.1357191835
B21: ='4. Billing Det. for Def-Var'!B21 -> LARGE USE SERVICE CLASSIFICATION | C21: ='4. Billing Det. for Def-Var'!C21 -> kW | D21: ='4. Billing Det. for Def-Var'!D21 -> 989946990.7 | E21: ='4. Billing Det. for Def-Var'!E21 -> 1770337.046 | F21: ='4. Billing Det. for Def-Var'!J21 -> 989946990.7 | G21: ='4. Billing Det. for Def-Var'!K21 -> 1770337.046 | H21: =SUM('5. Allocating Def-Var Balances'!G20:V20)-I21 -> -717776.793 | J21: =IF(ISERROR(H21/E21),0,IF(OR(ISBLANK(D$13), OR(D$13=0, D$13="")), H21/E21/(D$12/12), H21/E21/(D$13/12))) -> -0.4054464062 | K21: =IF(ISERROR(I21/G21),0,IF(OR(ISBLANK(D$13), OR(D$13=0, D$13="")), I21/G21/(D$12/12), I21/G21/(D$13/12))) -> 0 | L21: =IF(ISERROR('4. Billing Det. for Def-Var'!T21/E21), 0, IF(OR(ISBLANK(D$13), OR(D$13=0, D$13="")), ('4. Billing Det. for Def-Var'!T21/E21)/(D$12/12), ('4. Billing Det. for Def-Var'!T21/E21)/(D$13/12))) -> 0.08800410168 | M21: =J21*E21 -> -717776.793 | N21: =K21*G21 -> 0 | R21: 156324.6113 | S21: =R21/E21 -> 0.08830217481
B22: ='4. Billing Det. for Def-Var'!B22 -> STANDBY POWER SERVICE CLASSIFICATION | C22: ='4. Billing Det. for Def-Var'!C22 -> kW | D22: ='4. Billing Det. for Def-Var'!D22 -> 0 | E22: ='4. Billing Det. for Def-Var'!E22 -> 0 | F22: ='4. Billing Det. for Def-Var'!J22 -> 0 | G22: ='4. Billing Det. for Def-Var'!K22 -> 0 | H22: =SUM('5. Allocating Def-Var Balances'!G21:V21)-I22 -> 0 | J22: =IF(ISERROR(H22/E22),0,IF(OR(ISBLANK(D$13), OR(D$13=0, D$13="")), H22/E22/(D$12/12), H22/E22/(D$13/12))) -> 0 | K22: 0 | L22: =IF(ISERROR('4. Billing Det. for Def-Var'!T22/D22), 0, IF(OR(ISBLANK(D$13), OR(D$13=0, D$13="")), ('4. Billing Det. for Def-Var'!T22/D22)/(D$12/12), ('4. Billing Det. for Def-Var'!T22/D22)/(D$13/12))) -> 0 | M22: =J22*E22 -> 0 | N22: =K22*G22 -> 0
B23: ='4. Billing Det. for Def-Var'!B23 -> UNMETERED SCATTERED LOAD SERVICE CLASSIFICATION | C23: ='4. Billing Det. for Def-Var'!C23 -> kWh | D23: ='4. Billing Det. for Def-Var'!D23 -> 11246373.87 | E23: ='4. Billing Det. for Def-Var'!E23 -> 0 | F23: ='4. Billing Det. for Def-Var'!J23 -> 11246373.87 | G23: ='4. Billing Det. for Def-Var'!K23 -> 0 | H23: =SUM('5. Allocating Def-Var Balances'!G22:V22)-I23 -> -8155.978283 | J23: =IF(ISERROR(H23/D23),0,IF(OR(ISBLANK(D$13), OR(D$13=0, D$13="")), H23/D23/(D$12/12), H23/D23/(D$13/12))) -> -0.0007252095986 | K23: =IF(ISERROR(I23/F23),0,IF(OR(ISBLANK(D$13), OR(D$13=0, D$13="")), I23/F23/(D$12/12), I23/F23/(D$13/12))) -> 0 | L23: =IF(ISERROR('4. Billing Det. for Def-Var'!T23/D23), 0, IF(OR(ISBLANK(D$13), OR(D$13=0, D$13="")), ('4. Billing Det. for Def-Var'!T23/D23)/(D$12/12), ('4. Billing Det. for Def-Var'!T23/D23)/(D$13/12))) -> 0 | M23: =J23*D23 -> -8155.978283 | N23: =K23*F23 -> 0
B24: ='4. Billing Det. for Def-Var'!B24 -> STREET LIGHTING SERVICE CLASSIFICATION | C24: ='4. Billing Det. for Def-Var'!C24 -> kW | D24: ='4. Billing Det. for Def-Var'!D24 -> 16413627.73 | E24: ='4. Billing Det. for Def-Var'!E24 -> 45704.17899 | F24: ='4. Billing Det. for Def-Var'!J24 -> 16413627.73 | G24: ='4. Billing Det. for Def-Var'!K24 -> 45704.17899 | H24: =SUM('5. Allocating Def-Var Balances'!G23:V23)-I24 -> -11955.21598 | J24: =IF(ISERROR(H24/E24),0,IF(OR(ISBLANK(D$13), OR(D$13=0, D$13="")), H24/E24/(D$12/12), H24/E24/(D$13/12))) -> -0.2615781804 | K24: =IF(ISERROR(I24/G24),0,IF(OR(ISBLANK(D$13), OR(D$13=0, D$13="")), I24/G24/(D$12/12), I24/G24/(D$13/12))) -> 0 | L24: =IF(ISERROR('4. Billing Det. for Def-Var'!T24/E24), 0, IF(OR(ISBLANK(D$13), OR(D$13=0, D$13="")), ('4. Billing Det. for Def-Var'!T24/E24)/(D$12/12), ('4. Billing Det. for Def-Var'!T24/E24)/(D$13/12))) -> -33.35315495 | M24: =J24*E24 -> -11955.21598 | N24: =K24*G24 -> 0 | R24: -1313772.625 | S24: =R24/E24 -> -28.74513128
M27: =SUM(M17:M26) -> -1178776.571 | N27: =SUM(N17:N26) -> -4156621.021 | O27: =SUM(M27:N27) -> -5335397.592
O28: =O27-'3. Continuity Schedule'!CD40+'7. CBR Allocation'!N34+'7A. CBR Allocation_Class A'!K44 -> 0.01220375231
B30: 1 When calculating the revenue reconciliation for distributors with Class A customers, the balances of sub-account 1580-CBR Class A and B will not be taken into consideration since the rate riders, if any, are calculated outside of the model.
B31: 2 Only for rate classes with WMP customers are the Deferral/Variance Account Rate Riders for Non-WMP (column H and J) calculated separately. For all rate classes without WMP customers, balances in account 1580 and 1588 are included in column H and disposed through a combined Deferral/Variance Account and Rate Rider.

Sheet 9. STS-Tax Change
A1: Back to Index | U1: Tax Rates | V1: Effective
B2: INCENTIVE REGULATION MODEL FOR 2018 FILERS | U2: Federal & Provincial | V2: 2016-01-01
U3: As of June 20, 2012
U5: Federal income tax | V5: 0.38
U6: General corporate rate | V6: -0.1
U7: Federal tax abatement | V7: =SUM(V5:V6) -> 0.28
U8: Adjusted federal rate | V8: -0.13
U9: Rate reduction | V9: =V7+V8 -> 0.15
U10: Ontario income tax | V10: 0.115
U12: Combined federal and Ontario | V12: =V9+V10 -> 0.265
B13: Summary - Sharing of Tax Change Forecast Amounts
U14: Federal & Ontario Small Business
B15: ="For the " & '1. Information Sheet'!G32 & " year, enter any Tax Credits from the Cost of Service Tax Calculation (Positive #)" -> For the 2013 year, enter any Tax Credits from the Cost of Service Tax Calculation (Positive #) | U15: Federal small business threshold | V15: 500000
U16: Ontario Small Business Threshold | V16: 500000
B18: 1. Tax Related Amounts Forecast from Capital Tax Rate Changes | M18: ='1. Information Sheet'!G32 -> 2013 | O18: 2018 | U18: Federal small business rate | V18: 0.105
B19: Taxable Capital (if you are not claiming capital tax, please enter your OEB-Approved Rate Base) | O19: =M19 -> 0
U20: Ontario small business rate | V20: 0.045
B21: Deduction from taxable capital up to $15,000,000 | O21: =M21 -> 0
B23: Net Taxable Capital | M23: =M19-M21 -> 0 | O23: =O19-O21 -> 0
B25: Rate | O25: 0 | U25: Ontario Tax Rate (Maximum 11.5%)
U26: Federal tax rate (Maximum 15%)
B27: Ontario Capital Tax (Deductible, not grossed-up) | M27: =IF(M23>0, M23*M25, 0)*181/365 -> 0 | O27: 0 | U27: Combined tax rate (Maximum 26.5%)
B29: 2. Tax Related Amounts Forecast from lncome Tax Rate Changes
B30: Regulatory Taxable Income | O30: =M30 -> 0
B32: Corporate Tax Rate | M32: ='[6]8. STS - Tax Change'!$L$32 -> 0.265 | O32: =IF(ratebase>15000000, 26.5%, IF(ratebase<10000000, 15%, 15%+11.5%*((ratebase-10000000)/5000000))) -> 0.15
B34: Tax Impact | M34: =M30*M32-M15 -> 0 | O34: =O30*O32-M15 -> 0
B36: Grossed-up Tax Amount | M36: =M34/(1-M32) -> 0 | O36: =O34/(1-O32) -> 0
B38: Tax Related Amounts Forecast from Capital Tax Rate Changes | M38: =M27 -> 0 | O38: =O27 -> 0
B40: Tax Related Amounts Forecast from lncome Tax Rate Changes | M40: =M36 -> 0 | O40: =O36 -> 0
B42: Total Tax Related Amounts | M42: =SUM(M40,M38) -> 0 | O42: =SUM(O40,O38) -> 0
B44: Incremental Tax Savings | O44: =O42-M42 -> 0
B46: Sharing of Tax Amount (50%) | O46: =0.5*O44 -> 0

Sheet 10. Shared Tax - RR
A1: Back to Index
B2: INCENTIVE REGULATION MODEL FOR 2018 FILERS
B12: Calculation of Rebased Revenue Requirement and Allocation of Tax Sharing Amount. Enter data from the last OEB-Approved Cost of Service application in columns D through I.
B13: As per Chapter 3 Filing Requirements, shared tax rate riders are based on a 1 year disposition.
B15: Rate Class | D15: Re-based Billed Customers or Connections | E15: Re-based Billed kWh | F15: Re-based Billed kW | G15: Re-based Service Charge | H15: Re-based Distribution Volumetric Rate kWh | I15: Re-based Distribution Volumetric Rate kW | J15: Service Charge Revenue | K15: Distribution Volumetric Rate Revenue kWh | L15: Distribution Volumetric Rate Revenue kW | M15: Revenue Requirement from Rates | N15: Service Charge % Revenue | O15: Distribution Volumetric Rate % Revenue kWh | P15: Distribution Volumetric Rate % Revenue kW | Q15: Total % Revenue
D16: A | E16: B | F16: C | G16: D | H16: E | I16: F | J16: G = A * D *12 | K16: H = B * E | L16: I = C * F | M16: J = G + H + I | N16: K = G / J | O16: L = H / J | P16: M = I / J | Q16: N = J / R
B17: ='4. Billing Det. for Def-Var'!B17 -> RESIDENTIAL SERVICE CLASSIFICATION | C17: ='4. Billing Det. for Def-Var'!C17 -> kWh | D17: 140979.1817 | E17: 1308264983 | F17: 0 | G17: 11.07 | H17: 0.0155 | I17: 0 | J17: =G17*D17*12 -> 18727674.5 | K17: =E17*H17 -> 20278107.24 | L17: =F17*I17 -> 0 | M17: =J17+K17+L17 -> 39005781.74 | N17: =IF(ISERROR(J17/M17),0,J17/M17) -> 0.4801256035 | O17: =IF(ISERROR(K17/M17),0,K17/M17) -> 0.5198743965 | P17: =IF(ISERROR(L17/M17),0,L17/M17) -> 0 | Q17: =IF(ISERROR(M17/M$30),0,M17/M$30) -> 0.5614328307
B18: ='4. Billing Det. for Def-Var'!B18 -> GENERAL SERVICE LESS THAN 50 kW SERVICE CLASSIFICATION | C18: ='4. Billing Det. for Def-Var'!C18 -> kWh | D18: 8989.460008 | E18: 354668870.3 | F18: 0 | G18: 24.39 | H18: 0.0161 | I18: 0 | J18: 2631035.155 | K18: 5710168.812 | L18: 0 | M18: 8341203.967 | N18: =IF(ISERROR(J18/M18),0,J18/M18) -> 0.3154263061 | O18: =IF(ISERROR(K18/M18),0,K18/M18) -> 0.6845736939 | P18: =IF(ISERROR(L18/M18),0,L18/M18) -> 0 | Q18: =IF(ISERROR(M18/M$30),0,M18/M$30) -> 0.1200597846
B19: ='4. Billing Det. for Def-Var'!B19 -> GENERAL SERVICE 50 to 499 kW SERVICE CLASSIFICATION | C19: ='4. Billing Det. for Def-Var'!C19 -> kW | D19: 1490.72449 | E19: 1064497599 | F19: 2979825.698 | G19: 121.18 | H19: 0 | I19: 2.7446 | J19: 2167751.925 | K19: 0 | L19: 8178429.611 | M19: 10346181.54 | N19: 0.2095219301 | O19: 0 | P19: =IF(ISERROR(L19/M19),0,L19/M19) -> 0.7904780699 | Q19: 0.1489185892
B20: ='4. Billing Det. for Def-Var'!B20 -> GENERAL SERVICE 500 to 4,999 kW SERVICE CLASSIFICATION | C20: ='4. Billing Det. for Def-Var'!C20 -> kW | D20: 114.6164114 | E20: 806154179.9 | F20: 1969146.402 | G20: 1093.35 | H20: 0 | I20: 3.1861 | J20: 1503790.241 | K20: 0 | L20: 6273897.352 | M20: 7777687.593 | N20: 0.1933467015 | O20: 0 | P20: 0.8066532985 | Q20: 0.1119487667
B21: ='4. Billing Det. for Def-Var'!B21 -> LARGE USE SERVICE CLASSIFICATION | C21: ='4. Billing Det. for Def-Var'!C21 -> kW | D21: 6 | E21: 382619513.4 | F21: 719987.0916 | G21: 4549.67 | H21: 0 | I21: 2.4122 | J21: 327576.24 | K21: 0 | L21: 1736752.862 | M21: 2064329.102 | N21: 0.1586841166 | O21: 0 | P21: 0.8413158834 | Q21: 0.02971308559
B22: ='4. Billing Det. for Def-Var'!B22 -> STANDBY POWER SERVICE CLASSIFICATION | C22: ='4. Billing Det. for Def-Var'!C22 -> kW | D22: 1 | E22: 0 | F22: 54580 | G22: 0 | H22: 0 | I22: 1.6224 | J22: 0 | K22: 0 | L22: 88550.592 | M22: 88550.592 | N22: 0 | O22: 0 | P22: 1 | Q22: 0.001274560009
B23: ='4. Billing Det. for Def-Var'!B23 -> UNMETERED SCATTERED LOAD SERVICE CLASSIFICATION | C23: ='4. Billing Det. for Def-Var'!C23 -> kWh | D23: 1561.718162 | E23: 5931732.904 | F23: 0 | G23: 1.05 | H23: 0.0192 | I23: 0 | J23: 19677.64884 | K23: 113889.2718 | L23: 0 | M23: 133566.9206 | N23: 0.1473242682 | O23: 0.8526757318 | P23: 0 | Q23: 0.001922506125
B24: ='4. Billing Det. for Def-Var'!B24 -> STREET LIGHTING SERVICE CLASSIFICATION | C24: ='4. Billing Det. for Def-Var'!C24 -> kW | D24: 22334.56352 | E24: 33306954.55 | F24: 100671.8914 | G24: 2.22 | H24: 0 | I24: 11.1563 | J24: 594992.7721 | K24: 0 | L24: 1123125.823 | M24: 1718118.595 | N24: 0.3463048325 | O24: 0 | P24: 0.6536951675 | Q24: 0.02472987703
J25: 0 | K25: 0 | L25: 0 | M25: 0 | N25: 0 | O25: 0 | P25: 0 | Q25: 0
J26: =G26*D26*12 -> 0 | K26: =E26*H26 -> 0 | L26: =F26*I26 -> 0 | M26: =J26+K26+L26 -> 0 | N26: =IF(ISERROR(J26/M26),0,J26/M26) -> 0 | O26: =IF(ISERROR(K26/M26),0,K26/M26) -> 0 | P26: =IF(ISERROR(L26/M26),0,L26/M26) -> 0 | Q26: 0
J27: 0 | K27: 0 | L27: 0 | M27: 0 | N27: 0 | O27: 0 | P27: 0 | Q27: 0
J28: 0 | K28: 0 | L28: 0 | M28: 0 | N28: 0 | O28: 0 | P28: 0 | Q28: 0
J29: 0 | K29: 0 | L29: 0 | M29: 0 | N29: 0 | O29: 0 | P29: 0 | Q29: 0
B30: Total | D30: =SUM(D17:D29) -> 175477.2643 | E30: =SUM(E17:E29) -> 3955443833 | F30: 5824211.083 | J30: =SUM(J17:J29) -> 25972498.48 | K30: =SUM(K17:K29) -> 26102165.32 | L30: 17400756.24 | M30: 69475420.05 | Q30: =SUM(Q17:Q29) -> 1
B33: Rate Class | D33: Total kWh (most recent RRR filing) | E33: Total kW (most recent RRR filing) | F33: Allocation of Tax Savings by Rate Class | G33: Distribution Rate Rider
B34: =B17 -> RESIDENTIAL SERVICE CLASSIFICATION | C34: kWh | D34: ='4. Billing Det. for Def-Var'!D17 -> 1532961311 | E34: ='4. Billing Det. for Def-Var'!E17 -> 0 | F34: =F$48*Q17 -> 0 | G34: =ROUND(F34/'4. Billing Det. for Def-Var'!U17,2) -> 0 | H34: $/Customer | I34: If the allocated tax sharing amount does not produce a rate rider in one or more rate class (except for the Standby rate class), a distributor is required to transfer the entire OEB-approved tax sharing amount into account 1595 for disposition at a later date (see Filing Requirements, Appendix B)
B35: GENERAL SERVICE LESS THAN 50 kW SERVICE CLASSIFICATION | C35: kWh | D35: ='4. Billing Det. for Def-Var'!D18 -> 665390670.8 | E35: ='4. Billing Det. for Def-Var'!E18 -> 0 | F35: 0 | G35: =IFERROR(ROUND(IF(E35<>0,F35/E35,F35/D35),4),"") -> 0 | H35: $/kWh
B36: GENERAL SERVICE 50 to 499 kW SERVICE CLASSIFICATION | C36: kW | D36: ='4. Billing Det. for Def-Var'!D19 -> 2095056256 | E36: ='4. Billing Det. for Def-Var'!E19 -> 6021478.125 | F36: 0 | G36: =IFERROR(ROUND(IF(E36<>0,F36/E36,F36/D36),4),"") -> 0 | H36: $/kW
B37: GENERAL SERVICE 500 to 4,999 kW SERVICE CLASSIFICATION | C37: kW | D37: ='4. Billing Det. for Def-Var'!D20 -> 2017241544 | E37: ='4. Billing Det. for Def-Var'!E20 -> 4578124.526 | F37: 0 | G37: 0 | H37: $/kW
B38: LARGE USE SERVICE CLASSIFICATION | C38: kW | D38: ='4. Billing Det. for Def-Var'!D21 -> 989946990.7 | E38: ='4. Billing Det. for Def-Var'!E21 -> 1770337.046 | F38: 0 | G38: 0 | H38: $/kWh
B39: STANDBY POWER SERVICE CLASSIFICATION | C39: kW | D39: ='4. Billing Det. for Def-Var'!D22 -> 0 | E39: ='4. Billing Det. for Def-Var'!E22 -> 0 | F39: 0 | H39: $/kWh
B40: UNMETERED SCATTERED LOAD SERVICE CLASSIFICATION | C40: kWh | D40: ='4. Billing Det. for Def-Var'!D23 -> 11246373.87 | E40: ='4. Billing Det. for Def-Var'!E23 -> 0 | F40: 0 | G40: 0 | H40: $/kW
B41: STREET LIGHTING SERVICE CLASSIFICATION | C41: kW | D41: ='4. Billing Det. for Def-Var'!D24 -> 16413627.73 | E41: ='4. Billing Det. for Def-Var'!E24 -> 45704.17899 | F41: 0 | G41: 0 | H41: $/kW
D42: ='4. Billing Det. for Def-Var'!D25 -> 0 | E42: ='4. Billing Det. for Def-Var'!E25 -> 0 | F42: 0 | H42: $/kWh
D43: ='4. Billing Det. for Def-Var'!D26 -> 0 | E43: ='4. Billing Det. for Def-Var'!E26 -> 0 | F43: =F$48*Q30 -> 0 | H43: $/kWh
D44: ='4. Billing Det. for Def-Var'!D27 -> 0 | E44: ='4. Billing Det. for Def-Var'!E27 -> 0 | F44: =F$48*Q31 -> 0 | H44: $/kW
F45: 0 | G45: =IFERROR(ROUND(IF(E45<>"",F45/E45,F45/D45),4),"") -> 
F46: 0
D48: =SUM(D34:D47) -> 7328256775 | E48: =SUM(E34:E47) -> 12415643.88 | F48: =ROUND('9. STS-Tax Change'!O46,2) -> 0

Sheet 11. RTSR - Current Rates
A1: Back to Index | B1: Back to Index | BA1: 1
B2: INCENTIVE REGULATION MODEL FOR 2018 FILERS
B13: Columns F and G must match the data from the most recent RRR filing. Rates have been imported from Tab 2. As well, the Loss Factor has been imported from "Model Specs" tab. If the data needs to be modified, please make the necessary adjustments and note the changes in your manager's summary.
B15: Rate Class | C15: Rate Description | D15: Unit | E15: Rate | F15: Non-Loss Adjusted Metered kWh | G15: Non-Loss Adjusted Metered kW | H15: Applicable Loss Factor | I15: Loss Adjusted Billed kWh
A16: R_TN | B16: ='Model Specs'!C15 -> RESIDENTIAL SERVICE CLASSIFICATION | C16: Retail Transmission Rate – Network Service Rate | D16: $/kWh | E16: =VLOOKUP(A16,RATES,4,FALSE) -> 0.0076 | F16: ='4. Billing Det. for Def-Var'!D17 -> 1532961311 | G16: 0 | H16: 1 | I16: =F16*H16 -> 1532961311
A17: R_TC | B17: =B16 -> RESIDENTIAL SERVICE CLASSIFICATION | C17: Retail Transmission Rate – Line and Transformation Connection Service Rate | D17: $/kWh | E17: 0.0063 | F17: =F16 -> 1532961311 | G17: 0 | H17: =H16 -> 1 | I17: =F17*H17 -> 1532961311
A18: GSL_TN | B18: ='Model Specs'!C16 -> GENERAL SERVICE LESS THAN 50 kW SERVICE CLASSIFICATION | C18: Retail Transmission Rate – Network Service Rate | D18: $/kWh | E18: 0.0071 | F18: ='4. Billing Det. for Def-Var'!D18 -> 665390670.8 | G18: 0 | H18: =H17 -> 1 | I18: 665390670.8
A19: GSL_TC | B19: =B18 -> GENERAL SERVICE LESS THAN 50 kW SERVICE CLASSIFICATION | C19: Retail Transmission Rate – Line and Transformation Connection Service Rate | D19: $/kWh | E19: 0.0057 | F19: =F18 -> 665390670.8 | G19: 0 | H19: 1 | I19: 665390670.8
A20: GS50_499_TN | B20: ='Model Specs'!C17 -> GENERAL SERVICE 50 to 499 kW SERVICE CLASSIFICATION | C20: Retail Transmission Rate – Network Service Rate | D20: $/kW | E20: 2.7431 | F20: ='4. Billing Det. for Def-Var'!D19 -> 2095056256 | G20: ='4. Billing Det. for Def-Var'!E19 -> 6021478.125 | H20: 1
A21: GS50_499_TC | B21: =B20 -> GENERAL SERVICE 50 to 499 kW SERVICE CLASSIFICATION | C21: Retail Transmission Rate – Line and Transformation Connection Service Rate | D21: $/kW | E21: 2.2543 | F21: =F20 -> 2095056256 | G21: =G20 -> 6021478.125 | H21: 1
A22: GS500_TN | B22: ='Model Specs'!C18 -> GENERAL SERVICE 500 to 4,999 kW SERVICE CLASSIFICATION | C22: Retail Transmission Rate – Network Service Rate | D22: $/kW | E22: 2.6539 | F22: ='4. Billing Det. for Def-Var'!D20 -> 2017241544 | G22: ='4. Billing Det. for Def-Var'!E20 -> 4578124.526 | H22: 1
A23: GS500_TC | B23: =B22 -> GENERAL SERVICE 500 to 4,999 kW SERVICE CLASSIFICATION | C23: Retail Transmission Rate – Line and Transformation Connection Service Rate | D23: $/kW | E23: 2.2059 | F23: =F22 -> 2017241544 | G23: =G22 -> 4578124.526 | H23: 1
A24: LU_TN | B24: ='Model Specs'!C19 -> LARGE USE SERVICE CLASSIFICATION | C24: Retail Transmission Rate – Network Service Rate – Interval Metered | D24: $/kW | E24: 2.832 | F24: ='4. Billing Det. for Def-Var'!D21 -> 989946990.7 | G24: ='4. Billing Det. for Def-Var'!E21 -> 1770337.046 | H24: 1
A25: LU_TC | B25: =B24 -> LARGE USE SERVICE CLASSIFICATION | C25: Retail Transmission Rate – Line and Transformation Connection Service Rate – Interval Metered | D25: $/kW | E25: 2.356 | F25: =F24 -> 989946990.7 | G25: =G24 -> 1770337.046 | H25: 1
A26: USL_TN | B26: ='Model Specs'!C21 -> UNMETERED SCATTERED LOAD SERVICE CLASSIFICATION | C26: Retail Transmission Rate – Network Service Rate | D26: $/kWh | E26: 0.0071 | F26: ='4. Billing Det. for Def-Var'!D23 -> 11246373.87 | G26: ='4. Billing Det. for Def-Var'!E23 -> 0 | H26: 1 | I26: 11246373.87
A27: USL_TC | B27: =B26 -> UNMETERED SCATTERED LOAD SERVICE CLASSIFICATION | C27: Retail Transmission Rate – Line and Transformation Connection Service Rate | D27: $/kWh | E27: 0.0057 | F27: =F26 -> 11246373.87 | G27: =G26 -> 0 | H27: 1 | I27: 11246373.87
A28: SL_TN | B28: ='4. Billing Det. for Def-Var'!B24 -> STREET LIGHTING SERVICE CLASSIFICATION | C28: Retail Transmission Rate – Network Service Rate | D28: $/kW | E28: 1.8997 | F28: ='4. Billing Det. for Def-Var'!D24 -> 16413627.73 | G28: ='4. Billing Det. for Def-Var'!E24 -> 45704.17899 | H28: 1
A29: SL_TC | B29: =B28 -> STREET LIGHTING SERVICE CLASSIFICATION | C29: Retail Transmission Rate – Line and Transformation Connection Service Rate | D29: $/kW | E29: 1.6301 | F29: =F28 -> 16413627.73 | G29: =G28 -> 45704.17899 | H29: 1

Sheet 12. RTSR-UTRs & Sub-Tx
A1: Back to Index
B2: INCENTIVE REGULATION MODEL FOR 2018 FILERS
B12: Uniform Transmission Rates | C12: Unit | E12: 2016 | H12: 2017 | J12: 2018
B14: Rate Description | E14: Rate | H14: Rate | J14: Rate
B16: Network Service Rate | C16: kW | E16: 3.66 | H16: 3.66 | J16: 3.61
B18: Line Connection Service Rate | C18: kW | E18: 0.87 | H18: 0.87 | J18: 0.95
B20: Transformation Connection Service Rate | C20: kW | E20: 2.02 | H20: 2.02 | J20: 2.34
B23: Hydro One Sub-Transmission Rates | C23: Unit | E23: 2016 | H23: 2017 | J23: 2018
E24: Jan - 2016 | F24: Feb - Dec 2016 | H24: Jan - Dec 2017
B27: Rate Description | E27: Rate | F27: Rate | H27: Rate | J27: Rate
B29: Network Service Rate | C29: kW | E29: 3.4121 | F29: 3.3396 | H29: 3.1942 | J29: =H29 -> 3.1942
B31: Line Connection Service Rate | C31: kW | E31: 0.7879 | F31: 0.7791 | H31: 0.771 | J31: =H31 -> 0.771
B33: Transformation Connection Service Rate | C33: kW | E33: 1.8018 | F33: 1.7713 | H33: 1.7493 | J33: =H33 -> 1.7493
B35: Both Line and Transformation Connection Service Rate | C35: kW | E35: =SUM(E33,E31) -> 2.5897 | F35: 2.5504 | H35: =SUM(H33,H31) -> 2.5203 | J35: =H35 -> 2.5203
B38: If needed, add extra host here. (I) | C38: Unit | E38: 2016 | H38: 2017 | J38: 2018
B42: Rate Description | E42: Rate | H42: Rate | J42: Rate
B44: Network Service Rate | C44: kW
B46: Line Connection Service Rate | C46: kW
B48: Transformation Connection Service Rate | C48: kW
B50: Both Line and Transformation Connection Service Rate | C50: kW | E50: =F48+F46 -> 0 | H50: =H48+H46 -> 0 | J50: =J48+J46 -> 0
B53: If needed, add extra host here. (II) | C53: Unit | E53: 2016 | H53: 2017 | J53: 2018
B57: Rate Description | E57: Rate | H57: Rate | J57: Rate
B59: Network Service Rate | C59: kW
B61: Line Connection Service Rate | C61: kW
B63: Transformation Connection Service Rate | C63: kW
B65: Both Line and Transformation Connection Service Rate | C65: kW | E65: =F63+F61 -> 0 | H65: =H63+H61 -> 0 | J65: =J63+J61 -> 0
E67: Historical 2016 | H67: Current 2017 | J67: Forecast 2018
B68: Low Voltage Switchgear Credit (if applicable, enter as a negative value) | C68: $

Sheet 13. RTSR-Historic Wholesale
A1: Back to Index
B2: INCENTIVE REGULATION MODEL FOR 2018 FILERS
B13: In the green shaded cells, enter billing detail for wholesale transmission for the same reporting period as the billing determinants on Tab 10. For Hydro One Sub-transmission Rates, if you are charged a combined Line and Transformer connection rate, please ensure that both the Line Connection and Transformation Connection columns are completed. If any of the Hydro One Sub-transmission rates (column E, I and M) are highlighted in orange, please double check the billing data entered in "Units Billed" and "Amount" columns. The highlighted rates do not match the Hydro One Sub-transmission rates approved for that time period. If data has been entered correctly, please provide explanation for the discrepancy in rates.
B16: IESO | D16: Network | H16: Line Connection | L16: Transformation Connection | P16: Total Line
B17: Month | D17: Units Billed | E17: Rate | F17: Amount | H17: Units Billed | I17: Rate | J17: Amount | L17: Units Billed | M17: Rate | N17: Amount | P17: Amount
B19: January | D19: 909983 | E19: =IF(D19<>0,F19/D19,0) -> 3.66 | F19: 3330537.78 | H19: 955745 | I19: =IF(H19<>0,J19/H19,0) -> 0.87 | J19: 831498.15 | L19: 955745 | M19: =IF(L19<>0,N19/L19,0) -> 2.02 | N19: 1930604.9 | P19: =J19+N19 -> 2762103.05
B20: February | D20: 889727 | E20: 3.66 | F20: 3256400.82 | H20: 910492 | I20: 0.87 | J20: 792128.04 | L20: 910492 | M20: 2.02 | N20: 1839193.84 | P20: 2631321.88
B21: March | D21: 871054 | E21: 3.66 | F21: 3188057.64 | H21: 902085 | I21: 0.87 | J21: 784813.95 | L21: 902085 | M21: 2.02 | N21: 1822211.7 | P21: 2607025.65
B22: April | D22: 811023 | E22: 3.66 | F22: 2968344.18 | H22: 881686 | I22: 0.87 | J22: 767066.82 | L22: 881686 | M22: 2.02 | N22: 1781005.72 | P22: 2548072.54
B23: May | D23: 988154 | E23: 3.66 | F23: 3616643.64 | H23: 1035888 | I23: 0.87 | J23: 901222.56 | L23: 1035888 | M23: 2.02 | N23: 2092493.76 | P23: 2993716.32
B24: June | D24: 1184897 | E24: 3.66 | F24: 4336723.02 | H24: 1218367 | I24: 0.87 | J24: 1059979.29 | L24: 1218367 | M24: 2.02 | N24: 2461101.34 | P24: 3521080.63
B25: July | D25: 1208141 | E25: 3.66 | F25: 4421796.06 | H25: 1256743 | I25: 0.87 | J25: 1093366.41 | L25: 1256743 | M25: 2.02 | N25: 2538620.86 | P25: 3631987.27
B26: August | D26: 1167958 | E26: 3.66 | F26: 4274726.28 | H26: 1242334 | I26: 0.8685987102 | J26: 1079089.71 | L26: 1242334 | M26: 2.016746431 | N26: 2505472.66 | P26: 3584562.37
B27: September | D27: 1208021 | E27: 3.66 | F27: 4421356.86 | H27: 1237875 | I27: 0.87 | J27: 1076951.25 | L27: 1237875 | M27: 2.02 | N27: 2500507.5 | P27: 3577458.75
B28: October | D28: 774872 | E28: 3.66 | F28: 2836031.52 | H28: 850858 | I28: 0.87 | J28: 740246.46 | L28: 850858 | M28: 2.02 | N28: 1718733.16 | P28: 2458979.62
B29: November | D29: 836840 | E29: 3.66 | F29: 3062834.4 | H29: 875371 | I29: 0.87 | J29: 761572.77 | L29: 875371 | M29: 2.02 | N29: 1768249.42 | P29: 2529822.19
B30: December | D30: 926036 | E30: 3.66 | F30: 3389291.76 | H30: 969415 | I30: 0.87 | J30: 843391.05 | L30: 969415 | M30: 2.02 | N30: 1958218.3 | P30: 2801609.35
B32: Total | D32: =SUM(D19:D30) -> 11776706 | E32: =IF(D32<>0,F32/D32,0) -> 3.66 | F32: =SUM(F19:F30) -> 43102743.96 | H32: =SUM(H19:H30) -> 12336859 | I32: =IF(H32<>0,J32/H32,0) -> 0.8698588887 | J32: =SUM(J19:J30) -> 10731326.46 | L32: =SUM(L19:L30) -> 12336859 | M32: =IF(L32<>0,N32/L32,0) -> 2.019672362 | N32: =SUM(N19:N30) -> 24916413.16 | P32: =SUM(P19:P30) -> 35647739.62
B34: Hydro One | D34: Network | H34: Line Connection | L34: Transformation Connection | P34: Total Line
B36: Month | D36: Units Billed | E36: Rate | F36: Amount | H36: Units Billed | I36: Rate | J36: Amount | L36: Units Billed | M36: Rate | N36: Amount | P36: Amount
B38: January | D38: 178326.2976 | E38: =IF(D38<>0,F38/D38,0) -> 3.4121 | F38: 608467.16 | H38: 152098.3203 | I38: =IF(H38<>0,J38/H38,0) -> 0.7879 | J38: 119838.2665 | L38: 178426.6419 | M38: =IF(L38<>0,N38/L38,0) -> 1.8018 | N38: 321489.1235 | P38: =J38+N38 -> 441327.39
B39: February | D39: 187237.7979 | E39: =IF(D39<>0,F39/D39,0) -> 3.3396 | F39: 625299.35 | H39: 160709.2574 | I39: 0.7791 | J39: 125208.5824 | L39: 187470.0094 | M39: 1.7713 | N39: 332065.6276 | P39: =J39+N39 -> 457274.21
B40: March | D40: 201294.5502 | E40: 3.3396 | F40: 672243.28 | H40: 209482.4184 | I40: 0.7791 | J40: 163207.7522 | L40: 235173.3573 | M40: 1.7713 | N40: 416562.5678 | P40: 579770.32
B41: April | D41: 174377.3176 | E41: 3.3396 | F41: 582350.49 | H41: 149087.2883 | I41: 0.7791 | J41: 116153.9063 | L41: 174564.4802 | M41: 1.7713 | N41: 309206.0637 | P41: 425359.97
B42: May | D42: 195440.8223 | E42: 3.3396 | F42: 652694.17 | H42: 169523.7806 | I42: 0.7791 | J42: 132075.9775 | L42: 196324.0629 | M42: 1.7713 | N42: 347748.8125 | P42: 479824.79
B43: June | D43: 203970.3198 | E43: 3.3396 | F43: 681179.28 | H43: 176512.6019 | I43: 0.7791 | J43: 137520.9682 | L43: 203970.3223 | M43: 1.7713 | N43: 361292.6318 | P43: 498813.6
B44: July | D44: 207956.1564 | E44: 3.3396 | F44: 694490.38 | H44: 224815.131 | I44: 0.7791 | J44: 175153.4685 | L44: 252245.6227 | M44: 1.7713 | N44: 446802.6715 | P44: 621956.14
B45: August | D45: 203838.0884 | E45: 3.3396 | F45: 680737.68 | H45: 220353.0701 | I45: 0.7791 | J45: 171677.0769 | L45: 247194.5199 | M45: 1.7713 | N45: 437855.6531 | P45: 609532.73
B46: September | D46: 214743.2806 | E46: 3.3396 | F46: 717156.66 | H46: 187625.2313 | I46: 0.7791 | J46: 146178.8177 | L46: 216654.6222 | M46: 1.7713 | N46: 383760.3323 | P46: 529939.15
B47: October | D47: 189010.8576 | E47: 3.3396 | F47: 631220.66 | H47: 164023.659 | I47: 0.7791 | J47: 127790.8328 | L47: 189249.7585 | M47: 1.7713 | N47: 335218.0972 | P47: 463008.93
B48: November | D48: 189337.6812 | E48: 3.3396 | F48: 632312.12 | H48: 164029.8777 | I48: 0.7791 | J48: 127795.6777 | L48: 189337.6798 | M48: 1.7713 | N48: 335373.8323 | P48: 463169.51
B49: December | D49: 207026.0241 | E49: 3.3396 | F49: 691384.11 | H49: 178206.5009 | I49: 0.7791 | J49: 138840.6849 | L49: 208087.8536 | M49: 1.7713 | N49: 368586.0151 | P49: 507426.7
B51: Total | D51: =SUM(D38:D49) -> 2352559.194 | E51: =IF(D51<>0,F51/D51,0) -> 3.345095571 | F51: =SUM(F38:F49) -> 7869535.34 | H51: =SUM(H38:H49) -> 2156467.137 | I51: =IF(H51<>0,J51/H51,0) -> 0.779720675 | J51: =SUM(J38:J49) -> 1681442.012 | L51: =SUM(L38:L49) -> 2478698.931 | M51: =IF(L51<>0,N51/L51,0) -> 1.773495512 | N51: =SUM(N38:N49) -> 4395961.428 | P51: =SUM(P38:P49) -> 6077403.44
B53: Add Extra Host Here (I) | D53: Network | H53: Line Connection | L53: Transformation Connection | P53: Total Line
B54: (if needed)
B55: Month | D55: Units Billed | E55: Rate | F55: Amount | H55: Units Billed | I55: Rate | J55: Amount | L55: Units Billed | M55: Rate | N55: Amount | P55: Amount
B57: January | E57: =IF(D57<>0,F57/D57,0) -> 0 | I57: =IF(H57<>0,J57/H57,0) -> 0 | M57: =IF(L57<>0,N57/L57,0) -> 0 | P57: =J57+N57 -> 0
B58: February | E58: 0 | I58: 0 | M58: 0 | P58: 0
B59: March | E59: 0 | I59: 0 | M59: 0 | P59: 0
B60: April | E60: 0 | I60: 0 | M60: 0 | P60: 0
B61: May | E61: 0 | I61: 0 | M61: 0 | P61: 0
B62: June | E62: 0 | I62: 0 | M62: 0 | P62: 0
B63: July | E63: 0 | I63: 0 | M63: 0 | P63: 0
B64: August | E64: 0 | I64: 0 | M64: 0 | P64: 0
B65: September | E65: 0 | I65: 0 | M65: 0 | P65: 0
B66: October | E66: 0 | I66: 0 | M66: 0 | P66: 0
B67: November | E67: 0 | I67: 0 | M67: 0 | P67: 0
B68: December | E68: 0 | I68: 0 | M68: 0 | P68: 0
B70: Total | D70: =SUM(D57:D68) -> 0 | E70: =IF(D70<>0,F70/D70,0) -> 0 | F70: =SUM(F57:F68) -> 0 | H70: =SUM(H57:H68) -> 0 | I70: =IF(H70<>0,J70/H70,0) -> 0 | J70: =SUM(J57:J68) -> 0 | L70: =SUM(L57:L68) -> 0 | M70: =IF(L70<>0,N70/L70,0) -> 0 | N70: =SUM(N57:N68) -> 0 | P70: =SUM(P57:P68) -> 0
B72: Add Extra Host Here (II) | D72: Network | H72: Line Connection | L72: Transformation Connection | P72: Total Line
B73: (if needed)
B74: Month | D74: Units Billed | E74: Rate | F74: Amount | H74: Units Billed | I74: Rate | J74: Amount | L74: Units Billed | M74: Rate | N74: Amount | P74: Amount
B76: January | E76: =IF(D76<>0,F76/D76,0) -> 0 | I76: =IF(H76<>0,J76/H76,0) -> 0 | M76: =IF(L76<>0,N76/L76,0) -> 0 | P76: =J76+N76 -> 0
B77: February | E77: 0 | I77: 0 | M77: 0 | P77: 0
B78: March | E78: 0 | I78: 0 | M78: 0 | P78: 0
B79: April | E79: 0 | I79: 0 | M79: 0 | P79: 0
B80: May | E80: 0 | I80: 0 | M80: 0 | P80: 0
B81: June | E81: 0 | I81: 0 | M81: 0 | P81: 0
B82: July | E82: 0 | I82: 0 | M82: 0 | P82: 0
B83: August | E83: 0 | I83: 0 | M83: 0 | P83: 0
B84: September | E84: 0 | I84: 0 | M84: 0 | P84: 0
B85: October | E85: 0 | I85: 0 | M85: 0 | P85: 0
B86: November | E86: 0 | I86: 0 | M86: 0 | P86: 0
B87: December | E87: 0 | I87: 0 | M87: 0 | P87: 0
B89: Total | D89: =SUM(D76:D87) -> 0 | E89: =IF(D89<>0,F89/D89,0) -> 0 | F89: =SUM(F76:F87) -> 0 | H89: =SUM(H76:H87) -> 0 | I89: =IF(H89<>0,J89/H89,0) -> 0 | J89: =SUM(J76:J87) -> 0 | L89: =SUM(L76:L87) -> 0 | M89: =IF(L89<>0,N89/L89,0) -> 0 | N89: =SUM(N76:N87) -> 0 | P89: =SUM(P76:P87) -> 0
B91: Total | D91: Network | H91: Line Connection | L91: Transformation Connection | P91: Total Line
B93: Month | D93: Units Billed | E93: Rate | F93: Amount | H93: Units Billed | I93: Rate | J93: Amount | L93: Units Billed | M93: Rate | N93: Amount | P93: Amount
B95: January | D95: =D19+D38+D57+D76 -> 1088309.298 | E95: =IF(D95<>0,F95/D95,0) -> 3.619380032 | F95: =F19+F38+F57+F76 -> 3939004.94 | H95: =H19+H38+H57+H76 -> 1107843.32 | I95: =IF(H95<>0,J95/H95,0) -> 0.8587283049 | J95: =J19+J38+J57+J76 -> 951336.4165 | L95: =L19+L38+L57+L76 -> 1134171.642 | M95: =IF(L95<>0,N95/L95,0) -> 1.985673015 | N95: =N19+N38+N57+N76 -> 2252094.023 | P95: =J95+N95 -> 3203430.44
B96: February | D96: =D20+D39+D58+D77 -> 1076964.798 | E96: 3.604296238 | F96: =F20+F39+F58+F77 -> 3881700.17 | H96: =H20+H39+H58+H77 -> 1071201.257 | I96: 0.8563625333 | J96: =J20+J39+J58+J77 -> 917336.6224 | L96: =L20+L39+L58+L77 -> 1097962.009 | M96: 1.977536061 | N96: =N20+N39+N58+N77 -> 2171259.468 | P96: 3088596.09
B97: March | D97: 1072348.55 | E97: 3.59985652 | F97: 3860300.92 | H97: 1111567.418 | I97: 0.8528692785 | J97: 948021.7022 | L97: 1137258.357 | M97: 1.968571392 | N97: 2238774.268 | P97: 3186795.97
B98: April | D98: 985400.3176 | E98: 3.603301731 | F98: 3550694.67 | H98: 1030773.288 | I98: 0.8568525556 | J98: 883220.7263 | L98: 1056250.48 | M98: 1.978897831 | N98: 2090211.784 | P98: 2973432.51
B99: May | D99: 1183594.822 | E99: 3.607094024 | F99: 4269337.81 | H99: 1205411.781 | I99: 0.8572162261 | J99: 1033298.537 | L99: 1232212.063 | M99: 1.980375494 | N99: 2440242.573 | P99: 3473541.11
B100: June | D100: 1388867.32 | E100: 3.612945764 | F100: 5017902.3 | H100: 1394879.602 | I100: 0.8584972183 | J100: 1197500.258 | L100: 1422337.322 | M100: 1.98433517 | N100: 2822393.972 | P100: 4019894.23
B101: July | D101: 1416097.156 | E101: 3.612948742 | F101: 5116286.44 | H101: 1481558.131 | I101: 0.8562066192 | J101: 1268519.879 | L101: 1508988.623 | M101: 1.9784268 | N101: 2985423.531 | P101: 4253943.41
B102: August | D102: 1371796.088 | E102: 3.612391085 | F102: 4955463.96 | H102: 1462687.07 | I102: 0.8551157746 | J102: 1250766.787 | L102: 1489528.52 | M102: 1.976013399 | N102: 2943328.313 | P102: 4194095.1
B103: September | D103: 1422764.281 | E103: 3.611640797 | F103: 5138513.52 | H103: 1425500.231 | I103: 0.8580356852 | J103: 1223130.068 | L103: 1454529.622 | M103: 1.982955719 | N103: 2884267.832 | P103: 4107397.9
B104: October | D104: 963882.8576 | E104: 3.597171744 | F104: 3467252.18 | H104: 1014881.659 | I104: 0.8553088777 | J104: 868037.2928 | L104: 1040107.759 | M104: 1.97474852 | N104: 2053951.257 | P104: 2921988.55
B105: November | D105: 1026177.681 | E105: 3.600883734 | F105: 3695146.52 | H105: 1039400.878 | I105: 0.8556548939 | J105: 889368.4477 | L105: 1064708.68 | M105: 1.975773554 | N105: 2103623.252 | P105: 2992991.7
B106: December | D106: 1133062.024 | E106: 3.601458511 | F106: 4080675.87 | H106: 1147621.501 | I106: 0.8558847443 | J106: 982231.7349 | L106: 1177502.854 | M106: 1.976049831 | N106: 2326804.315 | P106: 3309036.05
B108: Total | D108: =SUM(D95:D106) -> 14129265.19 | E108: =IF(D108<>0,F108/D108,0) -> 3.607567598 | F108: =SUM(F95:F106) -> 50972279.3 | H108: =SUM(H95:H106) -> 14493326.14 | I108: =IF(H108<>0,J108/H108,0) -> 0.8564471919 | J108: =SUM(J95:J106) -> 12412768.47 | L108: =SUM(L95:L106) -> 14815557.93 | M108: =IF(L108<>0,N108/L108,0) -> 1.978486043 | N108: =SUM(N95:N106) -> 29312374.59 | P108: =SUM(P95:P106) -> 41725143.06
N110: Low Voltage Switchgear Credit (if applicable) | P110: ='12. RTSR-UTRs & Sub-Tx'!F68 -> 0
N112: Total including deduction for Low Voltage Switchgear Credit | P112: =P108+P110 -> 41725143.06

Sheet 14. RTSR-Current Wholesale
A1: Back to Index
B2: INCENTIVE REGULATION MODEL FOR 2018 FILERS
B13: The purpose of this sheet is to calculate the expected billing when current 2017 Uniform Transmission Rates are applied against historical 2016 transmission units.
B16: IESO | D16: Network | H16: Line Connection | L16: Transformation Connection | P16: Total Line
B18: Month | D18: Units Billed | E18: Rate | F18: Amount | H18: Units Billed | I18: Rate | J18: Amount | L18: Units Billed | M18: Rate | N18: Amount | P18: Amount
B20: January | D20: ='13. RTSR-Historic Wholesale'!D19 -> 909983 | E20: ='12. RTSR-UTRs & Sub-Tx'!H16 -> 3.66 | F20: =D20*E20 -> 3330537.78 | H20: ='13. RTSR-Historic Wholesale'!H19 -> 955745 | I20: ='12. RTSR-UTRs & Sub-Tx'!H18 -> 0.87 | J20: =H20*I20 -> 831498.15 | L20: ='13. RTSR-Historic Wholesale'!L19 -> 955745 | M20: ='12. RTSR-UTRs & Sub-Tx'!H20 -> 2.02 | N20: =L20*M20 -> 1930604.9 | P20: =J20+N20 -> 2762103.05
B21: February | D21: ='13. RTSR-Historic Wholesale'!D20 -> 889727 | E21: =E20 -> 3.66 | F21: =D21*E21 -> 3256400.82 | H21: ='13. RTSR-Historic Wholesale'!H20 -> 910492 | I21: =I20 -> 0.87 | J21: =H21*I21 -> 792128.04 | L21: ='13. RTSR-Historic Wholesale'!L20 -> 910492 | M21: =M20 -> 2.02 | N21: =L21*M21 -> 1839193.84 | P21: 2631321.88
B22: March | D22: ='13. RTSR-Historic Wholesale'!D21 -> 871054 | E22: =E21 -> 3.66 | F22: 3188057.64 | H22: ='13. RTSR-Historic Wholesale'!H21 -> 902085 | I22: =I21 -> 0.87 | J22: 784813.95 | L22: ='13. RTSR-Historic Wholesale'!L21 -> 902085 | M22: =M21 -> 2.02 | N22: 1822211.7 | P22: 2607025.65
B23: April | D23: ='13. RTSR-Historic Wholesale'!D22 -> 811023 | E23: 3.66 | F23: 2968344.18 | H23: ='13. RTSR-Historic Wholesale'!H22 -> 881686 | I23: 0.87 | J23: 767066.82 | L23: ='13. RTSR-Historic Wholesale'!L22 -> 881686 | M23: 2.02 | N23: 1781005.72 | P23: 2548072.54
B24: May | D24: ='13. RTSR-Historic Wholesale'!D23 -> 988154 | E24: 3.66 | F24: 3616643.64 | H24: ='13. RTSR-Historic Wholesale'!H23 -> 1035888 | I24: 0.87 | J24: 901222.56 | L24: ='13. RTSR-Historic Wholesale'!L23 -> 1035888 | M24: 2.02 | N24: 2092493.76 | P24: 2993716.32
B25: June | D25: ='13. RTSR-Historic Wholesale'!D24 -> 1184897 | E25: 3.66 | F25: 4336723.02 | H25: ='13. RTSR-Historic Wholesale'!H24 -> 1218367 | I25: 0.87 | J25: 1059979.29 | L25: ='13. RTSR-Historic Wholesale'!L24 -> 1218367 | M25: 2.02 | N25: 2461101.34 | P25: 3521080.63
B26: July | D26: ='13. RTSR-Historic Wholesale'!D25 -> 1208141 | E26: 3.66 | F26: 4421796.06 | H26: ='13. RTSR-Historic Wholesale'!H25 -> 1256743 | I26: 0.87 | J26: 1093366.41 | L26: ='13. RTSR-Historic Wholesale'!L25 -> 1256743 | M26: 2.02 | N26: 2538620.86 | P26: 3631987.27
B27: August | D27: ='13. RTSR-Historic Wholesale'!D26 -> 1167958 | E27: 3.66 | F27: 4274726.28 | H27: ='13. RTSR-Historic Wholesale'!H26 -> 1242334 | I27: 0.87 | J27: 1080830.58 | L27: ='13. RTSR-Historic Wholesale'!L26 -> 1242334 | M27: 2.02 | N27: 2509514.68 | P27: 3590345.26
B28: September | D28: ='13. RTSR-Historic Wholesale'!D27 -> 1208021 | E28: 3.66 | F28: 4421356.86 | H28: ='13. RTSR-Historic Wholesale'!H27 -> 1237875 | I28: 0.87 | J28: 1076951.25 | L28: ='13. RTSR-Historic Wholesale'!L27 -> 1237875 | M28: 2.02 | N28: 2500507.5 | P28: 3577458.75
B29: October | D29: ='13. RTSR-Historic Wholesale'!D28 -> 774872 | E29: 3.66 | F29: 2836031.52 | H29: ='13. RTSR-Historic Wholesale'!H28 -> 850858 | I29: 0.87 | J29: 740246.46 | L29: ='13. RTSR-Historic Wholesale'!L28 -> 850858 | M29: 2.02 | N29: 1718733.16 | P29: 2458979.62
B30: November | D30: ='13. RTSR-Historic Wholesale'!D29 -> 836840 | E30: 3.66 | F30: 3062834.4 | H30: ='13. RTSR-Historic Wholesale'!H29 -> 875371 | I30: 0.87 | J30: 761572.77 | L30: ='13. RTSR-Historic Wholesale'!L29 -> 875371 | M30: 2.02 | N30: 1768249.42 | P30: 2529822.19
B31: December | D31: ='13. RTSR-Historic Wholesale'!D30 -> 926036 | E31: 3.66 | F31: 3389291.76 | H31: ='13. RTSR-Historic Wholesale'!H30 -> 969415 | I31: 0.87 | J31: 843391.05 | L31: ='13. RTSR-Historic Wholesale'!L30 -> 969415 | M31: 2.02 | N31: 1958218.3 | P31: 2801609.35
B33: Total | D33: =SUM(D20:D31) -> 11776706 | E33: =IF(D33<>0,F33/D33,0) -> 3.66 | F33: =SUM(F20:F31) -> 43102743.96 | H33: =SUM(H20:H31) -> 12336859 | I33: =IF(H33<>0,J33/H33,0) -> 0.87 | J33: =SUM(J20:J31) -> 10733067.33 | L33: =SUM(L20:L31) -> 12336859 | M33: =IF(L33<>0,N33/L33,0) -> 2.02 | N33: =SUM(N20:N31) -> 24920455.18 | P33: =SUM(P20:P31) -> 35653522.51
B35: Hydro One | D35: Network | H35: Line Connection | L35: Transformation Connection | P35: Total Line
B37: Month | D37: Units Billed | E37: Rate | F37: Amount | H37: Units Billed | I37: Rate | J37: Amount | L37: Units Billed | M37: Rate | N37: Amount | P37: Amount
B39: January | D39: ='13. RTSR-Historic Wholesale'!D38 -> 178326.2976 | E39: ='12. RTSR-UTRs & Sub-Tx'!H29 -> 3.1942 | F39: =D39*E39 -> 569609.8598 | H39: ='13. RTSR-Historic Wholesale'!H38 -> 152098.3203 | I39: ='12. RTSR-UTRs & Sub-Tx'!H31 -> 0.771 | J39: =H39*I39 -> 117267.8049 | L39: ='13. RTSR-Historic Wholesale'!L38 -> 178426.6419 | M39: ='12. RTSR-UTRs & Sub-Tx'!H33 -> 1.7493 | N39: =L39*M39 -> 312121.7248 | P39: =J39+N39 -> 429389.5297
B40: February | D40: ='13. RTSR-Historic Wholesale'!D39 -> 187237.7979 | E40: =E39 -> 3.1942 | F40: =D40*E40 -> 598074.9742 | H40: ='13. RTSR-Historic Wholesale'!H39 -> 160709.2574 | I40: =I39 -> 0.771 | J40: =H40*I40 -> 123906.8374 | L40: ='13. RTSR-Historic Wholesale'!L39 -> 187470.0094 | M40: =M39 -> 1.7493 | N40: =L40*M40 -> 327941.2874 | P40: 451848.1248
B41: March | D41: ='13. RTSR-Historic Wholesale'!D40 -> 201294.5502 | E41: =E40 -> 3.1942 | F41: 642975.0524 | H41: ='13. RTSR-Historic Wholesale'!H40 -> 209482.4184 | I41: =I40 -> 0.771 | J41: 161510.9446 | L41: ='13. RTSR-Historic Wholesale'!L40 -> 235173.3573 | M41: =M40 -> 1.7493 | N41: 411388.7539 | P41: 572899.6985
B42: April | D42: ='13. RTSR-Historic Wholesale'!D41 -> 174377.3176 | E42: 3.1942 | F42: 556996.028 | H42: ='13. RTSR-Historic Wholesale'!H41 -> 149087.2883 | I42: 0.771 | J42: 114946.2993 | L42: ='13. RTSR-Historic Wholesale'!L41 -> 174564.4802 | M42: =M41 -> 1.7493 | N42: 305365.6451 | P42: 420311.9444
B43: May | D43: ='13. RTSR-Historic Wholesale'!D42 -> 195440.8223 | E43: 3.1942 | F43: 624277.0744 | H43: ='13. RTSR-Historic Wholesale'!H42 -> 169523.7806 | I43: 0.771 | J43: 130702.8348 | L43: ='13. RTSR-Historic Wholesale'!L42 -> 196324.0629 | M43: 1.7493 | N43: 343429.6832 | P43: 474132.518
B44: June | D44: ='13. RTSR-Historic Wholesale'!D43 -> 203970.3198 | E44: 3.1942 | F44: 651521.9955 | H44: ='13. RTSR-Historic Wholesale'!H43 -> 176512.6019 | I44: 0.771 | J44: 136091.2161 | L44: ='13. RTSR-Historic Wholesale'!L43 -> 203970.3223 | M44: 1.7493 | N44: 356805.2847 | P44: 492896.5008
B45: July | D45: ='13. RTSR-Historic Wholesale'!D44 -> 207956.1564 | E45: 3.1942 | F45: 664253.5549 | H45: ='13. RTSR-Historic Wholesale'!H44 -> 224815.131 | I45: 0.771 | J45: 173332.466 | L45: ='13. RTSR-Historic Wholesale'!L44 -> 252245.6227 | M45: 1.7493 | N45: 441253.2678 | P45: 614585.7337
B46: August | D46: ='13. RTSR-Historic Wholesale'!D45 -> 203838.0884 | E46: 3.1942 | F46: 651099.6219 | H46: ='13. RTSR-Historic Wholesale'!H45 -> 220353.0701 | I46: 0.771 | J46: 169892.2171 | L46: ='13. RTSR-Historic Wholesale'!L45 -> 247194.5199 | M46: 1.7493 | N46: 432417.3736 | P46: 602309.5907
B47: September | D47: ='13. RTSR-Historic Wholesale'!D46 -> 214743.2806 | E47: 3.1942 | F47: 685932.987 | H47: ='13. RTSR-Historic Wholesale'!H46 -> 187625.2313 | I47: 0.771 | J47: 144659.0534 | L47: ='13. RTSR-Historic Wholesale'!L46 -> 216654.6222 | M47: 1.7493 | N47: 378993.9306 | P47: 523652.9839
B48: October | D48: ='13. RTSR-Historic Wholesale'!D47 -> 189010.8576 | E48: 3.1942 | F48: 603738.4813 | H48: ='13. RTSR-Historic Wholesale'!H47 -> 164023.659 | I48: 0.771 | J48: 126462.2411 | L48: ='13. RTSR-Historic Wholesale'!L47 -> 189249.7585 | M48: 1.7493 | N48: 331054.6026 | P48: 457516.8437
B49: November | D49: ='13. RTSR-Historic Wholesale'!D48 -> 189337.6812 | E49: 3.1942 | F49: 604782.4212 | H49: ='13. RTSR-Historic Wholesale'!H48 -> 164029.8777 | I49: 0.771 | J49: 126467.0357 | L49: ='13. RTSR-Historic Wholesale'!L48 -> 189337.6798 | M49: 1.7493 | N49: 331208.4034 | P49: 457675.439
B50: December | D50: ='13. RTSR-Historic Wholesale'!D49 -> 207026.0241 | E50: 3.1942 | F50: 661282.5261 | H50: ='13. RTSR-Historic Wholesale'!H49 -> 178206.5009 | I50: 0.771 | J50: 137397.2122 | L50: ='13. RTSR-Historic Wholesale'!L49 -> 208087.8536 | M50: 1.7493 | N50: 364008.0823 | P50: 501405.2946
B52: Total | D52: =SUM(D39:D50) -> 2352559.194 | E52: =IF(D52<>0,F52/D52,0) -> 3.1942 | F52: =SUM(F39:F50) -> 7514544.577 | H52: =SUM(H39:H50) -> 2156467.137 | I52: =IF(H52<>0,J52/H52,0) -> 0.771 | J52: =SUM(J39:J50) -> 1662636.163 | L52: =SUM(L39:L50) -> 2478698.931 | M52: =IF(L52<>0,N52/L52,0) -> 1.7493 | N52: =SUM(N39:N50) -> 4335988.039 | P52: =SUM(P39:P50) -> 5998624.202
B54: ='[1]12. RTSR - Historical Wholesale'!B53 -> Add Extra Host Here (I) | D54: Network | H54: Line Connection | L54: Transformation Connection | P54: Total Line
B56: Month | D56: Units Billed | E56: Rate | F56: Amount | H56: Units Billed | I56: Rate | J56: Amount | L56: Units Billed | M56: Rate | N56: Amount | P56: Amount
B58: January | D58: ='13. RTSR-Historic Wholesale'!D57 -> 0 | E58: ='12. RTSR-UTRs & Sub-Tx'!H44 -> 0 | F58: =D58*E58 -> 0 | H58: ='13. RTSR-Historic Wholesale'!H57 -> 0 | I58: ='12. RTSR-UTRs & Sub-Tx'!H46 -> 0 | J58: =H58*I58 -> 0 | L58: ='13. RTSR-Historic Wholesale'!L57 -> 0 | M58: ='12. RTSR-UTRs & Sub-Tx'!H48 -> 0 | N58: =L58*M58 -> 0 | P58: =J58+N58 -> 0
B59: February | D59: ='13. RTSR-Historic Wholesale'!D58 -> 0 | E59: =E58 -> 0 | F59: =D59*E59 -> 0 | H59: ='13. RTSR-Historic Wholesale'!H58 -> 0 | I59: =I58 -> 0 | J59: =H59*I59 -> 0 | L59: ='13. RTSR-Historic Wholesale'!L58 -> 0 | M59: =M58 -> 0 | N59: =L59*M59 -> 0 | P59: 0
B60: March | D60: ='13. RTSR-Historic Wholesale'!D59 -> 0 | E60: =E59 -> 0 | F60: 0 | H60: ='13. RTSR-Historic Wholesale'!H59 -> 0 | I60: =I59 -> 0 | J60: 0 | L60: ='13. RTSR-Historic Wholesale'!L59 -> 0 | M60: =M59 -> 0 | N60: 0 | P60: 0
B61: April | D61: ='13. RTSR-Historic Wholesale'!D60 -> 0 | E61: 0 | F61: 0 | H61: ='13. RTSR-Historic Wholesale'!H60 -> 0 | I61: 0 | J61: 0 | L61: ='13. RTSR-Historic Wholesale'!L60 -> 0 | M61: 0 | N61: 0 | P61: 0
B62: May | D62: ='13. RTSR-Historic Wholesale'!D61 -> 0 | E62: 0 | F62: 0 | H62: ='13. RTSR-Historic Wholesale'!H61 -> 0 | I62: 0 | J62: 0 | L62: ='13. RTSR-Historic Wholesale'!L61 -> 0 | M62: 0 | N62: 0 | P62: 0
B63: June | D63: ='13. RTSR-Historic Wholesale'!D62 -> 0 | E63: 0 | F63: 0 | H63: ='13. RTSR-Historic Wholesale'!H62 -> 0 | I63: 0 | J63: 0 | L63: ='13. RTSR-Historic Wholesale'!L62 -> 0 | M63: 0 | N63: 0 | P63: 0
B64: July | D64: ='13. RTSR-Historic Wholesale'!D63 -> 0 | E64: 0 | F64: 0 | H64: ='13. RTSR-Historic Wholesale'!H63 -> 0 | I64: 0 | J64: 0 | L64: ='13. RTSR-Historic Wholesale'!L63 -> 0 | M64: 0 | N64: 0 | P64: 0
B65: August | D65: ='13. RTSR-Historic Wholesale'!D64 -> 0 | E65: 0 | F65: 0 | H65: ='13. RTSR-Historic Wholesale'!H64 -> 0 | I65: 0 | J65: 0 | L65: ='13. RTSR-Historic Wholesale'!L64 -> 0 | M65: 0 | N65: 0 | P65: 0
B66: September | D66: ='13. RTSR-Historic Wholesale'!D65 -> 0 | E66: 0 | F66: 0 | H66: ='13. RTSR-Historic Wholesale'!H65 -> 0 | I66: 0 | J66: 0 | L66: ='13. RTSR-Historic Wholesale'!L65 -> 0 | M66: 0 | N66: 0 | P66: 0
B67: October | D67: ='13. RTSR-Historic Wholesale'!D66 -> 0 | E67: 0 | F67: 0 | H67: ='13. RTSR-Historic Wholesale'!H66 -> 0 | I67: 0 | J67: 0 | L67: ='13. RTSR-Historic Wholesale'!L66 -> 0 | M67: 0 | N67: 0 | P67: 0
B68: November | D68: ='13. RTSR-Historic Wholesale'!D67 -> 0 | E68: 0 | F68: 0 | H68: ='13. RTSR-Historic Wholesale'!H67 -> 0 | I68: 0 | J68: 0 | L68: ='13. RTSR-Historic Wholesale'!L67 -> 0 | M68: 0 | N68: 0 | P68: 0
B69: December | D69: ='13. RTSR-Historic Wholesale'!D68 -> 0 | E69: 0 | F69: 0 | H69: ='13. RTSR-Historic Wholesale'!H68 -> 0 | I69: 0 | J69: 0 | L69: ='13. RTSR-Historic Wholesale'!L68 -> 0 | M69: 0 | N69: 0 | P69: 0
B71: Total | D71: =SUM(D58:D69) -> 0 | E71: =IF(D71<>0,F71/D71,0) -> 0 | F71: =SUM(F58:F69) -> 0 | H71: =SUM(H58:H69) -> 0 | I71: =IF(H71<>0,J71/H71,0) -> 0 | J71: =SUM(J58:J69) -> 0 | L71: =SUM(L58:L69) -> 0 | M71: =IF(L71<>0,N71/L71,0) -> 0 | N71: =SUM(N58:N69) -> 0 | P71: =SUM(P58:P69) -> 0
B73: ='[1]12. RTSR - Historical Wholesale'!B72 -> Add Extra Host Here (II) | D73: Network | H73: Line Connection | L73: Transformation Connection | P73: Total Line
B75: Month | D75: Units Billed | E75: Rate | F75: Amount | H75: Units Billed | I75: Rate | J75: Amount | L75: Units Billed | M75: Rate | N75: Amount | P75: Amount
B77: January | D77: ='13. RTSR-Historic Wholesale'!D76 -> 0 | E77: ='12. RTSR-UTRs & Sub-Tx'!H59 -> 0 | F77: =D77*E77 -> 0 | H77: ='13. RTSR-Historic Wholesale'!H76 -> 0 | I77: ='12. RTSR-UTRs & Sub-Tx'!H61 -> 0 | J77: =H77*I77 -> 0 | L77: ='13. RTSR-Historic Wholesale'!L76 -> 0 | M77: ='12. RTSR-UTRs & Sub-Tx'!H63 -> 0 | N77: =L77*M77 -> 0 | P77: =J77+N77 -> 0
B78: February | D78: ='13. RTSR-Historic Wholesale'!D77 -> 0 | E78: =E77 -> 0 | F78: =D78*E78 -> 0 | H78: ='13. RTSR-Historic Wholesale'!H77 -> 0 | I78: =I77 -> 0 | J78: =H78*I78 -> 0 | L78: ='13. RTSR-Historic Wholesale'!L77 -> 0 | M78: =M77 -> 0 | N78: =L78*M78 -> 0 | P78: 0
B79: March | D79: ='13. RTSR-Historic Wholesale'!D78 -> 0 | E79: =E78 -> 0 | F79: 0 | H79: ='13. RTSR-Historic Wholesale'!H78 -> 0 | I79: =I78 -> 0 | J79: 0 | L79: ='13. RTSR-Historic Wholesale'!L78 -> 0 | M79: =M78 -> 0 | N79: 0 | P79: 0
B80: April | D80: ='13. RTSR-Historic Wholesale'!D79 -> 0 | E80: 0 | F80: 0 | H80: ='13. RTSR-Historic Wholesale'!H79 -> 0 | I80: 0 | J80: 0 | L80: ='13. RTSR-Historic Wholesale'!L79 -> 0 | M80: =M79 -> 0 | N80: 0 | P80: 0
B81: May | D81: ='13. RTSR-Historic Wholesale'!D80 -> 0 | E81: 0 | F81: 0 | H81: ='13. RTSR-Historic Wholesale'!H80 -> 0 | I81: 0 | J81: 0 | L81: ='13. RTSR-Historic Wholesale'!L80 -> 0 | M81: 0 | N81: 0 | P81: 0
B82: June | D82: ='13. RTSR-Historic Wholesale'!D81 -> 0 | E82: 0 | F82: 0 | H82: ='13. RTSR-Historic Wholesale'!H81 -> 0 | I82: 0 | J82: 0 | L82: ='13. RTSR-Historic Wholesale'!L81 -> 0 | M82: 0 | N82: 0 | P82: 0
B83: July | D83: ='13. RTSR-Historic Wholesale'!D82 -> 0 | E83: 0 | F83: 0 | H83: ='13. RTSR-Historic Wholesale'!H82 -> 0 | I83: 0 | J83: 0 | L83: ='13. RTSR-Historic Wholesale'!L82 -> 0 | M83: 0 | N83: 0 | P83: 0
B84: August | D84: ='13. RTSR-Historic Wholesale'!D83 -> 0 | E84: 0 | F84: 0 | H84: ='13. RTSR-Historic Wholesale'!H83 -> 0 | I84: 0 | J84: 0 | L84: ='13. RTSR-Historic Wholesale'!L83 -> 0 | M84: 0 | N84: 0 | P84: 0
B85: September | D85: ='13. RTSR-Historic Wholesale'!D84 -> 0 | E85: 0 | F85: 0 | H85: ='13. RTSR-Historic Wholesale'!H84 -> 0 | I85: 0 | J85: 0 | L85: ='13. RTSR-Historic Wholesale'!L84 -> 0 | M85: 0 | N85: 0 | P85: 0
B86: October | D86: ='13. RTSR-Historic Wholesale'!D85 -> 0 | E86: 0 | F86: 0 | H86: ='13. RTSR-Historic Wholesale'!H85 -> 0 | I86: 0 | J86: 0 | L86: ='13. RTSR-Historic Wholesale'!L85 -> 0 | M86: 0 | N86: 0 | P86: 0
B87: November | D87: ='13. RTSR-Historic Wholesale'!D86 -> 0 | E87: 0 | F87: 0 | H87: ='13. RTSR-Historic Wholesale'!H86 -> 0 | I87: 0 | J87: 0 | L87: ='13. RTSR-Historic Wholesale'!L86 -> 0 | M87: 0 | N87: 0 | P87: 0
B88: December | D88: ='13. RTSR-Historic Wholesale'!D87 -> 0 | E88: 0 | F88: 0 | H88: ='13. RTSR-Historic Wholesale'!H87 -> 0 | I88: 0 | J88: 0 | L88: ='13. RTSR-Historic Wholesale'!L87 -> 0 | M88: 0 | N88: 0 | P88: 0
B90: Total | D90: =SUM(D77:D88) -> 0 | E90: =IF(D90<>0,F90/D90,0) -> 0 | F90: =SUM(F77:F88) -> 0 | H90: =SUM(H77:H88) -> 0 | I90: =IF(H90<>0,J90/H90,0) -> 0 | J90: =SUM(J77:J88) -> 0 | L90: =SUM(L77:L88) -> 0 | M90: =IF(L90<>0,N90/L90,0) -> 0 | N90: =SUM(N77:N88) -> 0 | P90: =SUM(P77:P88) -> 0
B92: Total | D92: Network | H92: Line Connection | L92: Transformation Connection | P92: Total Line
B94: Month | D94: Units Billed | E94: Rate | F94: Amount | H94: Units Billed | I94: Rate | J94: Amount | L94: Units Billed | M94: Rate | N94: Amount | P94: Amount
B96: January | D96: =D20+D39+D58+D77 -> 1088309.298 | E96: =IF(D96<>0,F96/D96,0) -> 3.583675751 | F96: =F20+F39+F58+F77 -> 3900147.64 | H96: =H20+H39+H58+H77 -> 1107843.32 | I96: =IF(H96<>0,J96/H96,0) -> 0.8564080656 | J96: =J20+J39+J58+J77 -> 948765.9549 | L96: =L20+L39+L58+L77 -> 1134171.642 | M96: =IF(L96<>0,N96/L96,0) -> 1.977413772 | N96: =N20+N39+N58+N77 -> 2242726.625 | P96: =J96+N96 -> 3191492.58
B97: February | D97: =D21+D40+D59+D78 -> 1076964.798 | E97: 3.57901744 | F97: =F21+F40+F59+F78 -> 3854475.794 | H97: =H21+H40+H59+H78 -> 1071201.257 | I97: 0.8551473135 | J97: =J21+J40+J59+J78 -> 916034.8774 | L97: =L21+L40+L59+L78 -> 1097962.009 | M97: 1.973779702 | N97: =N21+N40+N59+N78 -> 2167135.127 | P97: 3083170.005
B98: March | D98: 1072348.55 | E98: 3.572562943 | F98: 3831032.692 | H98: 1111567.418 | I98: 0.8513427786 | J98: 946324.8946 | L98: 1137258.357 | M98: 1.964022018 | N98: 2233600.454 | P98: 3179925.349
B99: April | D99: 985400.3176 | E99: 3.577571617 | F99: 3525340.208 | H99: 1030773.288 | I99: 0.8556810011 | J99: 882013.1193 | L99: 1056250.48 | M99: 1.975261933 | N99: 2086371.365 | P99: 2968384.484
B100: May | D100: 1183594.822 | E100: 3.583084882 | F100: 4240920.714 | H100: 1205411.781 | I100: 0.8560770779 | J100: 1031925.395 | L100: 1232212.063 | M100: 1.97687031 | N100: 2435923.443 | P100: 3467848.838
B101: June | D101: 1388867.32 | E101: 3.591592188 | F101: 4988245.016 | H101: 1394879.602 | I101: 0.857472218 | J101: 1196070.506 | L101: 1422337.322 | M101: 1.981180259 | N101: 2817906.625 | P101: 4013977.131
B102: July | D102: 1416097.156 | E102: 3.591596517 | F102: 5086049.615 | H102: 1481558.131 | I102: 0.8549775061 | J102: 1266698.876 | L102: 1508988.623 | M102: 1.974749235 | N102: 2979874.128 | P102: 4246573.004
B103: August | D103: 1371796.088 | E103: 3.590785791 | F103: 4925825.902 | H103: 1462687.07 | I103: 0.8550856999 | J103: 1250722.797 | L103: 1489528.52 | M103: 1.975076015 | N103: 2941932.054 | P103: 4192654.851
B104: September | D104: 1422764.281 | E104: 3.589695016 | F104: 5107289.847 | H104: 1425500.231 | I104: 0.8569695581 | J104: 1221610.303 | L104: 1454529.622 | M104: 1.979678782 | N104: 2879501.431 | P104: 4101111.734
B105: October | D105: 963882.8576 | E105: 3.568659795 | F105: 3439770.001 | H105: 1014881.659 | I105: 0.8539997678 | J105: 866708.7011 | L105: 1040107.759 | M105: 1.970745575 | N105: 2049787.763 | P105: 2916496.464
B106: November | D106: 1026177.681 | E106: 3.574056315 | F106: 3667616.821 | H106: 1039400.878 | I106: 0.8543766171 | J106: 888039.8057 | L106: 1064708.68 | M106: 1.971861283 | N106: 2099457.823 | P106: 2987497.629
B107: December | D107: 1133062.024 | E107: 3.57489193 | F107: 4050574.286 | H107: 1147621.501 | I107: 0.8546269492 | J107: 980788.2622 | L107: 1177502.854 | M107: 1.972162 | N107: 2322226.382 | P107: 3303014.645
B109: Total | D109: =SUM(D96:D107) -> 14129265.19 | E109: =IF(D109<>0,F109/D109,0) -> 3.582443095 | F109: =SUM(F96:F107) -> 50617288.54 | H109: =SUM(H96:H107) -> 14493326.14 | I109: =IF(H109<>0,J109/H109,0) -> 0.8552697549 | J109: =SUM(J96:J107) -> 12395703.49 | L109: =SUM(L96:L107) -> 14815557.93 | M109: =IF(L109<>0,N109/L109,0) -> 1.974710865 | N109: =SUM(N96:N107) -> 29256443.22 | P109: =SUM(P96:P107) -> 41652146.71
N111: Low Voltage Switchgear Credit (if applicable) | P111: ='12. RTSR-UTRs & Sub-Tx'!H68 -> 0
N113: Total including deduction for Low Voltage Switchgear Credit | P113: =P109+P111 -> 41652146.71

Sheet 15. RTSR-Forecast Wholesale
A1: Back to Index
B2: INCENTIVE REGULATION MODEL FOR 2018 FILERS
B13: The purpose of this sheet is to calculate the expected billing when forecasted 2018 Uniform Transmission Rates are applied against historical 2016 transmission units.
B16: IESO | D16: Network | H16: Line Connection | L16: Transformation Connection | P16: Total Line
B18: Month | D18: Units Billed | E18: Rate | F18: Amount | H18: Units Billed | I18: Rate | J18: Amount | L18: Units Billed | M18: Rate | N18: Amount | P18: Amount
B20: January | D20: ='13. RTSR-Historic Wholesale'!D19 -> 909983 | E20: ='12. RTSR-UTRs & Sub-Tx'!J16 -> 3.61 | F20: =D20*E20 -> 3285038.63 | H20: ='13. RTSR-Historic Wholesale'!H19 -> 955745 | I20: ='12. RTSR-UTRs & Sub-Tx'!J18 -> 0.95 | J20: =H20*I20 -> 907957.75 | L20: ='13. RTSR-Historic Wholesale'!L19 -> 955745 | M20: ='12. RTSR-UTRs & Sub-Tx'!J20 -> 2.34 | N20: =L20*M20 -> 2236443.3 | P20: =J20+N20 -> 3144401.05
B21: February | D21: ='13. RTSR-Historic Wholesale'!D20 -> 889727 | E21: =E20 -> 3.61 | F21: 3211914.47 | H21: ='13. RTSR-Historic Wholesale'!H20 -> 910492 | I21: =I20 -> 0.95 | J21: 864967.4 | L21: ='13. RTSR-Historic Wholesale'!L20 -> 910492 | M21: =M20 -> 2.34 | N21: 2130551.28 | P21: 2995518.68
B22: March | D22: ='13. RTSR-Historic Wholesale'!D21 -> 871054 | E22: 3.61 | F22: 3144504.94 | H22: ='13. RTSR-Historic Wholesale'!H21 -> 902085 | I22: 0.95 | J22: 856980.75 | L22: ='13. RTSR-Historic Wholesale'!L21 -> 902085 | M22: 2.34 | N22: 2110878.9 | P22: 2967859.65
B23: April | D23: ='13. RTSR-Historic Wholesale'!D22 -> 811023 | E23: 3.61 | F23: 2927793.03 | H23: ='13. RTSR-Historic Wholesale'!H22 -> 881686 | I23: 0.95 | J23: 837601.7 | L23: ='13. RTSR-Historic Wholesale'!L22 -> 881686 | M23: 2.34 | N23: 2063145.24 | P23: 2900746.94
B24: May | D24: ='13. RTSR-Historic Wholesale'!D23 -> 988154 | E24: 3.61 | F24: 3567235.94 | H24: ='13. RTSR-Historic Wholesale'!H23 -> 1035888 | I24: 0.95 | J24: 984093.6 | L24: ='13. RTSR-Historic Wholesale'!L23 -> 1035888 | M24: 2.34 | N24: 2423977.92 | P24: 3408071.52
B25: June | D25: ='13. RTSR-Historic Wholesale'!D24 -> 1184897 | E25: 3.61 | F25: 4277478.17 | H25: ='13. RTSR-Historic Wholesale'!H24 -> 1218367 | I25: 0.95 | J25: 1157448.65 | L25: ='13. RTSR-Historic Wholesale'!L24 -> 1218367 | M25: 2.34 | N25: 2850978.78 | P25: 4008427.43
B26: July | D26: ='13. RTSR-Historic Wholesale'!D25 -> 1208141 | E26: 3.61 | F26: 4361389.01 | H26: ='13. RTSR-Historic Wholesale'!H25 -> 1256743 | I26: 0.95 | J26: 1193905.85 | L26: ='13. RTSR-Historic Wholesale'!L25 -> 1256743 | M26: 2.34 | N26: 2940778.62 | P26: 4134684.47
B27: August | D27: ='13. RTSR-Historic Wholesale'!D26 -> 1167958 | E27: 3.61 | F27: 4216328.38 | H27: ='13. RTSR-Historic Wholesale'!H26 -> 1242334 | I27: 0.95 | J27: 1180217.3 | L27: ='13. RTSR-Historic Wholesale'!L26 -> 1242334 | M27: 2.34 | N27: 2907061.56 | P27: 4087278.86
B28: September | D28: ='13. RTSR-Historic Wholesale'!D27 -> 1208021 | E28: 3.61 | F28: 4360955.81 | H28: ='13. RTSR-Historic Wholesale'!H27 -> 1237875 | I28: 0.95 | J28: 1175981.25 | L28: ='13. RTSR-Historic Wholesale'!L27 -> 1237875 | M28: 2.34 | N28: 2896627.5 | P28: 4072608.75
B29: October | D29: ='13. RTSR-Historic Wholesale'!D28 -> 774872 | E29: 3.61 | F29: 2797287.92 | H29: ='13. RTSR-Historic Wholesale'!H28 -> 850858 | I29: 0.95 | J29: 808315.1 | L29: ='13. RTSR-Historic Wholesale'!L28 -> 850858 | M29: 2.34 | N29: 1991007.72 | P29: 2799322.82
B30: November | D30: ='13. RTSR-Historic Wholesale'!D29 -> 836840 | E30: 3.61 | F30: 3020992.4 | H30: ='13. RTSR-Historic Wholesale'!H29 -> 875371 | I30: 0.95 | J30: 831602.45 | L30: ='13. RTSR-Historic Wholesale'!L29 -> 875371 | M30: 2.34 | N30: 2048368.14 | P30: 2879970.59
B31: December | D31: ='13. RTSR-Historic Wholesale'!D30 -> 926036 | E31: 3.61 | F31: 3342989.96 | H31: ='13. RTSR-Historic Wholesale'!H30 -> 969415 | I31: 0.95 | J31: 920944.25 | L31: ='13. RTSR-Historic Wholesale'!L30 -> 969415 | M31: 2.34 | N31: 2268431.1 | P31: 3189375.35
B33: Total | D33: =SUM(D20:D31) -> 11776706 | E33: =IF(D33<>0,F33/D33,0) -> 3.61 | F33: =SUM(F20:F31) -> 42513908.66 | H33: =SUM(H20:H31) -> 12336859 | I33: =IF(H33<>0,J33/H33,0) -> 0.95 | J33: =SUM(J20:J31) -> 11720016.05 | L33: =SUM(L20:L31) -> 12336859 | M33: =IF(L33<>0,N33/L33,0) -> 2.34 | N33: =SUM(N20:N31) -> 28868250.06 | P33: =SUM(P20:P31) -> 40588266.11
B35: Hydro One | D35: Network | H35: Line Connection | L35: Transformation Connection | P35: Total Line
B37: Month | D37: Units Billed | E37: Rate | F37: Amount | H37: Units Billed | I37: Rate | J37: Amount | L37: Units Billed | M37: Rate | N37: Amount | P37: Amount
B39: January | D39: ='13. RTSR-Historic Wholesale'!D38 -> 178326.2976 | E39: ='12. RTSR-UTRs & Sub-Tx'!J29 -> 3.1942 | F39: =D39*E39 -> 569609.8598 | H39: ='13. RTSR-Historic Wholesale'!H38 -> 152098.3203 | I39: ='12. RTSR-UTRs & Sub-Tx'!J31 -> 0.771 | J39: =H39*I39 -> 117267.8049 | L39: ='13. RTSR-Historic Wholesale'!L38 -> 178426.6419 | M39: ='12. RTSR-UTRs & Sub-Tx'!J33 -> 1.7493 | N39: =L39*M39 -> 312121.7248 | P39: =J39+N39 -> 429389.5297
B40: February | D40: ='13. RTSR-Historic Wholesale'!D39 -> 187237.7979 | E40: =E39 -> 3.1942 | F40: 598074.9742 | H40: ='13. RTSR-Historic Wholesale'!H39 -> 160709.2574 | I40: =I39 -> 0.771 | J40: 123906.8374 | L40: ='13. RTSR-Historic Wholesale'!L39 -> 187470.0094 | M40: =M39 -> 1.7493 | N40: 327941.2874 | P40: 451848.1248
B41: March | D41: ='13. RTSR-Historic Wholesale'!D40 -> 201294.5502 | E41: 3.1942 | F41: 642975.0524 | H41: ='13. RTSR-Historic Wholesale'!H40 -> 209482.4184 | I41: 0.771 | J41: 161510.9446 | L41: ='13. RTSR-Historic Wholesale'!L40 -> 235173.3573 | M41: 1.7493 | N41: 411388.7539 | P41: 572899.6985
B42: April | D42: ='13. RTSR-Historic Wholesale'!D41 -> 174377.3176 | E42: 3.1942 | F42: 556996.028 | H42: ='13. RTSR-Historic Wholesale'!H41 -> 149087.2883 | I42: 0.771 | J42: 114946.2993 | L42: ='13. RTSR-Historic Wholesale'!L41 -> 174564.4802 | M42: 1.7493 | N42: 305365.6451 | P42: 420311.9444
B43: May | D43: ='13. RTSR-Historic Wholesale'!D42 -> 195440.8223 | E43: 3.1942 | F43: 624277.0744 | H43: ='13. RTSR-Historic Wholesale'!H42 -> 169523.7806 | I43: 0.771 | J43: 130702.8348 | L43: ='13. RTSR-Historic Wholesale'!L42 -> 196324.0629 | M43: 1.7493 | N43: 343429.6832 | P43: 474132.518
B44: June | D44: ='13. RTSR-Historic Wholesale'!D43 -> 203970.3198 | E44: 3.1942 | F44: 651521.9955 | H44: ='13. RTSR-Historic Wholesale'!H43 -> 176512.6019 | I44: 0.771 | J44: 136091.2161 | L44: ='13. RTSR-Historic Wholesale'!L43 -> 203970.3223 | M44: 1.7493 | N44: 356805.2847 | P44: 492896.5008
B45: July | D45: ='13. RTSR-Historic Wholesale'!D44 -> 207956.1564 | E45: 3.1942 | F45: 664253.5549 | H45: ='13. RTSR-Historic Wholesale'!H44 -> 224815.131 | I45: 0.771 | J45: 173332.466 | L45: ='13. RTSR-Historic Wholesale'!L44 -> 252245.6227 | M45: 1.7493 | N45: 441253.2678 | P45: 614585.7337
B46: August | D46: ='13. RTSR-Historic Wholesale'!D45 -> 203838.0884 | E46: 3.1942 | F46: 651099.6219 | H46: ='13. RTSR-Historic Wholesale'!H45 -> 220353.0701 | I46: 0.771 | J46: 169892.2171 | L46: ='13. RTSR-Historic Wholesale'!L45 -> 247194.5199 | M46: 1.7493 | N46: 432417.3736 | P46: 602309.5907
B47: September | D47: ='13. RTSR-Historic Wholesale'!D46 -> 214743.2806 | E47: 3.1942 | F47: 685932.987 | H47: ='13. RTSR-Historic Wholesale'!H46 -> 187625.2313 | I47: 0.771 | J47: 144659.0534 | L47: ='13. RTSR-Historic Wholesale'!L46 -> 216654.6222 | M47: 1.7493 | N47: 378993.9306 | P47: 523652.9839
B48: October | D48: ='13. RTSR-Historic Wholesale'!D47 -> 189010.8576 | E48: 3.1942 | F48: 603738.4813 | H48: ='13. RTSR-Historic Wholesale'!H47 -> 164023.659 | I48: 0.771 | J48: 126462.2411 | L48: ='13. RTSR-Historic Wholesale'!L47 -> 189249.7585 | M48: 1.7493 | N48: 331054.6026 | P48: 457516.8437
B49: November | D49: ='13. RTSR-Historic Wholesale'!D48 -> 189337.6812 | E49: 3.1942 | F49: 604782.4212 | H49: ='13. RTSR-Historic Wholesale'!H48 -> 164029.8777 | I49: 0.771 | J49: 126467.0357 | L49: ='13. RTSR-Historic Wholesale'!L48 -> 189337.6798 | M49: 1.7493 | N49: 331208.4034 | P49: 457675.439
B50: December | D50: ='13. RTSR-Historic Wholesale'!D49 -> 207026.0241 | E50: 3.1942 | F50: 661282.5261 | H50: ='13. RTSR-Historic Wholesale'!H49 -> 178206.5009 | I50: 0.771 | J50: 137397.2122 | L50: ='13. RTSR-Historic Wholesale'!L49 -> 208087.8536 | M50: 1.7493 | N50: 364008.0823 | P50: 501405.2946
B52: Total | D52: =SUM(D39:D50) -> 2352559.194 | E52: =IF(D52<>0,F52/D52,0) -> 3.1942 | F52: =SUM(F39:F50) -> 7514544.577 | H52: =SUM(H39:H50) -> 2156467.137 | I52: =IF(H52<>0,J52/H52,0) -> 0.771 | J52: =SUM(J39:J50) -> 1662636.163 | L52: =SUM(L39:L50) -> 2478698.931 | M52: =IF(L52<>0,N52/L52,0) -> 1.7493 | N52: =SUM(N39:N50) -> 4335988.039 | P52: =SUM(P39:P50) -> 5998624.202
B54: ='[1]12. RTSR - Historical Wholesale'!B53 -> Add Extra Host Here (I) | D54: Network | H54: Line Connection | L54: Transformation Connection | P54: Total Line
B56: Month | D56: Units Billed | E56: Rate | F56: Amount | H56: Units Billed | I56: Rate | J56: Amount | L56: Units Billed | M56: Rate | N56: Amount | P56: Amount
B58: January | D58: ='13. RTSR-Historic Wholesale'!D57 -> 0 | E58: ='12. RTSR-UTRs & Sub-Tx'!J44 -> 0 | F58: =D58*E58 -> 0 | H58: ='13. RTSR-Historic Wholesale'!H57 -> 0 | I58: ='12. RTSR-UTRs & Sub-Tx'!J46 -> 0 | J58: =H58*I58 -> 0 | L58: ='13. RTSR-Historic Wholesale'!L57 -> 0 | M58: ='12. RTSR-UTRs & Sub-Tx'!J48 -> 0 | N58: =L58*M58 -> 0 | P58: =J58+N58 -> 0
B59: February | D59: ='13. RTSR-Historic Wholesale'!D58 -> 0 | E59: =E58 -> 0 | F59: 0 | H59: ='13. RTSR-Historic Wholesale'!H58 -> 0 | I59: =I58 -> 0 | J59: 0 | L59: ='13. RTSR-Historic Wholesale'!L58 -> 0 | M59: =M58 -> 0 | N59: 0 | P59: 0
B60: March | D60: ='13. RTSR-Historic Wholesale'!D59 -> 0 | E60: 0 | F60: 0 | H60: ='13. RTSR-Historic Wholesale'!H59 -> 0 | I60: 0 | J60: 0 | L60: ='13. RTSR-Historic Wholesale'!L59 -> 0 | M60: 0 | N60: 0 | P60: 0
B61: April | D61: ='13. RTSR-Historic Wholesale'!D60 -> 0 | E61: 0 | F61: 0 | H61: ='13. RTSR-Historic Wholesale'!H60 -> 0 | I61: 0 | J61: 0 | L61: ='13. RTSR-Historic Wholesale'!L60 -> 0 | M61: 0 | N61: 0 | P61: 0
B62: May | D62: ='13. RTSR-Historic Wholesale'!D61 -> 0 | E62: 0 | F62: 0 | H62: ='13. RTSR-Historic Wholesale'!H61 -> 0 | I62: 0 | J62: 0 | L62: ='13. RTSR-Historic Wholesale'!L61 -> 0 | M62: 0 | N62: 0 | P62: 0
B63: June | D63: ='13. RTSR-Historic Wholesale'!D62 -> 0 | E63: 0 | F63: 0 | H63: ='13. RTSR-Historic Wholesale'!H62 -> 0 | I63: 0 | J63: 0 | L63: ='13. RTSR-Historic Wholesale'!L62 -> 0 | M63: 0 | N63: 0 | P63: 0
B64: July | D64: ='13. RTSR-Historic Wholesale'!D63 -> 0 | E64: 0 | F64: 0 | H64: ='13. RTSR-Historic Wholesale'!H63 -> 0 | I64: 0 | J64: 0 | L64: ='13. RTSR-Historic Wholesale'!L63 -> 0 | M64: 0 | N64: 0 | P64: 0
B65: August | D65: ='13. RTSR-Historic Wholesale'!D64 -> 0 | E65: 0 | F65: 0 | H65: ='13. RTSR-Historic Wholesale'!H64 -> 0 | I65: 0 | J65: 0 | L65: ='13. RTSR-Historic Wholesale'!L64 -> 0 | M65: 0 | N65: 0 | P65: 0
B66: September | D66: ='13. RTSR-Historic Wholesale'!D65 -> 0 | E66: 0 | F66: 0 | H66: ='13. RTSR-Historic Wholesale'!H65 -> 0 | I66: 0 | J66: 0 | L66: ='13. RTSR-Historic Wholesale'!L65 -> 0 | M66: 0 | N66: 0 | P66: 0
B67: October | D67: ='13. RTSR-Historic Wholesale'!D66 -> 0 | E67: 0 | F67: 0 | H67: ='13. RTSR-Historic Wholesale'!H66 -> 0 | I67: 0 | J67: 0 | L67: ='13. RTSR-Historic Wholesale'!L66 -> 0 | M67: 0 | N67: 0 | P67: 0
B68: November | D68: ='13. RTSR-Historic Wholesale'!D67 -> 0 | E68: 0 | F68: 0 | H68: ='13. RTSR-Historic Wholesale'!H67 -> 0 | I68: 0 | J68: 0 | L68: ='13. RTSR-Historic Wholesale'!L67 -> 0 | M68: 0 | N68: 0 | P68: 0
B69: December | D69: ='13. RTSR-Historic Wholesale'!D68 -> 0 | E69: 0 | F69: 0 | H69: ='13. RTSR-Historic Wholesale'!H68 -> 0 | I69: 0 | J69: 0 | L69: ='13. RTSR-Historic Wholesale'!L68 -> 0 | M69: 0 | N69: 0 | P69: 0
B71: Total | D71: =SUM(D58:D69) -> 0 | E71: =IF(D71<>0,F71/D71,0) -> 0 | F71: =SUM(F58:F69) -> 0 | H71: =SUM(H58:H69) -> 0 | I71: =IF(H71<>0,J71/H71,0) -> 0 | J71: =SUM(J58:J69) -> 0 | L71: =SUM(L58:L69) -> 0 | M71: =IF(L71<>0,N71/L71,0) -> 0 | N71: =SUM(N58:N69) -> 0 | P71: =SUM(P58:P69) -> 0
B73: ='[1]12. RTSR - Historical Wholesale'!B72 -> Add Extra Host Here (II) | D73: Network | H73: Line Connection | L73: Transformation Connection | P73: Total Line
B75: Month | D75: Units Billed | E75: Rate | F75: Amount | H75: Units Billed | I75: Rate | J75: Amount | L75: Units Billed | M75: Rate | N75: Amount | P75: Amount
B77: January | D77: ='13. RTSR-Historic Wholesale'!D76 -> 0 | E77: ='12. RTSR-UTRs & Sub-Tx'!J59 -> 0 | F77: =D77*E77 -> 0 | H77: ='13. RTSR-Historic Wholesale'!H76 -> 0 | I77: ='12. RTSR-UTRs & Sub-Tx'!J61 -> 0 | J77: =H77*I77 -> 0 | L77: ='13. RTSR-Historic Wholesale'!L76 -> 0 | M77: ='12. RTSR-UTRs & Sub-Tx'!J63 -> 0 | N77: =L77*M77 -> 0 | P77: =J77+N77 -> 0
B78: February | D78: ='13. RTSR-Historic Wholesale'!D77 -> 0 | E78: =E77 -> 0 | F78: 0 | H78: ='13. RTSR-Historic Wholesale'!H77 -> 0 | I78: =I77 -> 0 | J78: 0 | L78: ='13. RTSR-Historic Wholesale'!L77 -> 0 | M78: =M77 -> 0 | N78: 0 | P78: 0
B79: March | D79: ='13. RTSR-Historic Wholesale'!D78 -> 0 | E79: 0 | F79: 0 | H79: ='13. RTSR-Historic Wholesale'!H78 -> 0 | I79: 0 | J79: 0 | L79: ='13. RTSR-Historic Wholesale'!L78 -> 0 | M79: 0 | N79: 0 | P79: 0
B80: April | D80: ='13. RTSR-Historic Wholesale'!D79 -> 0 | E80: 0 | F80: 0 | H80: ='13. RTSR-Historic Wholesale'!H79 -> 0 | I80: 0 | J80: 0 | L80: ='13. RTSR-Historic Wholesale'!L79 -> 0 | M80: 0 | N80: 0 | P80: 0
B81: May | D81: ='13. RTSR-Historic Wholesale'!D80 -> 0 | E81: 0 | F81: 0 | H81: ='13. RTSR-Historic Wholesale'!H80 -> 0 | I81: 0 | J81: 0 | L81: ='13. RTSR-Historic Wholesale'!L80 -> 0 | M81: 0 | N81: 0 | P81: 0
B82: June | D82: ='13. RTSR-Historic Wholesale'!D81 -> 0 | E82: 0 | F82: 0 | H82: ='13. RTSR-Historic Wholesale'!H81 -> 0 | I82: 0 | J82: 0 | L82: ='13. RTSR-Historic Wholesale'!L81 -> 0 | M82: 0 | N82: 0 | P82: 0
B83: July | D83: ='13. RTSR-Historic Wholesale'!D82 -> 0 | E83: 0 | F83: 0 | H83: ='13. RTSR-Historic Wholesale'!H82 -> 0 | I83: 0 | J83: 0 | L83: ='13. RTSR-Historic Wholesale'!L82 -> 0 | M83: 0 | N83: 0 | P83: 0
B84: August | D84: ='13. RTSR-Historic Wholesale'!D83 -> 0 | E84: 0 | F84: 0 | H84: ='13. RTSR-Historic Wholesale'!H83 -> 0 | I84: 0 | J84: 0 | L84: ='13. RTSR-Historic Wholesale'!L83 -> 0 | M84: 0 | N84: 0 | P84: 0
B85: September | D85: ='13. RTSR-Historic Wholesale'!D84 -> 0 | E85: 0 | F85: 0 | H85: ='13. RTSR-Historic Wholesale'!H84 -> 0 | I85: 0 | J85: 0 | L85: ='13. RTSR-Historic Wholesale'!L84 -> 0 | M85: 0 | N85: 0 | P85: 0
B86: October | D86: ='13. RTSR-Historic Wholesale'!D85 -> 0 | E86: 0 | F86: 0 | H86: ='13. RTSR-Historic Wholesale'!H85 -> 0 | I86: 0 | J86: 0 | L86: ='13. RTSR-Historic Wholesale'!L85 -> 0 | M86: 0 | N86: 0 | P86: 0
B87: November | D87: ='13. RTSR-Historic Wholesale'!D86 -> 0 | E87: 0 | F87: 0 | H87: ='13. RTSR-Historic Wholesale'!H86 -> 0 | I87: 0 | J87: 0 | L87: ='13. RTSR-Historic Wholesale'!L86 -> 0 | M87: 0 | N87: 0 | P87: 0
B88: December | D88: ='13. RTSR-Historic Wholesale'!D87 -> 0 | E88: 0 | F88: 0 | H88: ='13. RTSR-Historic Wholesale'!H87 -> 0 | I88: 0 | J88: 0 | L88: ='13. RTSR-Historic Wholesale'!L87 -> 0 | M88: 0 | N88: 0 | P88: 0
L89: ='13. RTSR-Historic Wholesale'!L88 -> 0
B90: Total | D90: =SUM(D77:D88) -> 0 | E90: =IF(D90<>0,F90/D90,0) -> 0 | F90: =SUM(F77:F88) -> 0 | H90: =SUM(H77:H88) -> 0 | I90: =IF(H90<>0,J90/H90,0) -> 0 | J90: =SUM(J77:J88) -> 0 | L90: =SUM(L77:L88) -> 0 | M90: =IF(L90<>0,N90/L90,0) -> 0 | N90: =SUM(N77:N88) -> 0 | P90: =SUM(P77:P88) -> 0
B92: Total | D92: Network | H92: Line Connection | L92: Transformation Connection | P92: Total Line
B94: Month | D94: Units Billed | E94: Rate | F94: Amount | H94: Units Billed | I94: Rate | J94: Amount | L94: Units Billed | M94: Rate | N94: Amount | P94: Amount
B96: January | D96: =D20+D39+D58+D77 -> 1088309.298 | E96: =IF(D96<>0,F96/D96,0) -> 3.541868565 | F96: =F20+F39+F58+F77 -> 3854648.49 | H96: =H20+H39+H58+H77 -> 1107843.32 | I96: =IF(H96<>0,J96/H96,0) -> 0.9254246843 | J96: =J20+J39+J58+J77 -> 1025225.555 | L96: =L20+L39+L58+L77 -> 1134171.642 | M96: =IF(L96<>0,N96/L96,0) -> 2.247071722 | N96: =N20+N39+N58+N77 -> 2548565.025 | P96: =J96+N96 -> 3573790.58
B97: February | D97: =D21+D40+D59+D78 -> 1076964.798 | E97: 3.537710287 | F97: =F21+F40+F59+F78 -> 3809989.444 | H97: =H21+H40+H59+H78 -> 1071201.257 | I97: 0.9231451425 | J97: =J21+J40+J59+J78 -> 988874.2374 | L97: =L21+L40+L59+L78 -> 1097962.009 | M97: 2.239141743 | N97: =N21+N40+N59+N78 -> 2458492.567 | P97: 3447366.805
B98: March | D98: 1072348.55 | E98: 3.53194863 | F98: 3787479.992 | H98: 1111567.418 | I98: 0.9162662361 | J98: 1018491.695 | L98: 1137258.357 | M98: 2.217849302 | N98: 2522267.654 | P98: 3540759.349
B99: April | D99: 985400.3176 | E99: 3.536419662 | F99: 3484789.058 | H99: 1030773.288 | I99: 0.924110093 | J99: 952547.9993 | L99: 1056250.48 | M99: 2.24237615 | N99: 2368510.885 | P99: 3321058.884
B100: May | D100: 1183594.822 | E100: 3.541341121 | F100: 4191513.014 | H100: 1205411.781 | I100: 0.9248262318 | J100: 1114796.435 | L100: 1232212.063 | M100: 2.245885823 | N100: 2767407.603 | P100: 3882204.038
B101: June | D101: 1388867.32 | E101: 3.548935233 | F101: 4929000.166 | H101: 1394879.602 | I101: 0.9273487578 | J101: 1293539.866 | L101: 1422337.322 | M101: 2.25529065 | N101: 3207784.065 | P101: 4501323.931
B102: July | D102: 1416097.156 | E102: 3.548939098 | F102: 5025642.565 | H102: 1481558.131 | I102: 0.9228381171 | J102: 1367238.316 | L102: 1508988.623 | M102: 2.241257381 | N102: 3382031.888 | P102: 4749270.204
B103: August | D103: 1371796.088 | E103: 3.548215397 | F103: 4867428.002 | H103: 1462687.07 | I103: 0.9230337402 | J103: 1350109.517 | L103: 1489528.52 | M103: 2.241970455 | N103: 3339478.934 | P103: 4689588.451
B104: September | D104: 1422764.281 | E104: 3.547241708 | F104: 5046888.797 | H104: 1425500.231 | I104: 0.9264399081 | J104: 1320640.303 | L104: 1454529.622 | M104: 2.252014246 | N104: 3275621.431 | P104: 4596261.734
B105: October | D105: 963882.8576 | E105: 3.528464455 | F105: 3401026.401 | H105: 1014881.659 | I105: 0.9210702872 | J105: 934777.3411 | L105: 1040107.759 | M105: 2.232520913 | N105: 2322062.323 | P105: 3256839.664
B106: November | D106: 1026177.681 | E106: 3.533281699 | F106: 3625774.821 | H106: 1039400.878 | I106: 0.9217516612 | J106: 958069.4857 | L106: 1064708.68 | M106: 2.234955522 | N106: 2379576.543 | P106: 3337646.029
B107: December | D107: 1133062.024 | E107: 3.534027618 | F107: 4004272.486 | H107: 1147621.501 | I107: 0.9222042819 | J107: 1058341.462 | L107: 1177502.854 | M107: 2.235611722 | N107: 2632439.182 | P107: 3690780.645
B109: Total | D109: =SUM(D96:D107) -> 14129265.19 | E109: =IF(D109<>0,F109/D109,0) -> 3.540768225 | F109: =SUM(F96:F107) -> 50028453.24 | H109: =SUM(H96:H107) -> 14493326.14 | I109: =IF(H109<>0,J109/H109,0) -> 0.9233665265 | J109: =SUM(J96:J107) -> 13382652.21 | L109: =SUM(L96:L107) -> 14815557.93 | M109: =IF(L109<>0,N109/L109,0) -> 2.241173654 | N109: =SUM(N96:N107) -> 33204238.1 | P109: =SUM(P96:P107) -> 46586890.31
N111: Low Voltage Switchgear Credit (if applicable) | P111: ='12. RTSR-UTRs & Sub-Tx'!J68 -> 0
N113: Total including deduction for Low Voltage Switchgear Credit | P113: =P109+P111 -> 46586890.31

Sheet 16. RTSR-Rates to Forecast
A1: Back to Index | B1: Back to Index
B2: INCENTIVE REGULATION MODEL FOR 2018 FILERS
B13: The purpose of this table is to re-align the current RTS Network Rates to recover current wholesale network costs.
B15: Rate Class | C15: Rate Description | D15: Unit | E15: Current RTSR-Network | F15: Loss Adjusted Billed kWh | G15: Billed kW | H15: Billed Amount | I15: Billed Amount % | J15: Current Wholesale Billing | K15: Adjusted RTSR Network
A17: ='11. RTSR - Current Rates'!A16 -> R_TN | B17: ='4. Billing Det. for Def-Var'!B17 -> RESIDENTIAL SERVICE CLASSIFICATION | C17: =VLOOKUP(A17,RTSR,3,FALSE) -> Retail Transmission Rate – Network Service Rate | D17: =VLOOKUP(A17,RTSR,4,FALSE) -> $/kWh | E17: =VLOOKUP(A17,RATES,4,FALSE) -> 0.0076 | F17: =VLOOKUP(A17,RTSR,9,FALSE) -> 1532961311 | G17: =VLOOKUP(A17,RTSR,7,FALSE) -> 0 | H17: =IF(ISERROR(E17*F17), 0, ROUND(E17*F17, 2)) -> 11650505.96 | I17: =H17/SUM(H$17:H$26) -> 0.2319780533 | J17: =I17*total_wholesale_TN -> 11742100.06 | K17: =IF(ISERROR(J17/F17), 0, J17/F17) -> 0.007659749775
A18: ='11. RTSR - Current Rates'!A18 -> GSL_TN | B18: ='4. Billing Det. for Def-Var'!B18 -> GENERAL SERVICE LESS THAN 50 kW SERVICE CLASSIFICATION | C18: Retail Transmission Rate – Network Service Rate | D18: $/kWh | E18: =VLOOKUP(A18,RATES,4,FALSE) -> 0.0071 | F18: =VLOOKUP(A18,RTSR,9,FALSE) -> 665390670.8 | G18: =VLOOKUP(A18,RTSR,7,FALSE) -> 0 | H18: =IF(ISERROR(E18*F18), 0, ROUND(E18*F18, 2)) -> 4724273.76 | I18: =H18/SUM(H$17:H$26) -> 0.09406697304 | J18: =I18*total_wholesale_TN -> 4761415.116 | K18: =IF(ISERROR(J18/F18), 0, J18/F18) -> 0.007155818867
A19: ='11. RTSR - Current Rates'!A20 -> GS50_499_TN | B19: ='4. Billing Det. for Def-Var'!B19 -> GENERAL SERVICE 50 to 499 kW SERVICE CLASSIFICATION | C19: Retail Transmission Rate – Network Service Rate | D19: $/kW | E19: 2.7431 | F19: 0 | G19: 6021478.125 | H19: =IF(ISERROR(E19*G19), 0, ROUND(E19*G19, 2)) -> 16517516.65 | I19: 0.3288871205 | J19: 16647374.28 | K19: =IF(ISERROR(J19/G19), 0, J19/G19) -> 2.76466574
A20: ='11. RTSR - Current Rates'!A22 -> GS500_TN | B20: ='4. Billing Det. for Def-Var'!B20 -> GENERAL SERVICE 500 to 4,999 kW SERVICE CLASSIFICATION | C20: Retail Transmission Rate – Network Service Rate | D20: $/kW | E20: 2.6539 | F20: 0 | G20: 4578124.526 | H20: =IF(ISERROR(E20*G20), 0, ROUND(E20*G20, 2)) -> 12149884.68 | I20: 0.24192139 | J20: 12245404.8 | K20: =IF(ISERROR(J20/G20), 0, J20/G20) -> 2.674764465
A21: ='11. RTSR - Current Rates'!A24 -> LU_TN | B21: ='4. Billing Det. for Def-Var'!B21 -> LARGE USE SERVICE CLASSIFICATION | C21: Retail Transmission Rate – Network Service Rate – Interval Metered | D21: $/kW | E21: 2.832 | F21: 0 | G21: 1770337.046 | H21: 5013594.51 | I21: 0.09982775842 | J21: 5053010.452 | K21: 2.854264652
B22: ='4. Billing Det. for Def-Var'!B22 -> STANDBY POWER SERVICE CLASSIFICATION
A23: ='11. RTSR - Current Rates'!A26 -> USL_TN | B23: ='4. Billing Det. for Def-Var'!B23 -> UNMETERED SCATTERED LOAD SERVICE CLASSIFICATION | C23: Retail Transmission Rate – Network Service Rate | D23: $/kWh | E23: 0.0071 | F23: 11246373.87 | G23: 0 | H23: =IF(ISERROR(E23*F23), 0, ROUND(E23*F23, 2)) -> 79849.25 | I23: 0.001589911514 | J23: 80477.00986 | K23: =IF(ISERROR(J23/F23), 0, J23/F23) -> 0.007155818468
A24: SL_TN | B24: ='4. Billing Det. for Def-Var'!B24 -> STREET LIGHTING SERVICE CLASSIFICATION | C24: Retail Transmission Rate – Network Service Rate | D24: $/kW | E24: 1.8997 | F24: 0 | G24: 45704.17899 | H24: 86824.23 | I24: 0.001728793232 | J24: 87506.82585 | K24: 1.914635112
B27: The purpose of this table is to re-align the current RTS Connection Rates to recover current wholesale connection costs.
B28: Rate Class | C28: Rate Description | D28: Unit | E28: Current RTSR-Connection | F28: Loss Adjusted Billed kWh | G28: Billed kW | H28: Billed Amount | I28: Billed Amount % | J28: Current Wholesale Billing | K28: Adjusted RTSR-Connection
A30: R_TC | B30: =B17 -> RESIDENTIAL SERVICE CLASSIFICATION | C30: =VLOOKUP(A30,RTSR,3,FALSE) -> Retail Transmission Rate – Line and Transformation Connection Service Rate | D30: =VLOOKUP(A30,RTSR,4,FALSE) -> $/kWh | E30: =VLOOKUP(A30,RATES,4,FALSE) -> 0.0063 | F30: =F17 -> 1532961311 | G30: =G17 -> 0 | H30: =IF(ISERROR(E30*F30), 0, ROUND(E30*F30, 2)) -> 9657656.26 | I30: =H30/SUM(H$30:H$39) -> 0.2330908853 | J30: =I30*total_wholesale_LinePlus -> 9708735.753 | K30: =IF(ISERROR(J30/F30), 0, J30/F30) -> 0.006333320797
A31: GSL_TC | B31: =B18 -> GENERAL SERVICE LESS THAN 50 kW SERVICE CLASSIFICATION | C31: Retail Transmission Rate – Line and Transformation Connection Service Rate | D31: $/kWh | E31: 0.0057 | F31: =F18 -> 665390670.8 | G31: 0 | H31: =IF(ISERROR(E31*F31), 0, ROUND(E31*F31, 2)) -> 3792726.82 | I31: =H31/SUM(H$30:H$39) -> 0.09153877799 | J31: 3812786.611 | K31: =IF(ISERROR(J31/F31), 0, J31/F31) -> 0.005730147382
A32: GS50_499_TC | B32: GENERAL SERVICE 50 to 499 kW SERVICE CLASSIFICATION | C32: Retail Transmission Rate – Line and Transformation Connection Service Rate | D32: $/kW | E32: 2.2543 | F32: 0 | G32: 6021478.125 | H32: =IF(ISERROR(E32*G32), 0, ROUND(E32*G32, 2)) -> 13574218.14 | I32: 0.3276184655 | J32: 13646012.39 | K32: =IF(ISERROR(J32/G32), 0, J32/G32) -> 2.266223028
A33: GS500_TC | B33: GENERAL SERVICE 500 to 4,999 kW SERVICE CLASSIFICATION | C33: Retail Transmission Rate – Line and Transformation Connection Service Rate | D33: $/kW | E33: 2.2059 | F33: 0 | G33: 4578124.526 | H33: =IF(ISERROR(E33*G33), 0, ROUND(E33*G33, 2)) -> 10098884.89 | I33: 0.2437400914 | J33: 10152298.05 | K33: =IF(ISERROR(J33/G33), 0, J33/G33) -> 2.217567038
A34: LU_TC | B34: LARGE USE SERVICE CLASSIFICATION | C34: Retail Transmission Rate – Line and Transformation Connection Service Rate – Interval Metered | D34: $/kW | E34: 2.356 | F34: 0 | G34: 1770337.046 | H34: 4170914.08 | I34: 0.1006664588 | J34: 4192974.109 | K34: 2.36846092
B35: STANDBY POWER SERVICE CLASSIFICATION
A36: USL_TC | B36: UNMETERED SCATTERED LOAD SERVICE CLASSIFICATION | C36: Retail Transmission Rate – Line and Transformation Connection Service Rate | D36: $/kWh | E36: 0.0057 | F36: 11246373.87 | G36: 0 | H36: =IF(ISERROR(E36*F36), 0, ROUND(E36*F36, 2)) -> 64104.33 | I36: 0.001547180251 | J36: 64443.37879 | K36: =IF(ISERROR(J36/F36), 0, J36/F36) -> 0.005730147291
A37: SL_TC | B37: STREET LIGHTING SERVICE CLASSIFICATION | C37: Retail Transmission Rate – Line and Transformation Connection Service Rate | D37: $/kW | E37: 1.6301 | F37: 0 | G37: 45704.17899 | H37: 74502.38 | I37: 0.001798140796 | J37: 74896.42424 | K37: 1.638721576
B40: The purpose of this table is to update the re-aligned RTS Network Rates to recover future wholesale network costs.
B41: Rate Class | C41: Rate Description | D41: Unit | E41: Adjusted RTSR-Network | F41: Loss Adjusted Billed kWh | G41: Billed kW | H41: Billed Amount | I41: Billed Amount % | J41: Current Wholesale Billing | K41: Proposed RTSR-Network
A43: R_TN | B43: =B17 -> RESIDENTIAL SERVICE CLASSIFICATION | C43: =VLOOKUP(A43,RTSR,3,FALSE) -> Retail Transmission Rate – Network Service Rate | D43: =VLOOKUP(A43,RTSR,4,FALSE) -> $/kWh | E43: =K17 -> 0.007659749775 | F43: =VLOOKUP(A43,RTSR,9,FALSE) -> 1532961311 | G43: =VLOOKUP(A43,RTSR,7,FALSE) -> 0 | H43: =IF(ISERROR(E43*F43), 0, ROUND(E43*F43, 2)) -> 11742100.06 | I43: =H43/SUM(H$43:H$52) -> 0.2319780533 | J43: =I43*forecast_wholesale_TN -> 11605503.19 | K43: =IF(ISERROR(J43/F43), 0, J43/F43) -> 0.007570643242
A44: GSL_TN | B44: =B18 -> GENERAL SERVICE LESS THAN 50 kW SERVICE CLASSIFICATION | C44: Retail Transmission Rate – Network Service Rate | D44: $/kWh | E44: =K18 -> 0.007155818867 | F44: 665390670.8 | G44: 0 | H44: =IF(ISERROR(E44*F44), 0, ROUND(E44*F44, 2)) -> 4761415.12 | I44: =H44/SUM(H$43:H$52) -> 0.09406697309 | J44: 4706025.164 | K44: =IF(ISERROR(J44/F44), 0, J44/F44) -> 0.00707257461
A45: GS50_499_TN | B45: GENERAL SERVICE 50 to 499 kW SERVICE CLASSIFICATION | C45: Retail Transmission Rate – Network Service Rate | D45: $/kW | E45: 2.76466574 | F45: 0 | G45: 6021478.125 | H45: =IF(ISERROR(E45*G45), 0, ROUND(E45*G45, 2)) -> 16647374.28 | I45: 0.3288871205 | J45: 16453713.93 | K45: =IF(ISERROR(J45/G45), 0, J45/G45) -> 2.732504144
A46: GS500_TN | B46: GENERAL SERVICE 500 to 4,999 kW SERVICE CLASSIFICATION | C46: Retail Transmission Rate – Network Service Rate | D46: $/kW | E46: 2.674764465 | F46: 0 | G46: 4578124.526 | H46: =IF(ISERROR(E46*G46), 0, ROUND(E46*G46, 2)) -> 12245404.8 | I46: 0.2419213899 | J46: 12102952.94 | K46: =IF(ISERROR(J46/G46), 0, J46/G46) -> 2.643648698
A47: LU_TN | B47: LARGE USE SERVICE CLASSIFICATION | C47: Retail Transmission Rate – Network Service Rate – Interval Metered | D47: $/kW | E47: 2.854264652 | F47: 0 | G47: 1770337.046 | H47: 5053010.45 | I47: 0.09982775836 | J47: 4994228.341 | K47: 2.821060742
B48: STANDBY POWER SERVICE CLASSIFICATION
A49: USL_TN | B49: UNMETERED SCATTERED LOAD SERVICE CLASSIFICATION | C49: Retail Transmission Rate – Network Service Rate | D49: $/kWh | E49: 0.007155818468 | F49: 11246373.87 | G49: 0 | H49: =IF(ISERROR(E49*F49), 0, ROUND(E49*F49, 2)) -> 80477.01 | I49: 0.001589911517 | J49: 79540.81395 | K49: =IF(ISERROR(J49/F49), 0, J49/F49) -> 0.007072574222
A50: SL_TN | B50: STREET LIGHTING SERVICE CLASSIFICATION | C50: Retail Transmission Rate – Network Service Rate | D50: $/kW | E50: 1.914635112 | F50: 0 | G50: 45704.17899 | H50: 87506.83 | I50: 0.001728793314 | J50: 86488.85545 | K50: 1.892362085
B53: The purpose of this table is to update the re-aligned RTS Connection Rates to recover future wholesale connection costs.
B54: Rate Class | C54: Rate Description | D54: Unit | E54: Adjusted RTSR-Connection | F54: Loss Adjusted Billed kWh | G54: Billed kW | H54: Billed Amount | I54: Billed Amount % | J54: Current Wholesale Billing | K54: Proposed RTSR-Connection
A56: R_TC | B56: =B17 -> RESIDENTIAL SERVICE CLASSIFICATION | C56: =VLOOKUP(A56,RTSR,3,FALSE) -> Retail Transmission Rate – Line and Transformation Connection Service Rate | D56: =VLOOKUP(A56,RTSR,4,FALSE) -> $/kWh | E56: =K30 -> 0.006333320797 | F56: =VLOOKUP(A56,RTSR,9,FALSE) -> 1532961311 | G56: =VLOOKUP(A56,RTSR,7,FALSE) -> 0 | H56: =IF(ISERROR(E56*F56), 0, ROUND(E56*F56, 2)) -> 9708735.75 | I56: =H56/SUM(H$56:H$65) -> 0.2330908853 | J56: =I56*forecast_wholesale_LNPlus -> 10858979.5 | K56: =IF(ISERROR(J56/F56), 0, J56/F56) -> 0.007083661816
A57: GSL_TC | B57: =B18 -> GENERAL SERVICE LESS THAN 50 kW SERVICE CLASSIFICATION | C57: Retail Transmission Rate – Line and Transformation Connection Service Rate | D57: $/kWh | E57: =K31 -> 0.005730147382 | F57: 665390670.8 | G57: 0 | H57: =IF(ISERROR(E57*F57), 0, ROUND(E57*F57, 2)) -> 3812786.61 | I57: =H57/SUM(H$56:H$65) -> 0.09153877798 | J57: 4264507.009 | K57: =IF(ISERROR(J57/F57), 0, J57/F57) -> 0.006409027352
A58: GS50_499_TC | B58: GENERAL SERVICE 50 to 499 kW SERVICE CLASSIFICATION | C58: Retail Transmission Rate – Line and Transformation Connection Service Rate | D58: $/kW | E58: 2.266223028 | F58: 0 | G58: 6021478.125 | H58: =IF(ISERROR(E58*G58), 0, ROUND(E58*G58, 2)) -> 13646012.39 | I58: 0.3276184655 | J58: 15262725.52 | K58: =IF(ISERROR(J58/G58), 0, J58/G58) -> 2.534714102
A59: GS500_TC | B59: GENERAL SERVICE 500 to 4,999 kW SERVICE CLASSIFICATION | C59: Retail Transmission Rate – Line and Transformation Connection Service Rate | D59: $/kW | E59: 2.217567038 | F59: 0 | G59: 4578124.526 | H59: =IF(ISERROR(E59*G59), 0, ROUND(E59*G59, 2)) -> 10152298.05 | I59: 0.2437400915 | J59: 11355092.91 | K59: =IF(ISERROR(J59/G59), 0, J59/G59) -> 2.480293588
A60: LU_TC | B60: LARGE USE SERVICE CLASSIFICATION | C60: Retail Transmission Rate – Line and Transformation Connection Service Rate – Interval Metered | D60: $/kW | E60: 2.36846092 | F60: 0 | G60: 1770337.046 | H60: 4192974.11 | I60: 0.1006664588 | J60: 4689737.273 | K60: 2.649064643
B61: STANDBY POWER SERVICE CLASSIFICATION
A62: USL_TC | B62: UNMETERED SCATTERED LOAD SERVICE CLASSIFICATION | C62: Retail Transmission Rate – Line and Transformation Connection Service Rate | D62: $/kWh | E62: 0.005730147291 | F62: 11246373.87 | G62: 0 | H62: =IF(ISERROR(E62*F62), 0, ROUND(E62*F62, 2)) -> 64443.38 | I62: 0.00154718028 | J62: 72078.31799 | K62: =IF(ISERROR(J62/F62), 0, J62/F62) -> 0.006409027371
A63: SL_TC | B63: STREET LIGHTING SERVICE CLASSIFICATION | C63: Retail Transmission Rate – Line and Transformation Connection Service Rate | D63: $/kW | E63: 1.638721576 | F63: 0 | G63: 45704.17899 | H63: 74896.42 | I63: 0.001798140694 | J63: 83769.78329 | K63: 1.832869229

Sheet 17. Rev2Cost-GDPIPI
A1: Back to Index | C1: Back to Index | AA1: FALSE | AB1: 0 | AE1: NO
C2: INCENTIVE REGULATION MODEL FOR 2018 FILERS | S2: TRUE
C11: If applicable, please enter any adjustments related to the revenue to cost ratio model into columns C and E. The Price Escalator and Stretch Factor have been set at the 2016 values and will be updated by OEB staff at a later date.
C12: Price Escalator | D12: 0.012 | E12: Productivity Factor | F12: 0 | G12: # of Residential Customers (approved in the last CoS) | H12: 176865 | I12: Effective Year of Residential Rate Design Transition (yyyy) | J12: 2016
C13: Choose Stretch Factor Group | D13: III | E13: Price Cap Index | F13: =D12-F12-D14 -> 0.009 | G13: Billed kWh for Residential Class (approved in the last CoS) | H13: 1423857475 | I13: OEB-approved # of Transition Years | J13: 4
C14: Associated Stretch Factor Value | D14: =IF(D13="I", 0%, IF(D13="II", 0.15%, IF(D13="III", 0.3%, IF(D13="IV", 0.45%, 0.6%)))) -> 0.003 | G14: Rate Design Transition Years Left | H14: 2
C15: Rate Class | D15: Current MFC | E15: MFC Adjustment from R/C Model | F15: Current Volumetric Charge | G15: DVR Adjustment from R/C Model | H15: Price Cap Index to be Applied to MFC and DVR | I15: Proposed MFC | J15: Proposed Volumetric Charge
A17: R_F | B17: R_V | C17: ='4. Billing Det. for Def-Var'!B17 -> RESIDENTIAL SERVICE CLASSIFICATION | D17: =IFERROR(VLOOKUP(A17,RATES,4,FALSE),"") -> 19.11 | F17: =IFERROR(VLOOKUP(B17,RATES,4,FALSE),"") -> 0.0069 | H17: =F$13 -> 0.009 | I17: =J28*(1+F13) -> 21.61278 | J17: =J29*(1+F13) -> 0.0035315
A18: GSL_F | B18: GSL_V | C18: ='4. Billing Det. for Def-Var'!B18 -> GENERAL SERVICE LESS THAN 50 kW SERVICE CLASSIFICATION | D18: 43.6 | F18: 0.0127 | H18: =F$13 -> 0.009 | I18: =(D18+E18)*(1+F$13) -> 43.9924 | J18: =(F18+G18)*(1+F$13) -> 0.0128143
A19: GS50_499_F | B19: GS50_499_V | C19: ='4. Billing Det. for Def-Var'!B19 -> GENERAL SERVICE 50 to 499 kW SERVICE CLASSIFICATION | D19: 76.79 | F19: 4.6213 | H19: 0.009 | I19: =(D19+E19)*(1+F$13) -> 77.48111 | J19: =(F19+G19)*(1+F$13) -> 4.6628917
A20: GS500_F | B20: GS500_V | C20: ='4. Billing Det. for Def-Var'!B20 -> GENERAL SERVICE 500 to 4,999 kW SERVICE CLASSIFICATION | D20: 1748.68 | F20: 2.378 | H20: 0.009 | I20: =(D20+E20)*(1+F$13) -> 1764.41812 | J20: 2.399402
A21: LU_F | B21: LU_V | C21: ='4. Billing Det. for Def-Var'!B21 -> LARGE USE SERVICE CLASSIFICATION | D21: 13787.64 | F21: 2.9516 | H21: 0.009 | I21: 13911.72876 | J21: 2.9781644
A22: SB_F | C22: ='4. Billing Det. for Def-Var'!B22 -> STANDBY POWER SERVICE CLASSIFICATION | H22: 0.009 | I22: 0 | J22: 0
A23: USL_F | B23: USL_V | C23: ='4. Billing Det. for Def-Var'!B23 -> UNMETERED SCATTERED LOAD SERVICE CLASSIFICATION | D23: 9 | F23: 0.0164 | H23: 0.009 | I23: 9.081 | J23: 0.0165476
A24: SL_F | B24: SL_V | C24: ='4. Billing Det. for Def-Var'!B24 -> STREET LIGHTING SERVICE CLASSIFICATION | D24: 1.51 | F24: 11.5465 | H24: 0.009 | I24: 1.52359 | J24: 11.6504185
C25: microFIT SERVICE CLASSIFICATION | D25: 5.4 | H25: 0.009 | I25: =D25 -> 5.4 | J25: 0
C27: Rate Design Transition | E27: Revenue from Rates | F27: Current F/V Split | G27: Decoupling MFC Split | H27: Incremental Fixed Charge ($/month/year) | I27: New F/V Split | J27: Adjusted Rates1 | K27: Revenue at New F/V Split
C28: Current Residential Fixed Rate (inclusive of R/C adj.) | D28: =D17+E17 -> 19.11 | E28: =D28*COS_RES_CUSTOMERS*12 -> 40558681.8 | F28: =IF(ISERROR(E28/E30), 0, E28/E30) -> 0.8050025129 | G28: =IF(ISERROR((1-F28)/YRS_LEFT), 0, (1-F28)/YRS_LEFT) -> 0.09749874357 | H28: =IF(ISERROR(ROUND(G28*E30/COS_RES_CUSTOMERS/12, 2)), 0, ROUND(G28*E30/COS_RES_CUSTOMERS/12, 2)) -> 2.31 | I28: =G28+F28 -> 0.9025012564 | J28: =IF(ISERROR(ROUND(I28*E30/COS_RES_CUSTOMERS/12, 2)), 0, ROUND(I28*E30/COS_RES_CUSTOMERS/12, 2)) -> 21.42 | K28: =ROUND(J28*COS_RES_CUSTOMERS*12, 2) -> 45461379.6
C29: Current Residential Variable Rate (inclusive of R/C adj.) | D29: =F17+G17 -> 0.0069 | E29: =D29*COS_RES_KWH -> 9824616.578 | F29: =IF(ISERROR(E29/E30), 0, E29/E30) -> 0.1949974871 | I29: =1-I28 -> 0.09749874357 | J29: =IF(ISERROR(ROUND(I29*E30/COS_RES_KWH, 4)), 0, ROUND(I29*E30/COS_RES_KWH, 4)) -> 0.0035 | K29: =ROUND(J29*COS_RES_KWH, 2) -> 4983501.16
E30: =SUM(E28+E29) -> 50383298.38 | K30: =SUM(K28+K29) -> 50444880.76
C33: =IF((J28-D28)>=4, "The Rate Design Transition has calculated a monthly fixed charge greater than or equal to $4. Please refer to Section 3.2.3 of the Chapter 3 Filing Requirements for mitigation instructions.", "") -> 
C35: 1 These are the residential rates to which the Price Cap Index will be applied to.

Sheet 18. Regulatory Charges
A1: Back to Index
B2: INCENTIVE REGULATION MODEL FOR 2018 FILERS
C12: Update the following rates if an OEB Decision has been issued at the time of completing this application
E13: Proposed
C14: Wholesale Market Service Rate (WMS) - not including CBR | D14: $/kWh | E14: 0.0032
C15: Capacity Based Recovery (CBR) - Applicable for Class B Customers | D15: $/kWh | E15: 0.0004
C16: Rural or Remote Electricity Rate Protection Charge (RRRP) | D16: $/kWh | E16: 0.0003
C17: Standard Supply Service - Administrative Charge (if applicable) | D17: $ | E17: 0.25
C18: Ontario Electricity Support Program (OESP) | D18: $/kWh | E18: 0
C21: Time-of-Use RPP Prices
C22: As of | D22: 2017-07-01
C23: Off-Peak | D23: $/kWh | E23: 0.065
C24: Mid-Peak | D24: $/kWh | E24: 0.095
C25: On-Peak | D25: $/kWh | E25: 0.132
C28: Debt Retirement Charge (DRC)
C29: Debt Retirement Charge (DRC) | D29: $/kWh | E29: 0.007 | F29: If your utility's DRC differs from the value in Cell E29, please update this value.

Sheet 19. Additional Rates
A1: Back to Index | AB1: 3
B2: INCENTIVE REGULATION MODEL FOR 2018 FILERS
B11: In the Green Cells below, enter any proposed rate riders that are not already included in this model (e.g.: proposed ICM rate riders). Please note that existing SMIRR and SM Entity Charge do not need to be included below. In column A, the rate rider descriptions must begin with "Rate Rider for". In column B, choose the associated unit from the drop-down menu. In column C, enter the rate. All rate riders with a "$" unit should be rounded to 2 decimal places and all others rounded to 4 decimal places. In column E, enter the expiry date (e.g. April 30, 2018) or description of the expiry date in text (e.g. the effective date of the next cost of service-based rate order). In column G, choose the sub-total as applicable in the bill impact calculation from the drop-down menu
D12: INPUT ICM RATE RIDERS ONLY
B13: ='4. Billing Det. for Def-Var'!B17 -> RESIDENTIAL SERVICE CLASSIFICATION
B14: Rate Rider for Incremental Capital Module (ICM) | C14: $ | D14: 0.16 | E14: - effective until | F14: the effective date of the next cost of service-based rate order | H14: A
B15: Rate Rider for Recovery of 2018 Foregone Revenue | C15: $ | D15: 0.17 | E15: - effective until | F15: December 31, 2018 | H15: A
E16: - effective until
E17: - effective until
E18: - effective until
E19: - effective until
E20: - effective until
E21: - effective until
E22: - effective until
E23: - effective until
B26: ='4. Billing Det. for Def-Var'!B18 -> GENERAL SERVICE LESS THAN 50 kW SERVICE CLASSIFICATION
B27: Rate Rider for Incremental Capital Module (ICM) | C27: $ | D27: 0.29 | E27: - effective until | F27: the effective date of the next cost of service-based rate order | H27: A
B28: Rate Rider for Incremental Capital Module (ICM) | C28: $/kWh | D28: 0.0001 | E28: - effective until | F28: the effective date of the next cost of service-based rate order | H28: A
B29: Rate Rider for Recovery of 2018 Foregone Revenue | C29: $ | D29: 0.35 | E29: - effective until | F29: December 31, 2018 | H29: A
E30: - effective until
E31: - effective until
E32: - effective until
E33: - effective until
E34: - effective until
E35: - effective until
B38: ='4. Billing Det. for Def-Var'!B19 -> GENERAL SERVICE 50 to 499 kW SERVICE CLASSIFICATION
B39: Rate Rider for Incremental Capital Module (ICM) | C39: $ | D39: 0.51 | E39: - effective until | F39: the effective date of the next cost of service-based rate order | H39: A
B40: Rate Rider for Incremental Capital Module (ICM) | C40: $/kW | D40: 0.0308 | E40: - effective until | F40: the effective date of the next cost of service-based rate order | H40: A
B41: Rate Rider for Recovery of 2018 Foregone Revenue | C41: $ | D41: 2.84 | E41: - effective until | F41: December 31, 2018 | H41: A
E42: - effective until
E43: - effective until
E44: - effective until
E45: - effective until
E46: - effective until
E47: - effective until
B50: ='4. Billing Det. for Def-Var'!B20 -> GENERAL SERVICE 500 to 4,999 kW SERVICE CLASSIFICATION
B51: Rate Rider for Incremental Capital Module (ICM) | C51: $ | D51: 11.65 | E51: - effective until | F51: the effective date of the next cost of service-based rate order | H51: A
B52: Rate Rider for Incremental Capital Module (ICM) | C52: $/kW | D52: 0.0158 | E52: - effective until | F52: the effective date of the next cost of service-based rate order | H52: A
B53: Rate Rider for Recovery of 2018 Foregone Revenue | C53: $ | D53: 16.18 | E53: - effective until | F53: December 31, 2018 | H53: A
E54: - effective until
E55: - effective until
E56: - effective until
E57: - effective until
E58: - effective until
E59: - effective until
B62: ='4. Billing Det. for Def-Var'!B21 -> LARGE USE SERVICE CLASSIFICATION
B63: Rate Rider for Incremental Capital Module (ICM) | C63: $ | D63: 91.89 | E63: - effective until | F63: the effective date of the next cost of service-based rate order | H63: A
B64: Rate Rider for Incremental Capital Module (ICM) | C64: $/kW | D64: 0.0197 | E64: - effective until | F64: the effective date of the next cost of service-based rate order | H64: A
B65: Rate Rider for Recovery of 2018 Foregone Revenue | C65: $ | D65: 264.39 | E65: - effective until | F65: December 31, 2018 | H65: A
E66: - effective until
E67: - effective until
E68: - effective until
E69: - effective until
E70: - effective until
E71: - effective until
B74: ='4. Billing Det. for Def-Var'!B23 -> UNMETERED SCATTERED LOAD SERVICE CLASSIFICATION
B75: Rate Rider for Incremental Capital Module (ICM) | C75: $ | D75: 0.06 | E75: - effective until | F75: the effective date of the next cost of service-based rate order | H75: A
B76: Rate Rider for Incremental Capital Module (ICM) | C76: $/kWh | D76: 0.0001 | E76: - effective until | F76: the effective date of the next cost of service-based rate order | H76: A
B77: Rate Rider for Recovery of 2018 Foregone Revenue | C77: $ | D77: 0.05 | E77: - effective until | F77: December 31, 2018 | H77: A
E78: - effective until
E79: - effective until
E80: - effective until
E81: - effective until
E82: - effective until
E83: - effective until
B86: ='4. Billing Det. for Def-Var'!B24 -> STREET LIGHTING SERVICE CLASSIFICATION
B87: Rate Rider for Incremental Capital Module (ICM) | C87: $ | D87: 0.01 | E87: - effective until | F87: the effective date of the next cost of service-based rate order | H87: A
B88: Rate Rider for Incremental Capital Module (ICM) | C88: $/kW | D88: 0.077 | E88: - effective until | F88: the effective date of the next cost of service-based rate order | H88: A
B89: Rate Rider for Recovery of 2018 Foregone Revenue | C89: $ | D89: 0.01 | E89: - effective until | F89: December 31, 2018 | H89: A
E90: - effective until
E91: - effective until
E92: - effective until
E93: - effective until
E94: - effective until
E95: - effective until
B98: ='4. Billing Det. for Def-Var'!B25 -> 0
E99: - effective until
E100: - effective until
E101: - effective until
E102: - effective until
E103: - effective until
E104: - effective until
E105: - effective until
E106: - effective until
E107: - effective until
B110: ='4. Billing Det. for Def-Var'!B26 -> 0
E111: - effective until
E112: - effective until
E113: - effective until
E114: - effective until
E115: - effective until
E116: - effective until
E117: - effective until
E118: - effective until
E119: - effective until
B122: ='4. Billing Det. for Def-Var'!B27 -> 0
E123: - effective until
E124: - effective until
E125: - effective until
E126: - effective until
E127: - effective until
E128: - effective until
E129: - effective until
E130: - effective until
E131: - effective until
B134: MICROFIT SERVICE CLASSIFICATION
E135: - effective until
E136: - effective until
E137: - effective until
E138: - effective until
E139: - effective until
E140: - effective until
E141: - effective until
E142: - effective until
E143: - effective until
E144: - effective until

Sheet 20. Final Tariff Schedule
A1: Back to Index
B2: INCENTIVE REGULATION MODEL FOR 2018 FILERS
B10: Alectra Utilities Corporation
B11: Enersource Rate Zone
B12: TARIFF OF RATES AND CHARGES
B13: Effective Date January 1, 2018
B14: Implementation Date May 1, 2018
B16: This schedule supersedes and replaces all previously
B17: approved schedules of Rates, Charges and Loss Factors
B18: EB-2017-0024
B19: RESIDENTIAL SERVICE CLASSIFICATION
B20: This classification refers to all residential services including, without limitation, single family or single unit dwellings, multifamily dwellings, row-type dwellings and subdivision developments. Energy is supplied in single phase, 3-wire, or three phase, 4 wire, having a nominal voltage of 120/240 volts. There shall be only one delivery point to a dwelling. Class B consumers are defined in accordance with O. Reg. 429/04. Further servicing details are available in the distributor’s Conditions of Service.
B22: APPLICATION
B24: The application of these rates and charges shall be in accordance with the Licence of the Distributor and any Code or Order of the Ontario Energy Board, and amendments thereto as approved by the Ontario Energy Board, which may be applicable to the administration of this schedule.
B26: No rates and charges for the distribution of electricity and charges to meet the costs of any work or service done or furnished for the purpose of the distribution of electricity shall be made except as permitted by this schedule, unless required by the Distributor’s Licence or a Code or Order of the Ontario Energy Ontario Energy Board, and amendments thereto as approved by the Ontario Energy Board, or as specified herein.
B28: Unless specifically noted, this schedule does not contain any charges for the electricity commodity, be it under the Regulated Price Plan, a contract with a retailer or the wholesale market price, as applicable. In addition, the charges in the MONTHLY RATES AND CHARGES - Regulatory Component of this schedule do not apply to a customer that is an embedded wholesale market participant.
B30: It should be noted that this schedule does not list any charges, assessments, or credits that are required by law to be invoiced by a distributor and that are not subject to Ontario Energy Board approval, such as the Debt Retirement Charge, the Global Adjustment and the HST.
B32: MONTHLY RATES AND CHARGES - Delivery Component
A34: R_F | B34: =RATES!C15 -> Service Charge | C34: =RATES!G15 -> $ | D34: =RATES!I15 -> 21.61
B35: =RATES!C18 -> Smart Metering Entity Charge - effective until December 31, 2022 | C35: =RATES!G18 -> $ | D35: =RATES!I18 -> 0.57
A36: R_GA16 | B36: =RATES!C19 -> Rate Rider for Recovery of Incremental Capital Module (2017) - in effect until the effective date of the next cost of service based rate order | C36: =RATES!G19 -> $ | D36: =RATES!I19 -> 0.6
B37: =RATES!C27 -> Rate Rider for Recovery of ICM (2018) - in effect from May 1, 2018 until the effective date of the next cost of service based rate order | C37: =RATES!G27 -> $ | D37: =RATES!I27 -> 0.16
B38: =+RATES!C28 -> Rate Rider for Recovery of 2018 Foregone Revenue - effective until December 31, 2018 | C38: =+RATES!G28 -> $ | D38: =+RATES!I28 -> 0.17
B39: =RATES!C16 -> Distribution Volumetric Rate | C39: =RATES!G16 -> $/kWh | D39: =RATES!I16 -> 0.0035
A40: R_V | B40: =RATES!C17 -> Low Voltage Service Rate | C40: =RATES!G17 -> $/kWh | D40: =RATES!I17 -> 0.0002
B41: =RATES!C23 -> Rate Rider for Disposition of Global Adjustment Account (2018) - effective until April 30, 2019 Applicable only for Non-RPP Customers | C41: =RATES!G23 -> $/kWh | D41: =RATES!I23 -> -0.0005
B42: =RATES!C24 -> Rate Rider for Disposition of Deferral/Variance Accounts (2018) - effective until April 30, 2019 | C42: =RATES!G24 -> $/kWh | D42: =RATES!I24 -> -0.0007
B43: =RATES!C25 -> Rate Rider for Disposition of Capacity Based Recovery Account (2018) - effective until April 30, 2019 Applicable Only for Class B Customers | C43: =RATES!G25 -> $/kWh | D43: =RATES!I25 -> -5e-05
B44: =RATES!C26 -> Rate Rider for Disposition of Lost Revenue Adjustment Mechanism Variance Account (LRAMVA) (2018) - effective until April 30, 2019 | C44: =RATES!G26 -> $/kWh | D44: =RATES!I26 -> -0.0002
B45: =+RATES!C38 -> Retail Transmission Rate - Network Service Rate | C45: $/kWh | D45: ='16. RTSR-Rates to Forecast'!K43 -> 0.007570643242
B46: =+RATES!C39 -> Retail Transmission Rate - Line and Transformation Connection Service Rate | C46: $/kWh | D46: ='16. RTSR-Rates to Forecast'!K56 -> 0.007083661816
B48: MONTHLY RATES AND CHARGES - Regulatory Component
B50: Wholesale Market Service Rate (WMS) - Not including CBR | C50: $/kWh | D50: 0.0032
B51: Capacity Based Recovery (CBR) - Applicable for Class B Customers | C51: $/kWh | D51: 0.0004
B52: Rural or Remote Electricity Rate Protection Charge (RRRP) | C52: $/kWh | D52: 0.0003
B53: Standard Supply Service - Administrative Charge (if applicable) | C53: $ | D53: 0.25
B55: GENERAL SERVICE LESS THAN 50 KW SERVICE CLASSIFICATION
B57: This classification refers to a non-residential account whose monthly average peak demand is less than, or is forecast to be less than, 50 kW. Class B consumers are defined in accordance with O. Reg. 429/04. Further servicing details are available in the distributor’s Conditions of Service.
B59: APPLICATION
B61: The application of these rates and charges shall be in accordance with the Licence of the Distributor and any Code or Order of the Ontario Energy Board, and amendments thereto as approved by the Ontario Energy Board, which may be applicable to the administration of this schedule.
B63: No rates and charges for the distribution of electricity and charges to meet the costs of any work or service done or furnished for the purpose of the distribution of electricity shall be made except as permitted by this schedule, unless required by the Distributor’s Licence or a Code or Order of the Ontario Energy Board, and amendments thereto as approved by the Ontario Energy Board, or as specified herein.
B65: Unless specifically noted, this schedule does not contain any charges for the electricity commodity, be it under the Regulated Price Plan, a contract with a retailer or the wholesale market price, as applicable. In addition, the charges in the MONTHLY RATES AND CHARGES - Regulatory Component of this schedule do not apply to a customer that is an embedded wholesale market participant.
B67: It should be noted that this schedule does not list any charges, assessments, or credits that are required by law to be invoiced by a distributor and that are not subject to Ontario Energy Board approval, such as the Debt Retirement Charge, the Global Adjustment and the HST.
B69: MONTHLY RATES AND CHARGES - Delivery Component
A71: GSL_F | B71: =RATES!C41 -> Service Charge | C71: =RATES!G41 -> $ | D71: =RATES!I41 -> 43.99
B72: =RATES!C44 -> Smart Metering Entity Charge - effective until December 31, 2022 | C72: =RATES!G44 -> $ | D72: =RATES!I44 -> 0.57
A73: GSL_GA16 | B73: =RATES!C45 -> Rate Rider for Recovery of Incremental Capital Module (2017) - in effect until the effective date of the next cost of service based rate order | C73: =RATES!G45 -> $ | D73: =RATES!I45 -> 1.1
B74: =RATES!C54 -> Rate Rider for Recovery of ICM (2018) - in effect from May 1, 2018 until the effective date of the next cost of service based rate order | C74: =RATES!G54 -> $ | D74: =RATES!I54 -> 0.29
B75: =+RATES!C57 -> Rate Rider for Recovery of 2018 Foregone Revenue - effective until December 31, 2018 | C75: =+RATES!G56 -> $ | D75: =+RATES!I56 -> 0.35
B76: =RATES!C42 -> Distribution Volumetric Rate | C76: =RATES!G42 -> $/kWh | D76: =RATES!I42 -> 0.0128
A77: GSL_V | B77: =RATES!C43 -> Low Voltage Service Rate | C77: =RATES!G43 -> $/kWh | D77: =RATES!I43 -> 0.0002
B78: =RATES!C50 -> Rate Rider for Disposition of Global Adjustment Account (2018) - effective until April 30, 2019 Applicable only for Non-RPP Customers | C78: =RATES!G50 -> $/kWh | D78: =RATES!I50 -> -0.0005
A79: GSL_TN | B79: =RATES!C51 -> Rate Rider for Disposition of Deferral/Variance Accounts (2018) - effective until April 30, 2019 | C79: =RATES!G51 -> $/kWh | D79: =RATES!I51 -> -0.0007
B80: =RATES!C52 -> Rate Rider for Disposition of Capacity Based Recovery Account (2018) - effective until April 30, 2019 Applicable Only for Class B Customers | C80: =RATES!G52 -> $/kWh | D80: =RATES!I52 -> -5e-05
B81: =RATES!C53 -> Rate Rider for Disposition of Lost Revenue Adjustment Mechanism Variance Account (LRAMVA) (2018) - effective until April 30, 2019 | C81: =RATES!G53 -> $/kWh | D81: =RATES!I53 -> 0.0006
A82: GSL_1576 | B82: =RATES!C48 -> Rate Rider for Recovery of Incremental Capital Module (2017) - in effect until the effective date of the next cost of service based rate order | C82: =RATES!G48 -> $/kWh | D82: =RATES!I48 -> 0.0003
B83: =RATES!C55 -> Rate Rider for Recovery of ICM (2018) - in effect from May 1, 2018 until the effective date of the next cost of service based rate order | C83: =RATES!G55 -> $/kWh | D83: =RATES!I55 -> 0.0001
A84: GSL_TC | B84: =+RATES!C68 -> Retail Transmission Rate - Network Service Rate | C84: $/kWh | D84: =RATES!I68 -> 0.0071
B85: =+RATES!C69 -> Retail Transmission Rate - Line and Transformation Connection Service Rate | C85: $/kWh | D85: =RATES!I69 -> 0.0064
B87: MONTHLY RATES AND CHARGES - Regulatory Component
B89: Wholesale Market Service Rate (WMS) - Not including CBR | C89: $/kWh | D89: 0.0032
B90: Capacity Based Recovery (CBR) - Applicable for Class B Customers | C90: $/kWh | D90: 0.0004
B91: Rural or Remote Electricity Rate Protection Charge (RRRP) | C91: $/kWh | D91: 0.0003
B92: Standard Supply Service - Administrative Charge (if applicable) | C92: $ | D92: 0.25
B93: GENERAL SERVICE 50 TO 499 KW SERVICE CLASSIFICATION
B95: This classification refers to a non-residential account whose monthly average peak demand is equal to or greater than, or is forecast to be equal to or greater than, 50 kW but less than 500 kW. Class B consumers are defined in accordance with O. Reg. 429/04. Further servicing details are available in the distributor’s Conditions of Service.
B97: APPLICATION
B99: The application of these rates and charges shall be in accordance with the Licence of the Distributor and any Code or Order of the Ontario Energy Board, and amendments thereto as approved by the Ontario Energy Board, which may be applicable to the administration of this schedule.
B101: No rates and charges for the distribution of electricity and charges to meet the costs of any work or service done or furnished for the purpose of the distribution of electricity shall be made except as permitted by this schedule, unless required by the Distributor’s Licence or a Code or Order of the Ontario Energy Board, and amendments thereto as approved by the Ontario Energy Board, or as specified herein.
B103: Unless specifically noted, this schedule does not contain any charges for the electricity commodity, be it under the Regulated Price Plan, a contract with a retailer or the wholesale market price, as applicable. In addition, the charges in the MONTHLY RATES AND CHARGES - Regulatory Component of this schedule do not apply to a customer that is an embedded wholesale market participant.
B105: It should be noted that this schedule does not list any charges, assessments, or credits that are required by law to be invoiced by a distributor and that are not subject to Ontario Energy Board approval, such as the Debt Retirement Charge, the Global Adjustment and the HST.
B107: Billing demands are established at the greater of 100% of the kW, or 90% of the kVA amounts.
B109: MONTHLY RATES AND CHARGES - Delivery Component
B111: =RATES!C71 -> Service Charge | C111: =RATES!G71 -> $ | D111: =RATES!I71 -> 77.48
A112: GS50_699_F | B112: =RATES!C75 -> Rate Rider for Recovery of Incremental Capital Module (2017) - in effect until the effective date of the next cost of service based rate order | C112: =RATES!G75 -> $ | D112: =RATES!I75 -> 1.93
B113: =RATES!C86 -> Rate Rider for Recovery of ICM (2018) - in effect from May 1, 2018 until the effective date of the next cost of service based rate order | C113: =RATES!G86 -> $ | D113: =RATES!I86 -> 0.51
B114: =+RATES!C88 -> Rate Rider for Recovery of 2018 Foregone Revenue - effective until December 31, 2018 | C114: =+RATES!G88 -> $ | D114: =+RATES!I88 -> 2.84
B115: =RATES!C72 -> Distribution Volumetric Rate | C115: =RATES!G72 -> $/kW | D115: =RATES!I72 -> 4.6629
B116: =RATES!C73 -> Low Voltage Service Rate | C116: =RATES!G73 -> $/kW | D116: =RATES!I73 -> 0.0802
A117: GS50_699_1576 | B117: =RATES!C81 -> Rate Rider for Disposition of Global Adjustment Account (2018) - effective until April 30, 2019 Applicable only for Non-RPP Customers | C117: =RATES!G81 -> $/kWh | D117: =RATES!I81 -> -0.0005
B118: =RATES!C83 -> Rate Rider for Disposition of Deferral/Variance Accounts (2018) - effective until April 30, 2019 | C118: =RATES!G83 -> $/kW | D118: =RATES!I83 -> 0.1005
B119: =RATES!C82 -> Rate Rider for Disposition of Deferral/Variance Accounts (2018) - effective until April 30, 2019 Applicable only for Non-Wholesale Market Participants | C119: =RATES!G82 -> $/kW | D119: =RATES!I82 -> -0.3538
B120: =RATES!C84 -> Rate Rider for Disposition of Capacity Based Recovery Account (2018) - effective until April 30, 2019 Applicable Only for Non-WMP Class B Customers | C120: =RATES!G84 -> $/kW | D120: =RATES!I84 -> -0.01606
B121: =RATES!C85 -> Rate Rider for Disposition of Lost Revenue Adjustment Mechanism Variance Account (LRAMVA) (2018) - effective until April 30, 2019 | C121: =RATES!G85 -> $/kW | D121: =RATES!I85 -> 0.4585
A122: GS50_699_DVA16 | B122: =RATES!C79 -> Rate Rider for Recovery of Incremental Capital Module (2017) - in effect until the effective date of the next cost of service based rate order | C122: =RATES!G79 -> $/kW | D122: =RATES!I79 -> 0.1163
B123: =RATES!C87 -> Rate Rider for Recovery of ICM (2018) - in effect from May 1, 2018 until the effective date of the next cost of service based rate order | C123: =RATES!G87 -> $/kW | D123: =RATES!I87 -> 0.0308
A124: GS50_699_CBR16 | B124: =RATES!C97 -> Retail Transmission Rate - Network Service Rate | C124: $/kW | D124: =RATES!I97 -> 2.7325
A125: GS50_699_TN | B125: =RATES!C98 -> Retail Transmission Rate - Line and Transformation Connection Service Rate | C125: $/kW | D125: =RATES!I98 -> 2.5347
A126: GS50_699_TC
B127: MONTHLY RATES AND CHARGES - Regulatory Component
B129: Wholesale Market Service Rate (WMS) - Not including CBR | C129: $/kWh | D129: 0.0032
B130: Capacity Based Recovery (CBR) - Applicable for Class B Customers | C130: $/kWh | D130: 0.0004
B131: Rural or Remote Electricity Rate Protection Charge (RRRP) | C131: $/kWh | D131: 0.0003
B132: Standard Supply Service - Administrative Charge (if applicable) | C132: $ | D132: 0.25
B133: GENERAL SERVICE 500 TO 4,999 KW SERVICE CLASSIFICATION
B135: This classification refers to a non-residential account whose monthly average peak demand is equal to or greater than, or is forecast to be equal to or greater than, 500 kW but less than 5,000 kW. Class A and Class B consumers are defined in accordance with O. Reg. 429/04. Further servicing details are available in the distributor’s Conditions of Service.
B137: APPLICATION
B139: The application of these rates and charges shall be in accordance with the Licence of the Distributor and any Code or Order of the Ontario Energy Board, and amendments thereto as approved by the Ontario Energy Board, which may be applicable to the administration of this schedule.
B141: No rates and charges for the distribution of electricity and charges to meet the costs of any work or service done or furnished for the purpose of the distribution of electricity shall be made except as permitted by this schedule, unless required by the Distributor’s Licence or a Code or Order of the Ontario Energy Board, and amendments thereto as approved by the Ontario Energy Board, or as specified herein.
B143: Unless specifically noted, this schedule does not contain any charges for the electricity commodity, be it under the Regulated Price Plan, a contract with a retailer or the wholesale market price, as applicable. In addition, the charges in the MONTHLY RATES AND CHARGES - Regulatory Component of this schedule do not apply to a customer that is an embedded wholesale market participant.
B145: The rate rider for the disposition of WMS – Sub-account CBR Class B is not applicable to wholesale market participants (WMP), customers that transitioned between Class A and Class B during the variance account accumulation period, or to customers that were in Class A for the entire period. Customers who transitioned are to be charged or refunded their share of the variance disposed through customer specific billing adjustments. This rate rider is to be consistently applied for the entire period to the sunset date of the rate rider. In addition, this rate rider is applicable to all new Class B customers.
B147: The rate rider for the disposition of Global Adjustment is only applicable to non-RPP Class B customers. It is not applicable to WMP customers that transitioned between Class A and Class B during the variance account accumulation period, or to customers that were in Class A for the entire period. Customers who transitioned are to be charged or refunded their share of the variance disposed through customer specific billing adjustments. This rate order is applicable to all new non-RPP Class B customers.
B149: It should be noted that this schedule does not list any charges, assessments, or credits that are required by law to be invoiced by a distributor and that are not subject to Ontario Energy Board approval, such as the Debt Retirement Charge, the Global Adjustment and the HST.
B151: Billing demands are established at the greater of 100% of the kW, or 90% of the kVA amounts.
B153: MONTHLY RATES AND CHARGES - Delivery Component
A155: GS700_F | B155: =RATES!C100 -> Service Charge | C155: =RATES!G100 -> $ | D155: =RATES!I100 -> 1764.42
A156: GS700_LRVA16 | B156: =RATES!C104 -> Rate Rider for Recovery of Incremental Capital Module (2017) - in effect until the effective date of the next cost of service based rate order | C156: =RATES!G104 -> $ | D156: =RATES!I104 -> 44
B157: =RATES!C115 -> Rate Rider for Recovery of ICM (2018) - in effect from May 1, 2018 until the effective date of the next cost of service based rate order | C157: =RATES!G115 -> $ | D157: =RATES!I115 -> 11.65
B158: =+RATES!C117 -> Rate Rider for Recovery of 2018 Foregone Revenue - effective until December 31, 2018 | C158: =+RATES!G117 -> $ | D158: =+RATES!I117 -> 16.18
A159: GS700_V | B159: =RATES!C101 -> Distribution Volumetric Rate | C159: =RATES!G101 -> $/kW | D159: =RATES!I101 -> 2.3994
B160: =RATES!C102 -> Low Voltage Service Rate | C160: =RATES!G102 -> $/kW | D160: =RATES!I102 -> 0.0784
A161: GS700_CBR16_A | B161: =RATES!C110 -> Rate Rider for Disposition of Global Adjustment Account (2018) - effective until April 30, 2019 Applicable only for Non-RPP Customers | C161: =RATES!G110 -> $/kWh | D161: =RATES!I110 -> -0.0005
B162: =RATES!C112 -> Rate Rider for Disposition of Deferral/Variance Accounts (2018) - effective until April 30, 2019 | C162: =RATES!G112 -> $/kW | D162: =RATES!I112 -> 0.1272
B163: =RATES!C111 -> Rate Rider for Disposition of Deferral/Variance Accounts (2018) - effective until April 30, 2019 Applicable only for Non-Wholesale Market Participants | C163: =RATES!G111 -> $/kW | D163: =RATES!I111 -> -0.4465
B164: =RATES!C113 -> Rate Rider for Disposition of Capacity Based Recovery Account (2018) - effective until April 30, 2019 Applicable Only for Non-WMP Class B Customers | C164: =RATES!G113 -> $/kW | D164: =RATES!I113 -> -0.01999
B165: =RATES!C114 -> Rate Rider for Disposition of Lost Revenue Adjustment Mechanism Variance Account (LRAMVA) (2018) - effective until April 30, 2019 | C165: =RATES!G114 -> $/kW | D165: =RATES!I114 -> 0.141
A166: GS700_CBR16 | B166: =RATES!C108 -> Rate Rider for Recovery of Incremental Capital Module (2017) - in effect until the effective date of the next cost of service based rate order | C166: =RATES!G108 -> $/kW | D166: =RATES!I108 -> 0.0598
B167: =RATES!C116 -> Rate Rider for Recovery of ICM (2018) - in effect from May 1, 2018 until the effective date of the next cost of service based rate order | C167: =RATES!G116 -> $/kW | D167: =RATES!I116 -> 0.0158
A168: GS700_TN | B168: =RATES!C126 -> Retail Transmission Rate - Network Service Rate | C168: $/kW | D168: =RATES!I126 -> 2.6436
A169: GS700_TC | B169: =RATES!C127 -> Retail Transmission Rate - Line and Transformation Connection Service Rate | C169: $/kW | D169: =RATES!I127 -> 2.4803
B171: MONTHLY RATES AND CHARGES - Regulatory Component
B173: Wholesale Market Service Rate (WMS) - Not including CBR | C173: $/kWh | D173: 0.0032
B174: Capacity Based Recovery (CBR) - Applicable for Class B Customers | C174: $/kWh | D174: 0.0004
B175: Rural or Remote Electricity Rate Protection Charge (RRRP) | C175: $/kWh | D175: 0.0003
B176: Standard Supply Service - Administrative Charge (if applicable) | C176: $ | D176: 0.25
B177: LARGE USE SERVICE CLASSIFICATION
B179: This classification refers to an account whose monthly average peak demand is equal to or greater than, or is forecast to be equal to or greater than, 5,000 kW. Class A and Class B consumers are defined in accordance with O. Reg. 429/04. Further servicing details are available in the distributor’s Conditions of Service.
B181: APPLICATION
B183: The application of these rates and charges shall be in accordance with the Licence of the Distributor and any Code or Order of the Ontario Energy Board, and amendments thereto as approved by the Ontario Energy Board, which may be applicable to the administration of this schedule.
B185: No rates and charges for the distribution of electricity and charges to meet the costs of any work or service done or furnished for the purpose of the distribution of electricity shall be made except as permitted by this schedule, unless required by the Distributor’s Licence or a Code or Order of the Ontario Energy Board, and amendments thereto as approved by the Ontario Energy Board, or as specified herein.
B187: Unless specifically noted, this schedule does not contain any charges for the electricity commodity, be it under the Regulated Price Plan, a contract with a retailer or the wholesale market price, as applicable. In addition, the charges in the MONTHLY RATES AND CHARGES - Regulatory Component of this schedule do not apply to a customer that is an embedded wholesale market participant.
B189: It should be noted that this schedule does not list any charges, assessments, or credits that are required by law to be invoiced by a distributor and that are not subject to Ontario Energy Board approval, such as the Debt Retirement Charge, the Global Adjustment and the HST.
B191: Billing demands are established at the greater of 100% of the kW, or 90% of the kVA amounts.
B193: MONTHLY RATES AND CHARGES - Delivery Component
A195: LU_F | B195: =RATES!C129 -> Service Charge | C195: =RATES!G129 -> $ | D195: =RATES!I129 -> 13911.73
A196: LU_DVA16 | B196: =RATES!C133 -> Rate Rider for Recovery of Incremental Capital Module (2017) - in effect until the effective date of the next cost of service based rate order | C196: =RATES!G133 -> $ | D196: =RATES!I133 -> 346.9
B197: =RATES!C142 -> Rate Rider for Recovery of ICM (2018) - in effect from May 1, 2018 until the effective date of the next cost of service based rate order | C197: =RATES!G142 -> $ | D197: =RATES!I142 -> 91.89
B198: =+RATES!C144 -> Rate Rider for Recovery of 2018 Foregone Revenue - effective until December 31, 2018 | C198: =+RATES!G144 -> $ | D198: =+RATES!I144 -> 264.39
A199: LU_V | B199: =RATES!C130 -> Distribution Volumetric Rate | C199: =RATES!G130 -> $/kW | D199: =RATES!I130 -> 2.9782
B200: =RATES!C131 -> Low Voltage Service Rate | C200: =RATES!G131 -> $/kW | D200: =RATES!I131 -> 0.0838
B201: =RATES!C139 -> Rate Rider for Disposition of Deferral/Variance Accounts (2018) - effective until April 30, 2019 | C201: =RATES!G139 -> $/kW | D201: =RATES!I139 -> -0.4054
B202: =RATES!C141 -> Rate Rider for Disposition of Lost Revenue Adjustment Mechanism Variance Account (LRAMVA) (2018) - effective until April 30, 2019 | C202: =RATES!G141 -> $/kW | D202: =RATES!I141 -> 0.088
B203: =RATES!C136 -> Rate Rider for Recovery of Incremental Capital Module (2017) - in effect until the effective date of the next cost of service based rate order | C203: =RATES!G136 -> $/kW | D203: =RATES!I136 -> 0.0743
B204: =RATES!C143 -> Rate Rider for Recovery of ICM (2018) - in effect from May 1, 2018 until the effective date of the next cost of service based rate order | C204: =RATES!G143 -> $/kW | D204: =RATES!I143 -> 0.0197
A205: LU_TC | B205: =RATES!C153 -> Retail Transmission Rate - Network Service Rate – Interval Metered | C205: =+RATES!G153 -> $/kW | D205: =RATES!I153 -> 2.8211
B206: =RATES!C154 -> Retail Transmission Rate - Line and Transformation Connection Service Rate – Interval Metered | C206: =+RATES!G154 -> $/kW | D206: =RATES!I154 -> 2.6491
B208: MONTHLY RATES AND CHARGES - Regulatory Component
B210: Wholesale Market Service Rate (WMS) - Not including CBR | C210: $/kWh | D210: 0.0032
B211: Capacity Based Recovery (CBR) - Applicable for Class B Customers | C211: $/kWh | D211: 0.0004
B212: Rural or Remote Electricity Rate Protection Charge (RRRP) | C212: $/kWh | D212: 0.0003
B213: Standard Supply Service - Administrative Charge (if applicable) | C213: $ | D213: 0.25
B214: UNMETERED SCATTERED LOAD SERVICE CLASSIFICATION
B216: This classification applies to an account taking electricity at 750 volts or less whose average monthly maximum demand is less than, or is forecast to be less than, 50 kW and the consumption is unmetered. The amount of electricity consumed by unmetered connections will be based on detailed information/documentation provided by the device's manufacturer abd will be agreed to by Alectra Utilities and the customer and may be subject to periodic monitoring of actual consumption. Eligible onmetered loads include cable TV power packs, bus shelters, telephone booths, traffic lights, railway crossings, etc. Class B consumers are defined in accordance with O. Reg. 429/04. Further servicing details are available in the distributor’s Conditions of Service.
B218: APPLICATION
B220: The application of these rates and charges shall be in accordance with the Licence of the Distributor and any Code or Order of the Ontario Energy Board, and amendments thereto as approved by the Ontario Energy Board, which may be applicable to the administration of this schedule.
B222: No rates and charges for the distribution of electricity and charges to meet the costs of any work or service done or furnished for the purpose of the distribution of electricity shall be made except as permitted by this schedule, unless required by the Distributor’s Licence or a Code or Order of the Ontario Energy Board, and amendments thereto as approved by the Ontario Energy Board, or as specified herein.
B224: Unless specifically noted, this schedule does not contain any charges for the electricity commodity, be it under the Regulated Price Plan, a contract with a retailer or the wholesale market price, as applicable. In addition, the charges in the MONTHLY RATES AND CHARGES - Regulatory Component of this schedule do not apply to a customer that is an embedded wholesale market participant.
B226: It should be noted that this schedule does not list any charges, assessments, or credits that are required by law to be invoiced by a distributor and that are not subject to Ontario Energy Board approval, such as the Debt Retirement Charge, the Global Adjustment and the HST.
B228: MONTHLY RATES AND CHARGES - Delivery Component
B230: Service Charge (per connection) | C230: =RATES!G156 -> $ | D230: =RATES!I156 -> 9.08
A231: USL_V | B231: =RATES!C159 -> Rate Rider for Recovery of Incremental Capital Module (2017) - in effect until the effective date of the next cost of service based rate order | C231: =RATES!G159 -> $ | D231: =RATES!I159 -> 0.23
B232: =RATES!C168 -> Rate Rider for Recovery of ICM (2018) - in effect from May 1, 2018 until the effective date of the next cost of service based rate order | C232: =RATES!G168 -> $ | D232: =RATES!I168 -> 0.06
B233: =+RATES!C171 -> Rate Rider for Recovery of 2018 Foregone Revenue - effective until December 31, 2018 | C233: =+RATES!G170 -> $ | D233: =+RATES!I170 -> 0.05
A234: USL_F | B234: =RATES!C157 -> Distribution Volumetric Rate | C234: =RATES!G157 -> $/kWh | D234: =RATES!I157 -> 0.0165
B235: =RATES!C158 -> Low Voltage Service Rate | C235: =RATES!G158 -> $/kWh | D235: =RATES!I158 -> 0.0002
B236: =RATES!C164 -> Rate Rider for Disposition of Global Adjustment Account (2018) - effective until April 30, 2019 Applicable only for Non-RPP Customers | C236: =RATES!G164 -> $/kWh | D236: =RATES!I164 -> -0.0005
A237: USL_CBR16 | B237: =RATES!C165 -> Rate Rider for Disposition of Deferral/Variance Accounts (2018) - effective until April 30, 2019 | C237: =RATES!G165 -> $/kWh | D237: =RATES!I165 -> -0.0007
B238: =RATES!C166 -> Rate Rider for Disposition of Capacity Based Recovery Account (2018) - effective until April 30, 2019 Applicable Only for Class B Customers | C238: =RATES!G166 -> $/kWh | D238: =RATES!I166 -> -5e-05
A239: USL_DVA16 | B239: =RATES!C162 -> Rate Rider for Recovery of Incremental Capital Module (2017) - in effect until the effective date of the next cost of service based rate order | C239: =RATES!G162 -> $/kWh | D239: =RATES!I162 -> 0.0004
B240: =RATES!C169 -> Rate Rider for Recovery of ICM (2018) - in effect from May 1, 2018 until the effective date of the next cost of service based rate order | C240: =RATES!G169 -> $/kWh | D240: =RATES!I169 -> 0.0001
A241: USL_TN | B241: =RATES!C181 -> Retail Transmission Rate - Network Service Rate | C241: $/kWh | D241: =RATES!I181 -> 0.0071
A242: USL_TC | B242: =RATES!C182 -> Retail Transmission Rate - Line and Transformation Connection Service Rate | C242: $/kWh | D242: =RATES!I182 -> 0.0064
B244: MONTHLY RATES AND CHARGES - Regulatory Component
B246: Wholesale Market Service Rate (WMS) - Not including CBR | C246: $/kWh | D246: 0.0032
B247: Capacity Based Recovery (CBR) - Applicable for Class B Customers | C247: $/kWh | D247: 0.0004
B248: Rural or Remote Electricity Rate Protection Charge (RRRP) | C248: $/kWh | D248: 0.0003
B249: Standard Supply Service - Administrative Charge (if applicable) | C249: $ | D249: 0.25
B250: STREET LIGHTING SERVICE CLASSIFICATION
B252: This classification refers to an account for roadway lighting. Street Lighting is unmetered where energy consumption is estimated based on the connected wattage and calculated hours of use using methods established by the Ontario Energy Board. Class B consumers are defined in accordance with O. Reg. 429/04. Further servicing details are available in the distributor’s Conditions of Service.
B254: APPLICATION
B256: The application of these rates and charges shall be in accordance with the Licence of the Distributor and any Code or Order of the Ontario Energy Board, and amendments thereto as approved by the Ontario Energy Board, which may be applicable to the administration of this schedule.
B258: No rates and charges for the distribution of electricity and charges to meet the costs of any work or service done or furnished for the purpose of the distribution of electricity shall be made except as permitted by this schedule, unless required by the Distributor’s Licence or a Code or Order of the Ontario Energy Board, and amendments thereto as approved by the Ontario Energy Board, or as specified herein.
B260: Unless specifically noted, this schedule does not contain any charges for the electricity commodity, be it under the Regulated Price Plan, a contract with a retailer or the wholesale market price, as applicable. In addition, the charges in the MONTHLY RATES AND CHARGES - Regulatory Component of this schedule do not apply to a customer that is an embedded wholesale market participant.
B262: It should be noted that this schedule does not list any charges, assessments, or credits that are required by law to be invoiced by a distributor and that are not subject to Ontario Energy Board approval, such as the Debt Retirement Charge, the Global Adjustment and the HST.
B264: MONTHLY RATES AND CHARGES - Delivery Component
A266: SL_F | B266: Service Charge (per luminaire) | C266: =RATES!G184 -> $ | D266: =RATES!I184 -> 1.52
A267: SL_GA16 | B267: =RATES!C187 -> Rate Rider for Recovery of Incremental Capital Module (2017) - in effect until the effective date of the next cost of service based rate order | C267: =RATES!G187 -> $ | D267: =RATES!I187 -> 0.04
B268: =RATES!C196 -> Rate Rider for Recovery of ICM (2018) - in effect from May 1, 2018 until the effective date of the next cost of service based rate order | C268: =RATES!G196 -> $ | D268: =RATES!I196 -> 0.01
B269: =+RATES!C199 -> Rate Rider for Recovery of 2018 Foregone Revenue - effective until December 31, 2018 | C269: =+RATES!G198 -> $ | D269: =+RATES!I198 -> 0.01
A270: SL_V | B270: =RATES!C185 -> Distribution Volumetric Rate | C270: =RATES!G185 -> $/kW | D270: =RATES!I185 -> 11.6504
B271: =RATES!C186 -> Low Voltage Service Rate | C271: =RATES!G186 -> $/kW | D271: =RATES!I186 -> 0.058
B272: =RATES!C192 -> Rate Rider for Disposition of Global Adjustment Account (2018) - effective until April 30, 2019 Applicable only for Non-RPP Customers | C272: =RATES!G192 -> $/kWh | D272: =RATES!I192 -> -0.0005
A273: SL_TN | B273: =RATES!C193 -> Rate Rider for Disposition of Deferral/Variance Accounts (2018) - effective until April 30, 2019 | C273: =RATES!G193 -> $/kW | D273: =RATES!I193 -> -0.2616
B274: =RATES!C194 -> Rate Rider for Disposition of Capacity Based Recovery Account (2018) - effective until April 30, 2019 Applicable Only for Non-WMP Class B Customers | C274: =RATES!G194 -> $/kW | D274: =RATES!I194 -> -0.01655
B275: =RATES!C195 -> Rate Rider for Disposition of Lost Revenue Adjustment Mechanism Variance Account (LRAMVA) (2018) - effective until April 30, 2019 | C275: =RATES!G195 -> $/kW | D275: =RATES!I195 -> -33.3532
A276: SL_1576 | B276: =RATES!C190 -> Rate Rider for Recovery of Incremental Capital Module (2017) - in effect until the effective date of the next cost of service based rate order | C276: =RATES!G190 -> $/kW | D276: =RATES!I190 -> 0.2905
B277: =RATES!C197 -> Rate Rider for Recovery of ICM (2018) - in effect from May 1, 2018 until the effective date of the next cost of service based rate order | C277: =RATES!G197 -> $/kW | D277: =RATES!I197 -> 0.077
A278: SL_TC | B278: =RATES!C206 -> Retail Transmission Rate - Network Service Rate | C278: $/kW | D278: =RATES!I206 -> 1.8924
B279: =RATES!C207 -> Retail Transmission Rate - Line and Transformation Connection Service Rate | C279: $/kW | D279: =RATES!I207 -> 1.8329
B281: MONTHLY RATES AND CHARGES - Regulatory Component
... 79 more rows

Sheet 21. Bill Impacts
A1: Back to Index
E2: INCENTIVE REGULATION MODEL FOR 2018 FILERS
E11: The bill comparisons below must be provided for typical customers and consumption levels. Bill impacts must be provided for residential customers consuming 750 kWh per month and general service customers consuming 2,000 kWh per month and having a monthly demand of less than 50 kW. Include bill comparisons for Non-RPP (retailer) as well. To assess the combined effects of the shift to fixed rates and other bill impacts associated with changes in the cost of distribution service, applicants are to include a total bill impact for a residential customer at the distributor’s 10th consumption percentile (In other words, 10% of a distributor’s residential customers consume at or less than this level of consumption on a monthly basis). Refer to page 9 of the Filing Requirements For Electricity Distribution Rate Applications issued July 14, 2016. For certain classes where one or more customers have unique consumption and demand patterns and which may be significantly impacted by the proposed rate changes, the distributor must show a typical comparison, and provide an explanation. Note: 1. For those classes that are not eligible for the RPP price, the weighted average price including Class B GA through end of February 2017 of $0.1058/kWh (IESO's Monthly Market Report for February 2017, page 22) has been used to represent the cost of power. For those classes on a retailer contract, applicants should enter the contract price (plus GA) for a more accurate estimate. Changes to the cost of power can be made directly on the bill impact table for the specific class. 2. Please enter the applicable billing determinant (e.g. number of connections or devices) to be applied to the monthly service charge for unmetered rate classes in column N. If the monthly service charge is applied on a per customer basis, enter the number “1”. Distributors should provide the number of connections or devices reflective of a typical customer in each class.
E13: Table 1
E14: RATE CLASSES / CATEGORIES (eg: Residential TOU, Residential Retailer) | G14: Units | H14: RPP? Non-RPP Retailer? Non-RPP Other? | I14: Current Loss Factor | J14: Proposed Loss Factor | K14: Consumption (kWh) | L14: Demand kW (if applicable) | M14: RTSR | N14: Billing Determinant Applied to Fixed Charge for Unmetered Classes (e.g. # of devices/connections).
B15: 1 | C15: =IF(ISERROR(VLOOKUP(E15, E$15:V$33, 18, FALSE)),"", VLOOKUP(E15, E$15:V$33, 18, FALSE)) -> 1 | E15: ='[7]4. Billing Det. for Def-Var'!B17 -> RESIDENTIAL SERVICE CLASSIFICATION | G15: =IF(ISERROR(VLOOKUP(E15,BILLING_DETERMINANTS,2,FALSE)),"",(VLOOKUP(E15,BILLING_DETERMINANTS,2,FALSE))) -> kWh | H15: RPP | I15: =LLF -> 1.036 | J15: =IF(ISBLANK(I15),"", I15) -> 1.036 | K15: 750 | M15: N/A | T15: =SUM(I15:L15) -> 752.072 | U15: 78 | V15: 1
B16: 2 | C16: 2 | E16: ='[7]4. Billing Det. for Def-Var'!B18 -> GENERAL SERVICE LESS THAN 50 kW SERVICE CLASSIFICATION | G16: kWh | H16: RPP | I16: =LLF -> 1.036 | J16: =IF(ISBLANK(I16),"", I16) -> 1.036 | K16: 2000 | M16: N/A | T16: 2002.072 | U16: =U15+68 -> 146 | V16: 2
B17: 3 | C17: 3 | E17: ='[7]4. Billing Det. for Def-Var'!B19 -> GENERAL SERVICE 50 to 499 kW SERVICE CLASSIFICATION | G17: kW | H17: Non-RPP (Other) | I17: =LLF -> 1.036 | J17: 1.036 | K17: 100000 | L17: 230 | M17: DEMAND | T17: 100232.072 | U17: =U16+68 -> 214 | V17: 3
B18: 4 | C18: 4 | E18: ='[7]4. Billing Det. for Def-Var'!B20 -> GENERAL SERVICE 500 to 4,999 kW SERVICE CLASSIFICATION | G18: kW | H18: Non-RPP (Other) | I18: =LLF -> 1.036 | J18: 1.036 | K18: 400000 | L18: 2250 | M18: DEMAND | T18: 402252.072 | U18: 282 | V18: 4
B19: 5 | C19: 5 | E19: ='[7]4. Billing Det. for Def-Var'!B21 -> LARGE USE SERVICE CLASSIFICATION | G19: kW | H19: Non-RPP (Other) | I19: 1.0145 | J19: 1.0145 | K19: 3000000 | L19: 5000 | M19: DEMAND | T19: 3005002.029 | U19: 350 | V19: 5
B20: 6 | C20: 6 | E20: ='[7]4. Billing Det. for Def-Var'!B22 -> STANDBY POWER SERVICE CLASSIFICATION | G20: kW | I20: =LLF -> 1.036 | J20: 1.036 | K20: 0 | L20: 0 | M20: DEMAND | T20: 2.072 | U20: 418 | V20: 6
B21: 7 | C21: 7 | E21: ='[7]4. Billing Det. for Def-Var'!B23 -> UNMETERED SCATTERED LOAD SERVICE CLASSIFICATION | G21: kWh | H21: RPP | I21: =LLF -> 1.036 | J21: 1.036 | K21: 300 | M21: N/A | T21: 302.072 | U21: 486 | V21: 7
B22: 8 | C22: 8 | E22: ='[7]4. Billing Det. for Def-Var'!B24 -> STREET LIGHTING SERVICE CLASSIFICATION | G22: kW | H22: Non-RPP (Other) | I22: =LLF -> 1.036 | J22: 1.036 | K22: 33 | L22: 0.1 | M22: DEMAND | T22: 35.172 | U22: 554 | V22: 8
B23: 9 | C23: 1 | E23: RESIDENTIAL SERVICE CLASSIFICATION | G23: kWh | H23: Non-RPP (Retailer) | I23: =LLF -> 1.036 | J23: 1.036 | K23: 750 | M23: N/A | T23: 752.072 | U23: 622 | V23: 9
B24: 10 | C24: 2 | E24: GENERAL SERVICE LESS THAN 50 kW SERVICE CLASSIFICATION | G24: kWh | H24: Non-RPP (Retailer) | I24: =LLF -> 1.036 | J24: 1.036 | K24: 2000 | M24: N/A | T24: 2002.072 | U24: 690 | V24: 10
B25: 11 | C25: 7 | E25: UNMETERED SCATTERED LOAD SERVICE CLASSIFICATION | G25: kWh | H25: Non-RPP (Retailer) | I25: 1.036 | J25: 1.036 | K25: 300 | M25: N/A | T25: 302.072 | U25: 758 | V25: 11
B26: 12 | C26: 3 | E26: GENERAL SERVICE 50 to 499 kW SERVICE CLASSIFICATION | G26: kW | H26: Non-RPP (Other) | I26: 1.036 | J26: 1.036 | K26: 100000 | L26: 230 | M26: DEMAND - INTERVAL | T26: 100232.072 | U26: =U25+68 -> 826
B27: 13 | C27: 4 | E27: GENERAL SERVICE 500 to 4,999 kW SERVICE CLASSIFICATION | G27: kW | H27: Non-RPP (Other) | I27: 1.036 | J27: 1.036 | K27: 400000 | L27: 2250 | M27: DEMAND - INTERVAL | T27: 402252.072 | U27: 894
B28: 14 | C28: 5 | E28: LARGE USE SERVICE CLASSIFICATION | G28: kW | H28: Non-RPP (Other) | I28: =I19 -> 1.0145 | J28: 1.0145 | K28: 3000000 | L28: 5000 | M28: DEMAND - INTERVAL | T28: 3005002.029 | U28: 962
B29: 15 | C29: =IF(ISERROR(VLOOKUP(E29, E$15:V$33, 18, FALSE)),"", VLOOKUP(E29, E$15:V$33, 18, FALSE)) -> 0 | E29: Add additional scenarios if required | T29: 0 | U29: =U28+68 -> 1030
B30: 16 | C30: =IF(ISERROR(VLOOKUP(E30, E$15:V$33, 18, FALSE)),"", VLOOKUP(E30, E$15:V$33, 18, FALSE)) -> 0 | E30: Add additional scenarios if required | J30: =IF(ISBLANK(I30),"", I30) ->  | T30: 0 | U30: 1098
B31: 17 | C31: =IF(ISERROR(VLOOKUP(E31, E$15:V$33, 18, FALSE)),"", VLOOKUP(E31, E$15:V$33, 18, FALSE)) -> 0 | E31: Add additional scenarios if required | T31: 0 | U31: 1166
B32: 18 | C32: =IF(ISERROR(VLOOKUP(E32, E$15:V$33, 18, FALSE)),"", VLOOKUP(E32, E$15:V$33, 18, FALSE)) -> 0 | E32: Add additional scenarios if required | T32: 0 | U32: 1234
B33: 19 | C33: =IF(ISERROR(VLOOKUP(E33, E$15:V$33, 18, FALSE)),"", VLOOKUP(E33, E$15:V$33, 18, FALSE)) -> 0 | E33: Add additional scenarios if required | T33: 0 | U33: 1302
E36: Table 2
E37: RATE CLASSES / CATEGORIES (eg: Residential TOU, Residential Retailer) | G37: Units | H37: Sub-Total | N37: Total | P37: Total (Before Tax) | R37: Total
H38: A | J38: B | L38: C | N38: A + B + C | P38: A + B + C | R38: A + B + C
H39: $ | I39: % | J39: $ | K39: % | L39: $ | M39: % | N39: $ | O39: % | P39: $ | Q39: % | R39: $ | S39: %
B40: =H15 -> RPP | C40: =B15 -> 1 | E40: =IF(ISBLANK(E15), "", IF(E15 = "Add additional scenarios if required", "", IF(O15="INTERVAL", E15 & " - " & H15 & " - Interval Customers", E15 & " - " &H15))) -> RESIDENTIAL SERVICE CLASSIFICATION - RPP | G40: =G15 -> kWh | H40: =IF(LEN($G40)>1, (SUMPRODUCT(--($C$72:$C$969=$B15), --($A$72:$A$969=$E15), --($B$72:$B$969="ST_A"), $M$72:$M$969)), "") -> 0.13 | I40: =IF(LEN($G40)>1, (SUMPRODUCT(--($C$72:$C$969=$B15), --($A$72:$A$969=$E15), --($B$72:$B$969="ST_A"), $N$72:$N$969)), "") -> 0.00522403054 | J40: =IF(LEN($G40)>1, (SUMPRODUCT(--($C$72:$C$969=$B15), --($A$72:$A$969=$E15), --($B$72:$B$969="ST_B"), $M$72:$M$969)), "") -> 0.8425 | K40: =IF(LEN($G40)>1, (SUMPRODUCT(--($C$72:$C$969=$B15), --($A$72:$A$969=$E15), --($B$72:$B$969="ST_B"), $N$72:$N$969)), "") -> 0.0317345881 | L40: =IF(LEN($G40)>1, (SUMPRODUCT(--($C$72:$C$969=$B15), --($A$72:$A$969=$E15), --($B$72:$B$969="ST_C"), $M$72:$M$969)), "") -> 1.4641 | M40: =IF(LEN($G40)>1, (SUMPRODUCT(--($C$72:$C$969=$B15), --($A$72:$A$969=$E15), --($B$72:$B$969="ST_C"), $N$72:$N$969)), "") -> 0.03920091291 | N40: =IF(LEN($G40)>1, (SUMPRODUCT(--($C$72:$C$969=$B15), --($A$72:$A$969=$E15), --($B$72:$B$969=$B40&"_TOTAL"), $M$72:$M$969)), "") -> 1.537305 | O40: =IF(LEN($G40)>1, (SUMPRODUCT(--($C$72:$C$969=$B15), --($A$72:$A$969=$E15), --($B$72:$B$969=$B40&"_TOTAL"), $N$72:$N$969)), "") -> 0.01431897765 | P40: =IF(LEN($G40)>1, (SUMPRODUCT(--($C$72:$C$969=$B15), --($A$72:$A$969=$E15), --($B$72:$B$969=$B40&"_BT"), $M$72:$M$969)), "") -> 1.4641 | Q40: =IF(LEN($G40)>1, (SUMPRODUCT(--($C$72:$C$969=$B15), --($A$72:$A$969=$E15), --($B$72:$B$969=$B40&"_BT"), $N$72:$N$969)), "") -> 0.01431897765 | R40: =IF(LEN($G40)>1, (SUMPRODUCT(--($C$72:$C$969=$B15), --($A$72:$A$969=$E15), --($B$72:$B$969=$B40&"_NET"), $M$72:$M$969)), "") -> 1.654433 | S40: =IF(LEN($G40)>1, (SUMPRODUCT(--($C$72:$C$969=$B15), --($A$72:$A$969=$E15), --($B$72:$B$969=$B40&"_NET"), $N$72:$N$969)), "") -> 0.01431897765
B41: RPP | C41: 2 | E41: GENERAL SERVICE LESS THAN 50 kW SERVICE CLASSIFICATION - RPP | G41: kWh | H41: 2.63 | I41: 0.03719943423 | J41: 4.53 | K41: 0.0610631293 | L41: 5.9804 | M41: 0.05938408327 | N41: 6.27942 | O41: 0.02081167625 | P41: 5.9804 | Q41: 0.02081167625 | R41: =IF(LEN($G41)>1, (SUMPRODUCT(--($C$72:$C$969=$B16), --($A$72:$A$969=$E16), --($B$72:$B$969=$B41&"_NET"), $M$72:$M$969)), "") -> 6.757852 | S41: 0.02081167625
B42: Non-RPP (Other) | C42: 3 | E42: GENERAL SERVICE 50 to 499 kW SERVICE CLASSIFICATION - Non-RPP (Other) | G42: kW | H42: 126.147 | I42: 0.107968551 | J42: 20.8602 | K42: 0.01767591861 | L42: 82.9142 | M42: 0.03559236762 | N42: 93.693046 | O42: 0.005587229067 | P42: 82.9142 | Q42: 0.005587229067 | R42: 93.693046 | S42: 0.005587229067
B43: Non-RPP (Other) | C43: 4 | E43: GENERAL SERVICE 500 to 4,999 kW SERVICE CLASSIFICATION - Non-RPP (Other) | G43: kW | H43: 444.52 | I43: 0.06107948495 | J43: 634.4425 | K43: 0.1006922925 | L43: 1228.6675 | M43: 0.07128762361 | N43: 1388.394275 | O43: 0.01826282863 | P43: 1228.6675 | Q43: 0.01826282863 | R43: 1388.394275 | S43: 0.01826282863
B44: Non-RPP (Other) | C44: 5 | E44: LARGE USE SERVICE CLASSIFICATION - Non-RPP (Other) | G44: kW | H44: 1151.87 | I44: 0.03936127753 | J44: 4432.87 | K44: 0.1818610349 | L44: 5843.87 | M44: 0.1161455899 | N44: 6603.5731 | O44: 0.01397139062 | P44: 5843.87 | Q44: 0.01397139062 | R44: 6603.5731 | S44: 0.01397139062
B45: 0 | C45: 6 | E45: STANDBY POWER SERVICE CLASSIFICATION - | G45: kW | H45: 0 | I45: 0 | J45: 0 | K45: 0 | L45: 0 | M45: 0 | N45: 0 | O45: 0 | P45: 0 | Q45: 0 | R45: 0 | S45: 0
B46: RPP | C46: 7 | E46: UNMETERED SCATTERED LOAD SERVICE CLASSIFICATION - RPP | G46: kWh | H46: 0.25 | I46: 0.0175192712 | J46: 0.535 | K46: 0.03637642405 | L46: 0.75256 | M46: 0.04027493304 | N46: 0.790188 | O46: 0.01604753085 | P46: 0.75256 | Q46: 0.01604753085 | R46: 0.8503928 | S46: 0.01604753085
B47: Non-RPP (Other) | C47: 8 | E47: STREET LIGHTING SERVICE CLASSIFICATION - Non-RPP (Other) | G47: kW | H47: -3.28723 | I47: -1.202483813 | J47: -3.315425 | K47: -1.161603821 | L47: -3.295875 | M47: -1.027661929 | N47: -3.72433875 | O47: -0.4574559543 | P47: -3.295875 | Q47: -0.4574559543 | R47: -3.72433875 | S47: -0.4574559543
B48: Non-RPP (Retailer) | C48: 9 | E48: RESIDENTIAL SERVICE CLASSIFICATION - Non-RPP (Retailer) | G48: kWh | H48: 0.13 | I48: 0.00522403054 | J48: -0.5075 | K48: -0.01794700418 | L48: 0.1141 | M48: 0.002919801423 | N48: 0.119805 | O48: 0.0009151185443 | P48: 0.1141 | Q48: 0.0009151185443 | R48: 0.128933 | S48: 0.0009151185443
B49: Non-RPP (Retailer) | C49: 10 | E49: GENERAL SERVICE LESS THAN 50 kW SERVICE CLASSIFICATION - Non-RPP (Retailer) | G49: kWh | H49: 2.63 | I49: 0.03719943423 | J49: 0.93 | K49: 0.01180244983 | L49: 2.3804 | M49: 0.02260185266 | N49: 2.49942 | O49: 0.006848109146 | P49: 2.3804 | Q49: 0.006848109146 | R49: 2.689852 | S49: 0.006848109146
B50: Non-RPP (Retailer) | C50: 11 | E50: UNMETERED SCATTERED LOAD SERVICE CLASSIFICATION - Non-RPP (Retailer) | G50: kWh | H50: 0.25 | I50: 0.0175192712 | J50: -0.005 | K50: -0.000324694722 | L50: 0.21256 | M50: 0.0109695252 | N50: 0.2401928 | O50: 0.003814826567 | P50: 0.21256 | Q50: 0.003814826567 | R50: 0.2401928 | S50: 0.003814826567
B51: Non-RPP (Other) | C51: 12 | E51: GENERAL SERVICE 50 to 499 kW SERVICE CLASSIFICATION - Non-RPP (Other) | G51: kW | H51: 0 | I51: 0 | J51: 0 | K51: 0 | L51: 0 | M51: 0 | N51: 0 | O51: 0 | P51: =IF(LEN($G51)>1, (SUMPRODUCT(--($C$72:$C$969=$B26), --($A$72:$A$969=$E26), --($B$72:$B$969=$B51&"_TOTAL"), $M$72:$M$969)), "") -> 0 | Q51: =IF(LEN($G51)>1, (SUMPRODUCT(--($C$72:$C$969=$B26), --($A$72:$A$969=$E26), --($B$72:$B$969=$B51&"_TOTAL"), $N$72:$N$969)), "") -> 0 | R51: =IF(LEN($G51)>1, (SUMPRODUCT(--($C$72:$C$969=$B26), --($A$72:$A$969=$E26), --($B$72:$B$969=$B51&"_TOTAL"), $M$72:$M$969)), "") -> 0 | S51: =IF(LEN($G51)>1, (SUMPRODUCT(--($C$72:$C$969=$B26), --($A$72:$A$969=$E26), --($B$72:$B$969=$B51&"_TOTAL"), $N$72:$N$969)), "") -> 0
B52: Non-RPP (Other) | C52: 13 | E52: GENERAL SERVICE 500 to 4,999 kW SERVICE CLASSIFICATION - Non-RPP (Other) | G52: kW | H52: 0 | I52: 0 | J52: 0 | K52: 0 | L52: 0 | M52: 0 | N52: 0 | O52: 0 | P52: 0 | Q52: 0 | R52: 0 | S52: 0
B53: Non-RPP (Other) | C53: 14 | E53: LARGE USE SERVICE CLASSIFICATION - Non-RPP (Other) | G53: kW | H53: 1151.87 | I53: 0.03936127753 | J53: -192.63 | K53: -0.006642290109 | L53: 1218.37 | M53: 0.02217615626 | N53: 1376.7581 | O53: 0.002880991547 | P53: 1376.7581 | Q53: 0.002880991547 | R53: 1376.7581 | S53: 0.002880991547
B54: 0 | C54: 15 | G54: 0
B55: 0 | C55: 16 | E55: =IF(ISBLANK(E30), "", IF(E30 = "Add additional scenarios if required", "", IF(O30="YES", E30 & " - " & J30 & " - Interval Customers", E30 & " - " &J30))) ->  | G55: =IF(ISBLANK(I30), "", I30) -> 
B56: 0 | C56: 17 | G56: =IF(ISBLANK(I31), "", I31) -> 
B57: 0 | C57: 18 | G57: =IF(ISBLANK(I32), "", I32) -> 
B58: 0 | C58: 19 | G58: =IF(ISBLANK(I33), "", I33) -> 
B59: 0 | C59: 0 | G59: =IF(ISBLANK(I34), "", I34) -> 
E62: Customer Class: | F62: =E15 -> RESIDENTIAL SERVICE CLASSIFICATION | L62: =IF(O14="DEMAND - INTERVAL","RTSR - INTERVAL METERED","") -> 
E63: RPP / Non-RPP: | F63: =H15 -> RPP
E64: Consumption | F64: =K15 -> 750 | G64: kWh
E65: Demand | F65: =L15 -> 0 | G65: kW
E66: Current Loss Factor | F66: =I15 -> 1.036
E67: Proposed/Approved Loss Factor | F67: =J15 -> 1.036
G69: Current OEB-Approved | J69: Proposed | M69: Impact
G70: Rate | H70: Volume | I70: Charge | J70: Rate | K70: Volume | L70: Charge | M70: $ Change | N70: % Change
G71: ($) | I71: ($) | J71: ($) | L71: ($)
A72: =F62 -> RESIDENTIAL SERVICE CLASSIFICATION | D72: R_F | E72: Monthly Service Charge | G72: =IFERROR(SUMIF(RATES!B:B, '21. Bill Impacts'!D72,RATES!H:H),"") -> 19.11 | H72: 1 | I72: =H72*G72 -> 19.11 | J72: =IFERROR(SUMIF(RATES!B:B,'21. Bill Impacts'!D72,RATES!I:I),"") -> 21.61 | K72: 1 | L72: =K72*J72 -> 21.61 | M72: =L72-I72 -> 2.5 | N72: =IF(ISERROR(M72/I72), "", M72/I72) -> 0.1308215594
A73: =A72 -> RESIDENTIAL SERVICE CLASSIFICATION | D73: R_V | E73: Distribution Volumetric Rate | G73: =IFERROR(SUMIF(RATES!B:B, '21. Bill Impacts'!D73,RATES!H:H),"") -> 0.0069 | H73: =IF($F65>0, $F65, $F64) -> 750 | I73: =H73*G73 -> 5.175 | J73: =IFERROR(SUMIF(RATES!B:B,'21. Bill Impacts'!D73,RATES!I:I),"") -> 0.0035 | K73: =IF($F65>0, $F65, $F64) -> 750 | L73: =K73*J73 -> 2.625 | M73: -2.55 | N73: =IF(ISERROR(M73/I73), "", M73/I73) -> -0.4927536232
A74: =A73 -> RESIDENTIAL SERVICE CLASSIFICATION | D74: R_FRR | E74: Fixed Rate Riders | G74: =IFERROR(SUMIF(RATES!B:B, '21. Bill Impacts'!D74,RATES!H:H),"") -> 0.6 | H74: 1 | I74: 0.6 | J74: =IFERROR(SUMIF(RATES!B:B,'21. Bill Impacts'!D74,RATES!I:I),"") -> 0.93 | K74: 1 | L74: =K74*J74 -> 0.93 | M74: 0.33 | N74: 0.55
A75: =A74 -> RESIDENTIAL SERVICE CLASSIFICATION | D75: R_VRR | E75: Volumetric Rate Riders | G75: =IFERROR(SUMIF(RATES!B:B, '21. Bill Impacts'!D75,RATES!H:H),"") -> 0 | H75: =IF($F65>0, $F65, $F64) -> 750 | I75: 0 | J75: =IFERROR(SUMIF(RATES!B:B,'21. Bill Impacts'!D75,RATES!I:I),"") -> -0.0002 | K75: =IF($F65>0, $F65, $F64) -> 750 | L75: -0.15 | M75: -0.15
A76: RESIDENTIAL SERVICE CLASSIFICATION | B76: ST_A | C76: =B15 -> 1 | E76: Sub-Total A (excluding pass through) | I76: =SUM(I72:I75) -> 24.885 | L76: =SUM(L72:L75) -> 25.015 | M76: 0.13 | N76: =IF((I76)=0,"",(M76/I76)) -> 0.00522403054
A77: RESIDENTIAL SERVICE CLASSIFICATION | E77: Line Losses on Cost of Power | G77: =IF((F64*12>=150000), 0, IF(F63="RPP",(G91*0.65+G92*0.17+G93*0.18),IF(F63="Non-RPP (Retailer)",G94,G95))) -> 0.08216 | H77: =IF(G77=0, 0, $F64*F66-F64) -> 27 | I77: =H77*G77 -> 2.21832 | J77: =IF((F64*12>=150000), 0, IF(F63="RPP",(J91*0.65+J92*0.17+J93*0.18),IF(F63="Non-RPP (Retailer)",J94,J95))) -> 0.08216 | K77: =IF(G77=0, 0, $F64*F66-F64) -> 27 | L77: =K77*J77 -> 2.21832 | M77: =L77-I77 -> 0 | N77: =IF(ISERROR(M77/I77), "", M77/I77) -> 0
A78: RESIDENTIAL SERVICE CLASSIFICATION | D78: R_DVA | E78: Total Deferral/Variance Account Rate Riders | G78: =IFERROR(SUMIF(RATES!B:B, '21. Bill Impacts'!D78,RATES!H:H),"") -> -0.0017 | H78: =IF($F65>0, $F65, $F64) -> 750 | I78: -1.275 | J78: =IFERROR(SUMIF(RATES!B:B,'21. Bill Impacts'!D78,RATES!I:I),"") -> -0.00075 | K78: =IF($F65>0, $F65, $F64) -> 750 | L78: -0.5625 | M78: 0.7125 | N78: -0.5588235294
A79: RESIDENTIAL SERVICE CLASSIFICATION | D79: R_GA | E79: GA Rate Riders
A80: RESIDENTIAL SERVICE CLASSIFICATION | D80: R_LV | E80: Low Voltage Service Charge | G80: =IFERROR(SUMIF(RATES!B:B, '21. Bill Impacts'!D80,RATES!H:H),"") -> 0.0002 | H80: =IF($F65>0, $F65, $F64) -> 750 | I80: 0.15 | J80: =IFERROR(SUMIF(RATES!B:B,'21. Bill Impacts'!D80,RATES!I:I),"") -> 0.0002 | K80: =IF($F65>0, $F65, $F64) -> 750 | L80: 0.15 | M80: 0 | N80: 0
A81: RESIDENTIAL SERVICE CLASSIFICATION | E81: Smart Meter Entity Charge (if applicable) and/or any fixed ($) Deferral/Variance Account Rate Riders | G81: 0.57 | H81: 1 | I81: =H81*G81 -> 0.57 | J81: 0.57 | K81: 1 | L81: =K81*J81 -> 0.57 | M81: 0 | N81: =IF(ISERROR(M81/I81), "", M81/I81) -> 0
A82: RESIDENTIAL SERVICE CLASSIFICATION | B82: ST_B | C82: =B15 -> 1 | E82: Sub-Total B - Distribution (includes Sub-Total A) | I82: =SUM(I76:I81) -> 26.54832 | L82: =SUM(L76:L81) -> 27.39082 | M82: 0.8425 | N82: =IF((I82)=0,"",(M82/I82)) -> 0.0317345881
A83: RESIDENTIAL SERVICE CLASSIFICATION | D83: R_TN | E83: RTSR - Network | G83: =IFERROR(SUMIF(RATES!B:B, '21. Bill Impacts'!D83,RATES!H:H),"") -> 0.0076 | H83: =F64+H77 -> 777 | I83: =H83*G83 -> 5.9052 | J83: =IFERROR(SUMIF(RATES!B:B,'21. Bill Impacts'!D83,RATES!I:I),"") -> 0.0076 | K83: =H83 -> 777 | L83: =K83*J83 -> 5.9052 | M83: 0 | N83: =IF(ISERROR(M83/I83), "", M83/I83) -> 0
A84: RESIDENTIAL SERVICE CLASSIFICATION | D84: R_TC | E84: RTSR - Connection and/or Line and Transformation Connection | G84: =IFERROR(SUMIF(RATES!B:B, '21. Bill Impacts'!D84,RATES!H:H),"") -> 0.0063 | H84: =H83 -> 777 | I84: =H84*G84 -> 4.8951 | J84: =IFERROR(SUMIF(RATES!B:B,'21. Bill Impacts'!D84,RATES!I:I),"") -> 0.0071 | K84: =H84 -> 777 | L84: =K84*J84 -> 5.5167 | M84: 0.6216 | N84: =IF(ISERROR(M84/I84), "", M84/I84) -> 0.126984127
A85: RESIDENTIAL SERVICE CLASSIFICATION | B85: ST_C | C85: =B15 -> 1 | E85: Sub-Total C - Delivery (including Sub-Total B) | I85: =SUM(I82:I84) -> 37.34862 | L85: =SUM(L82:L84) -> 38.81272 | M85: 1.4641 | N85: =IF((I85)=0,"",(M85/I85)) -> 0.03920091291
A86: RESIDENTIAL SERVICE CLASSIFICATION | E86: Wholesale Market Service Charge (WMSC) | G86: 0.0036 | H86: =F64*F66 -> 777 | I86: =H86*G86 -> 2.7972 | J86: 0.0036 | K86: =F64*F66 -> 777 | L86: =K86*J86 -> 2.7972 | M86: 0 | N86: =IF(ISERROR(M86/I86), "", M86/I86) -> 0
A87: RESIDENTIAL SERVICE CLASSIFICATION | E87: Rural and Remote Rate Protection (RRRP) | G87: 0.0003 | H87: =F64*F66 -> 777 | I87: 0.2331 | J87: 0.0003 | K87: =F64*F66 -> 777 | L87: 0.2331 | M87: 0 | N87: 0
A88: RESIDENTIAL SERVICE CLASSIFICATION | E88: Standard Supply Service Charge | G88: 0.25 | H88: 1 | I88: 0.25 | J88: 0.25 | K88: 1 | L88: 0.25 | M88: 0 | N88: 0
A89: RESIDENTIAL SERVICE CLASSIFICATION | E89: Debt Retirement Charge (DRC)
A90: RESIDENTIAL SERVICE CLASSIFICATION
A91: RESIDENTIAL SERVICE CLASSIFICATION | B91: RPP | E91: TOU - Off Peak | G91: 0.065 | H91: =IF(AND(F64*12>=150000),0.65*F64*F66,0.65*F64) -> 487.5 | I91: 31.6875 | J91: 0.065 | K91: =IF(AND(F64*12>=150000),0.65*F64*F67,0.65*F64) -> 487.5 | L91: 31.6875 | M91: 0 | N91: 0
A92: RESIDENTIAL SERVICE CLASSIFICATION | B92: RPP | E92: TOU - Mid Peak | G92: 0.095 | H92: =IF(AND(F64*12>=150000),0.17*F64*F66,0.17*F64) -> 127.5 | I92: 12.1125 | J92: 0.095 | K92: =IF(AND(F64*12>=150000),0.17*F64*F67,0.17*F64) -> 127.5 | L92: 12.1125 | M92: 0 | N92: 0
A93: RESIDENTIAL SERVICE CLASSIFICATION | B93: RPP | E93: TOU - On Peak | G93: 0.132 | H93: =IF(AND(F64*12>=150000),0.18*F64*F66,0.18*F64) -> 135 | I93: 17.82 | J93: 0.132 | K93: =IF(AND(F64*12>=150000),0.18*F64*F67,0.18*F64) -> 135 | L93: 17.82 | M93: 0 | N93: 0
A94: RESIDENTIAL SERVICE CLASSIFICATION | B94: Non-RPP (Retailer) | E94: Non-RPP Retailer Avg. Price | G94: =0.1061 -> 0.1061 | H94: =IF(AND(F64*12>=150000),F64*F66,F64) -> 750 | I94: =H94*G94 -> 79.575 | J94: =G94 -> 0.1061 | K94: =IF(AND(F64*12>=150000),F64*F67,F64) -> 750 | L94: =K94*J94 -> 79.575 | M94: 0 | N94: 0
A95: RESIDENTIAL SERVICE CLASSIFICATION | B95: Non-RPP (Other) | E95: Average IESO Wholesale Market Price | G95: =G94 -> 0.1061 | H95: =IF(AND(F64*12>=150000),F64*F66,F64) -> 750 | I95: =H95*G95 -> 79.575 | J95: =G95 -> 0.1061 | K95: =IF(AND(F64*12>=150000),F64*F67,F64) -> 750 | L95: =K95*J95 -> 79.575 | M95: 0 | N95: 0
A96: RESIDENTIAL SERVICE CLASSIFICATION
A97: RESIDENTIAL SERVICE CLASSIFICATION | B97: RPP_BT | C97: 1 | E97: Total Bill on TOU (before Taxes) | I97: =SUM(I86:I93,I85) -> 102.24892 | L97: =SUM(L86:L93,L85) -> 103.71302 | M97: =L97-I97 -> 1.4641 | N97: =IF((I97)=0,"",(M97/I97)) -> 0.01431897765
A98: RESIDENTIAL SERVICE CLASSIFICATION | B98: RPP | E98: HST | G98: 0.13 | I98: =I97*G98 -> 13.2923596 | J98: 0.13 | L98: =L97*J98 -> 13.4826926 | M98: =L98-I98 -> 0.190333 | N98: =IF((I98)=0,"",(M98/I98)) -> 0.01431897765
A99: RESIDENTIAL SERVICE CLASSIFICATION | B99: RPP_NET | C99: 1 | E99: Total Bill on TOU (before 8% Provincial Rebate) | I99: =SUM(I97:I98) -> 115.5412796 | L99: =SUM(L97:L98) -> 117.1957126 | M99: =SUM(M97:M98) -> 1.654433 | N99: =IF((I99)=0,"",(M99/I99)) -> 0.01431897765
A100: =A98 -> RESIDENTIAL SERVICE CLASSIFICATION | B100: RPP | E100: 8% Provincial Rebate | G100: -0.08 | I100: =I97*G100 -> -8.1799136 | J100: =G100 -> -0.08 | L100: =L97*J100 -> -8.2970416 | M100: =L100-I100 -> -0.117128 | N100: =IF((I100)=0,"",(M100/I100)) -> 0.01431897765
A101: RESIDENTIAL SERVICE CLASSIFICATION | B101: RPP_TOTAL | C101: =B15 -> 1 | E101: Total Bill on TOU | I101: =SUM(I97,I98,I100) -> 107.361366 | L101: =L97+L98+L100 -> 108.898671 | M101: =L101-I101 -> 1.537305 | N101: =IF((I101)=0,"",(M101/I101)) -> 0.01431897765
A102: RESIDENTIAL SERVICE CLASSIFICATION | B102: RPP
A103: RESIDENTIAL SERVICE CLASSIFICATION | B103: Non-RPP (Retailer) | E103: Total Bill on Non-RPP Avg. Price | I103: =SUM(I94,I86:I90,I85) -> 120.20392 | L103: =SUM(L94,L86:L90,L85) -> 121.66802 | M103: =L103-I103 -> 1.4641 | N103: =IF((I103)=0,"",(M103/I103)) -> 0.01218013522
A104: RESIDENTIAL SERVICE CLASSIFICATION | B104: Non-RPP (Retailer) | E104: HST | G104: 0.13 | I104: =I103*G104 -> 15.6265096 | J104: 0.13 | L104: =L103*J104 -> 15.8168426 | M104: =L104-I104 -> 0.190333 | N104: =IF((I104)=0,"",(M104/I104)) -> 0.01218013522
A105: RESIDENTIAL SERVICE CLASSIFICATION | B105: Non-RPP (Retailer) | E105: Provincial Rebate | G105: -0.08 | I105: =I103*G105 -> -9.6163136 | J105: =G105 -> -0.08 | L105: =L103*J105 -> -9.7334416 | M105: =L105-I105 -> -0.117128 | N105: =IF((I105)=0,"",(M105/I105)) -> 0.01218013522
A106: RESIDENTIAL SERVICE CLASSIFICATION | B106: Non-RPP (Retailer)_TOTAL | E106: Total Bill on Non-RPP Avg. Price | I106: =SUM(I103,I104,I105) -> 126.214116 | L106: =SUM(L103,L104,L105) -> 127.751421 | M106: =L106-I106 -> 1.537305 | N106: =IF((I106)=0,"",(M106/I106)) -> 0.01218013522
A107: RESIDENTIAL SERVICE CLASSIFICATION | B107: Non-RPP (Retailer)
A108: RESIDENTIAL SERVICE CLASSIFICATION | B108: Non-RPP (Other) | E108: Total Bill on Average IESO Wholesale Market Price | I108: =SUM(I95,I86:I90,I85) -> 120.20392 | L108: =SUM(L95,L86:L90,L85) -> 121.66802 | M108: =L108-I108 -> 1.4641 | N108: =IF((I108)=0,"",(M108/I108)) -> 0.01218013522
A109: RESIDENTIAL SERVICE CLASSIFICATION | B109: Non-RPP (Other) | E109: HST | G109: 0.13 | I109: =I108*G109 -> 15.6265096 | J109: 0.13 | L109: =L108*J109 -> 15.8168426 | M109: =L109-I109 -> 0.190333 | N109: =IF((I109)=0,"",(M109/I109)) -> 0.01218013522
A110: RESIDENTIAL SERVICE CLASSIFICATION | B110: Non-RPP (Other) | E110: Provincial Rebate | G110: -0.08 | I110: =I108*G110 -> -9.6163136 | J110: =G110 -> -0.08 | L110: =L108*J110 -> -9.7334416 | M110: =L110-I110 -> -0.117128 | N110: =IF((I110)=0,"",(M110/I110)) -> 0.01218013522
A111: RESIDENTIAL SERVICE CLASSIFICATION | B111: Non-RPP (Other)_TOTAL | E111: Total Bill on Average IESO Wholesale Market Price | I111: =SUM(I108,I109,I110) -> 126.214116 | L111: =SUM(L108,L109,L110) -> 127.751421 | M111: =L111-I111 -> 1.537305 | N111: =IF((I111)=0,"",(M111/I111)) -> 0.01218013522
A112: RESIDENTIAL SERVICE CLASSIFICATION | B112: Non-RPP (Other)
E115: Customer Class: | F115: =E16 -> GENERAL SERVICE LESS THAN 50 kW SERVICE CLASSIFICATION | L115: =IF(O66="DEMAND - INTERVAL","RTSR - INTERVAL METERED","") -> 
E116: RPP / Non-RPP: | F116: =H16 -> RPP
E117: Consumption | F117: =K16 -> 2000 | G117: kWh
E118: Demand | F118: =L16 -> 0 | G118: kW
E119: Current Loss Factor | F119: =I16 -> 1.036
E120: Proposed/Approved Loss Factor | F120: =J16 -> 1.036
G122: Current OEB-Approved | J122: Proposed | M122: Impact
G123: Rate | H123: Volume | I123: Charge | J123: Rate | K123: Volume | L123: Charge | M123: $ Change | N123: % Change
G124: ($) | I124: ($) | J124: ($) | L124: ($)
A125: =F115 -> GENERAL SERVICE LESS THAN 50 kW SERVICE CLASSIFICATION | D125: GSL_F | E125: Monthly Service Charge | G125: =IFERROR(SUMIF(RATES!B:B, '21. Bill Impacts'!D125,RATES!H:H),"") -> 43.6 | H125: 1 | I125: =H125*G125 -> 43.6 | J125: =IFERROR(SUMIF(RATES!B:B,'21. Bill Impacts'!D125,RATES!I:I),"") -> 43.99 | K125: 1 | L125: =K125*J125 -> 43.99 | M125: =L125-I125 -> 0.39 | N125: =IF(ISERROR(M125/I125), "", M125/I125) -> 0.008944954128
A126: =A125 -> GENERAL SERVICE LESS THAN 50 kW SERVICE CLASSIFICATION | D126: GSL_V | E126: Distribution Volumetric Rate | G126: =IFERROR(SUMIF(RATES!B:B, '21. Bill Impacts'!D126,RATES!H:H),"") -> 0.0127 | H126: =IF($F118>0, $F118, $F117) -> 2000 | I126: =H126*G126 -> 25.4 | J126: =IFERROR(SUMIF(RATES!B:B,'21. Bill Impacts'!D126,RATES!I:I),"") -> 0.0128 | K126: =IF($F118>0, $F118, $F117) -> 2000 | L126: =K126*J126 -> 25.6 | M126: 0.2 | N126: =IF(ISERROR(M126/I126), "", M126/I126) -> 0.007874015748
A127: =A126 -> GENERAL SERVICE LESS THAN 50 kW SERVICE CLASSIFICATION | D127: GSL_FRR | E127: Fixed Rate Riders | G127: =IFERROR(SUMIF(RATES!B:B, '21. Bill Impacts'!D127,RATES!H:H),"") -> 1.1 | H127: 1 | I127: 1.1 | J127: =IFERROR(SUMIF(RATES!B:B,'21. Bill Impacts'!D127,RATES!I:I),"") -> 1.74 | K127: 1 | L127: =K127*J127 -> 1.74 | M127: 0.64 | N127: 0.5818181818
A128: GENERAL SERVICE LESS THAN 50 kW SERVICE CLASSIFICATION | D128: GSL_VRR | E128: Volumetric Rate Riders | G128: =IFERROR(SUMIF(RATES!B:B, '21. Bill Impacts'!D128,RATES!H:H),"") -> 0.0003 | H128: =IF($F118>0, $F118, $F117) -> 2000 | I128: 0.6 | J128: =IFERROR(SUMIF(RATES!B:B,'21. Bill Impacts'!D128,RATES!I:I),"") -> 0.001 | K128: =IF($F118>0, $F118, $F117) -> 2000 | L128: 2 | M128: 1.4 | N128: 2.333333333
A129: GENERAL SERVICE LESS THAN 50 kW SERVICE CLASSIFICATION | B129: ST_A | C129: =B16 -> 2 | E129: Sub-Total A (excluding pass through) | I129: =SUM(I125:I128) -> 70.7 | L129: =SUM(L125:L128) -> 73.33 | M129: 2.63 | N129: =IF((I129)=0,"",(M129/I129)) -> 0.03719943423
A130: GENERAL SERVICE LESS THAN 50 kW SERVICE CLASSIFICATION | E130: Line Losses on Cost of Power | G130: =IF((F117*12>=150000), 0, IF(F116="RPP",(G144*0.65+G145*0.17+G146*0.18),IF(F116="Non-RPP (Retailer)",G147,G148))) -> 0.08216 | H130: =IF(G130=0, 0, $F117*F119-F117) -> 72 | I130: =H130*G130 -> 5.91552 | J130: =IF((F117*12>=150000), 0, IF(F116="RPP",(J144*0.65+J145*0.17+J146*0.18),IF(F116="Non-RPP (Retailer)",J147,J148))) -> 0.08216 | K130: =IF(G130=0, 0, $F117*F119-F117) -> 72 | L130: =K130*J130 -> 5.91552 | M130: =L130-I130 -> 0 | N130: =IF(ISERROR(M130/I130), "", M130/I130) -> 0
A131: GENERAL SERVICE LESS THAN 50 kW SERVICE CLASSIFICATION | D131: GSL_DVA | E131: Total Deferral/Variance Account Rate Riders | G131: =IFERROR(SUMIF(RATES!B:B, '21. Bill Impacts'!D131,RATES!H:H),"") -> -0.0017 | H131: =IF($F118>0, $F118, $F117) -> 2000 | I131: =H131*G131 -> -3.4 | J131: =IFERROR(SUMIF(RATES!B:B,'21. Bill Impacts'!D131,RATES!I:I),"") -> -0.00075 | K131: =IF($F118>0, $F118, $F117) -> 2000 | L131: =K131*J131 -> -1.5 | M131: =L131-I131 -> 1.9 | N131: =IF(ISERROR(M131/I131), "", M131/I131) -> -0.5588235294
A132: GENERAL SERVICE LESS THAN 50 kW SERVICE CLASSIFICATION | D132: GSL_GA | E132: GA Rate Riders
A133: GENERAL SERVICE LESS THAN 50 kW SERVICE CLASSIFICATION | D133: GSL_LV | E133: Low Voltage Service Charge | G133: =IFERROR(SUMIF(RATES!B:B, '21. Bill Impacts'!D133,RATES!H:H),"") -> 0.0002 | H133: =IF($F118>0, $F118, $F117) -> 2000 | I133: 0.4 | J133: =IFERROR(SUMIF(RATES!B:B,'21. Bill Impacts'!D133,RATES!I:I),"") -> 0.0002 | K133: =IF($F118>0, $F118, $F117) -> 2000 | L133: 0.4 | M133: 0 | N133: 0
A134: GENERAL SERVICE LESS THAN 50 kW SERVICE CLASSIFICATION | E134: Smart Meter Entity Charge (if applicable) and/or any fixed ($) Deferral/Variance Account Rate Riders | G134: 0.57 | H134: 1 | I134: =H134*G134 -> 0.57 | J134: 0.57 | K134: 1 | L134: =K134*J134 -> 0.57 | M134: 0 | N134: =IF(ISERROR(M134/I134), "", M134/I134) -> 0
A135: GENERAL SERVICE LESS THAN 50 kW SERVICE CLASSIFICATION | B135: ST_B | C135: =C129 -> 2 | E135: Sub-Total B - Distribution (includes Sub-Total A) | I135: =SUM(I129:I134) -> 74.18552 | L135: =SUM(L129:L134) -> 78.71552 | M135: 4.53 | N135: =IF((I135)=0,"",(M135/I135)) -> 0.0610631293
A136: GENERAL SERVICE LESS THAN 50 kW SERVICE CLASSIFICATION | D136: GSL_TN | E136: RTSR - Network | G136: =IFERROR(SUMIF(RATES!B:B, '21. Bill Impacts'!D136,RATES!H:H),"") -> 0.0071 | H136: =F117+H130 -> 2072 | I136: =H136*G136 -> 14.7112 | J136: =IFERROR(SUMIF(RATES!B:B,'21. Bill Impacts'!D136,RATES!I:I),"") -> 0.0071 | K136: =H136 -> 2072 | L136: =K136*J136 -> 14.7112 | M136: 0 | N136: =IF(ISERROR(M136/I136), "", M136/I136) -> 0
A137: GENERAL SERVICE LESS THAN 50 kW SERVICE CLASSIFICATION | D137: GSL_TC | E137: RTSR - Connection and/or Line and Transformation Connection | G137: =IFERROR(SUMIF(RATES!B:B, '21. Bill Impacts'!D137,RATES!H:H),"") -> 0.0057 | H137: =H136 -> 2072 | I137: =H137*G137 -> 11.8104 | J137: =IFERROR(SUMIF(RATES!B:B,'21. Bill Impacts'!D137,RATES!I:I),"") -> 0.0064 | K137: =H137 -> 2072 | L137: =K137*J137 -> 13.2608 | M137: 1.4504 | N137: =IF(ISERROR(M137/I137), "", M137/I137) -> 0.1228070175
A138: GENERAL SERVICE LESS THAN 50 kW SERVICE CLASSIFICATION | B138: ST_C | C138: =C129 -> 2 | E138: Sub-Total C - Delivery (including Sub-Total B) | I138: =SUM(I135:I137) -> 100.70712 | L138: =SUM(L135:L137) -> 106.68752 | M138: 5.9804 | N138: =IF((I138)=0,"",(M138/I138)) -> 0.05938408327
A139: GENERAL SERVICE LESS THAN 50 kW SERVICE CLASSIFICATION | E139: Wholesale Market Service Charge (WMSC) | G139: 0.0036 | H139: =F117*F119 -> 2072 | I139: =H139*G139 -> 7.4592 | J139: 0.0036 | K139: =F117*F119 -> 2072 | L139: =K139*J139 -> 7.4592 | M139: 0 | N139: =IF(ISERROR(M139/I139), "", M139/I139) -> 0
A140: GENERAL SERVICE LESS THAN 50 kW SERVICE CLASSIFICATION | E140: Rural and Remote Rate Protection (RRRP) | G140: 0.0003 | H140: =F117*F119 -> 2072 | I140: 0.6216 | J140: 0.0003 | K140: =F117*F119 -> 2072 | L140: 0.6216 | M140: 0 | N140: 0
A141: GENERAL SERVICE LESS THAN 50 kW SERVICE CLASSIFICATION | E141: Standard Supply Service Charge | G141: 0.25 | H141: 1 | I141: 0.25 | J141: 0.25 | K141: 1 | L141: 0.25 | M141: 0 | N141: 0
A142: GENERAL SERVICE LESS THAN 50 kW SERVICE CLASSIFICATION | E142: Debt Retirement Charge (DRC) | G142: 0.007 | H142: =F117 -> 2000 | I142: 14 | J142: 0.007 | K142: =F117 -> 2000 | L142: 14 | M142: 0 | N142: 0
A143: GENERAL SERVICE LESS THAN 50 kW SERVICE CLASSIFICATION
A144: GENERAL SERVICE LESS THAN 50 kW SERVICE CLASSIFICATION | B144: RPP | E144: TOU - Off Peak | G144: 0.065 | H144: =IF(AND(F117*12>=150000),0.65*F117*F119,0.65*F117) -> 1300 | I144: =H144*G144 -> 84.5 | J144: 0.065 | K144: =IF(AND(F117*12>=150000),0.65*F117*F120,0.65*F117) -> 1300 | L144: =K144*J144 -> 84.5 | M144: =L144-I144 -> 0 | N144: =IF(ISERROR(M144/I144), "", M144/I144) -> 0
A145: GENERAL SERVICE LESS THAN 50 kW SERVICE CLASSIFICATION | B145: RPP | E145: TOU - Mid Peak | G145: 0.095 | H145: =IF(AND(F117*12>=150000),0.17*F117*F119,0.17*F117) -> 340 | I145: 32.3 | J145: 0.095 | K145: =IF(AND(F117*12>=150000),0.17*F117*F120,0.17*F117) -> 340 | L145: 32.3 | M145: 0 | N145: 0
A146: GENERAL SERVICE LESS THAN 50 kW SERVICE CLASSIFICATION | B146: RPP | E146: TOU - On Peak | G146: 0.132 | H146: =IF(AND(F117*12>=150000),0.18*F117*F119,0.18*F117) -> 360 | I146: 47.52 | J146: 0.132 | K146: =IF(AND(F117*12>=150000),0.18*F117*F120,0.18*F117) -> 360 | L146: 47.52 | M146: 0 | N146: 0
A147: GENERAL SERVICE LESS THAN 50 kW SERVICE CLASSIFICATION | B147: Non-RPP (Retailer) | E147: Non-RPP Retailer Avg. Price | G147: =0.1061 -> 0.1061 | H147: =IF(AND(F117*12>=150000),F117*F119,F117) -> 2000 | I147: =H147*G147 -> 212.2 | J147: =G147 -> 0.1061 | K147: =IF(AND(F117*12>=150000),F117*F120,F117) -> 2000 | L147: =K147*J147 -> 212.2 | M147: 0 | N147: 0
A148: GENERAL SERVICE LESS THAN 50 kW SERVICE CLASSIFICATION | B148: Non-RPP (Other) | E148: Average IESO Wholesale Market Price | G148: =G147 -> 0.1061 | H148: =IF(AND(F117*12>=150000),F117*F119,F117) -> 2000 | I148: =H148*G148 -> 212.2 | J148: =G148 -> 0.1061 | K148: =IF(AND(F117*12>=150000),F117*F120,F117) -> 2000 | L148: =K148*J148 -> 212.2 | M148: 0 | N148: 0
A149: GENERAL SERVICE LESS THAN 50 kW SERVICE CLASSIFICATION
A150: GENERAL SERVICE LESS THAN 50 kW SERVICE CLASSIFICATION | B150: RPP_BT | C150: 2 | E150: Total Bill on TOU (before Taxes) | I150: =SUM(I139:I146,I138) -> 287.35792 | L150: =SUM(L139:L146,L138) -> 293.33832 | M150: =L150-I150 -> 5.9804 | N150: =IF((I150)=0,"",(M150/I150)) -> 0.02081167625
A151: GENERAL SERVICE LESS THAN 50 kW SERVICE CLASSIFICATION | B151: RPP | E151: HST | G151: 0.13 | I151: =I150*G151 -> 37.3565296 | J151: 0.13 | L151: =L150*J151 -> 38.1339816 | M151: =L151-I151 -> 0.777452 | N151: =IF((I151)=0,"",(M151/I151)) -> 0.02081167625
A152: GENERAL SERVICE LESS THAN 50 kW SERVICE CLASSIFICATION | B152: RPP_NET | C152: 2 | E152: Total Bill on TOU (before 8% Provincial Rebate) | I152: =SUM(I150:I151) -> 324.7144496 | L152: =SUM(L150:L151) -> 331.4723016 | M152: =SUM(M150:M151) -> 6.757852 | N152: =IF((I152)=0,"",(M152/I152)) -> 0.02081167625
A153: =A151 -> GENERAL SERVICE LESS THAN 50 kW SERVICE CLASSIFICATION | B153: RPP | E153: 8% Provincial Rebate | G153: -0.08 | I153: =I150*G153 -> -22.9886336 | J153: =G153 -> -0.08 | L153: =L150*J153 -> -23.4670656 | M153: =L153-I153 -> -0.478432 | N153: =IF((I153)=0,"",(M153/I153)) -> 0.02081167625
A154: GENERAL SERVICE LESS THAN 50 kW SERVICE CLASSIFICATION | B154: RPP_TOTAL | C154: =C129 -> 2 | E154: Total Bill on TOU | I154: =SUM(I150,I151,I153) -> 301.725816 | L154: =L150+L151+L153 -> 308.005236 | M154: =L154-I154 -> 6.27942 | N154: =IF((I154)=0,"",(M154/I154)) -> 0.02081167625
A155: GENERAL SERVICE LESS THAN 50 kW SERVICE CLASSIFICATION | B155: RPP
A156: GENERAL SERVICE LESS THAN 50 kW SERVICE CLASSIFICATION | B156: Non-RPP (Retailer) | E156: Total Bill on Non-RPP Avg. Price | I156: =SUM(I147,I139:I143,I138) -> 335.23792 | L156: =SUM(L147,L139:L143,L138) -> 341.21832 | M156: =L156-I156 -> 5.9804 | N156: =IF((I156)=0,"",(M156/I156)) -> 0.01783927069
A157: GENERAL SERVICE LESS THAN 50 kW SERVICE CLASSIFICATION | B157: Non-RPP (Retailer) | E157: HST | G157: 0.13 | I157: =I156*G157 -> 43.5809296 | J157: 0.13 | L157: =L156*J157 -> 44.3583816 | M157: =L157-I157 -> 0.777452 | N157: =IF((I157)=0,"",(M157/I157)) -> 0.01783927069
A158: GENERAL SERVICE LESS THAN 50 kW SERVICE CLASSIFICATION | B158: Non-RPP (Retailer) | E158: Provincial Rebate | G158: -0.08 | I158: =I156*G158 -> -26.8190336 | J158: =G158 -> -0.08 | L158: =L156*J158 -> -27.2974656 | M158: =L158-I158 -> -0.478432 | N158: =IF((I158)=0,"",(M158/I158)) -> 0.01783927069
A159: GENERAL SERVICE LESS THAN 50 kW SERVICE CLASSIFICATION | B159: Non-RPP (Retailer)_TOTAL | E159: Total Bill on Non-RPP Avg. Price | I159: =SUM(I156,I157,I158) -> 351.999816 | L159: =SUM(L156,L157,L158) -> 358.279236 | M159: =L159-I159 -> 6.27942 | N159: =IF((I159)=0,"",(M159/I159)) -> 0.01783927069
A160: GENERAL SERVICE LESS THAN 50 kW SERVICE CLASSIFICATION | B160: Non-RPP (Retailer)
A161: GENERAL SERVICE LESS THAN 50 kW SERVICE CLASSIFICATION | B161: Non-RPP (Other) | E161: Total Bill on Average IESO Wholesale Market Price | I161: =SUM(I148,I139:I143,I138) -> 335.23792 | L161: =SUM(L148,L139:L143,L138) -> 341.21832 | M161: =L161-I161 -> 5.9804 | N161: =IF((I161)=0,"",(M161/I161)) -> 0.01783927069
A162: GENERAL SERVICE LESS THAN 50 kW SERVICE CLASSIFICATION | B162: Non-RPP (Other) | E162: HST | G162: 0.13 | I162: =I161*G162 -> 43.5809296 | J162: 0.13 | L162: =L161*J162 -> 44.3583816 | M162: =L162-I162 -> 0.777452 | N162: =IF((I162)=0,"",(M162/I162)) -> 0.01783927069
A163: GENERAL SERVICE LESS THAN 50 kW SERVICE CLASSIFICATION | B163: Non-RPP (Other) | E163: Provincial Rebate | G163: -0.08 | I163: =I161*G163 -> -26.8190336 | J163: =G163 -> -0.08 | L163: =L161*J163 -> -27.2974656 | M163: =L163-I163 -> -0.478432 | N163: =IF((I163)=0,"",(M163/I163)) -> 0.01783927069
A164: GENERAL SERVICE LESS THAN 50 kW SERVICE CLASSIFICATION | B164: Non-RPP (Other)_TOTAL | E164: Total Bill on Average IESO Wholesale Market Price | I164: =SUM(I161,I162,I163) -> 351.999816 | L164: =SUM(L161,L162,L163) -> 358.279236 | M164: =L164-I164 -> 6.27942 | N164: =IF((I164)=0,"",(M164/I164)) -> 0.01783927069
A165: GENERAL SERVICE LESS THAN 50 kW SERVICE CLASSIFICATION | B165: Non-RPP (Other)
E168: Customer Class: | F168: =E17 -> GENERAL SERVICE 50 to 499 kW SERVICE CLASSIFICATION | L168: =IF(O119="DEMAND - INTERVAL","RTSR - INTERVAL METERED","") -> 
E169: RPP / Non-RPP: | F169: =H17 -> Non-RPP (Other)
E170: Consumption | F170: =K17 -> 100000 | G170: kWh
E171: Demand | F171: =L17 -> 230 | G171: kW
E172: Current Loss Factor | F172: =I17 -> 1.036
E173: Proposed/Approved Loss Factor | F173: =J17 -> 1.036
G175: Current OEB-Approved | J175: Proposed | M175: Impact
G176: Rate | H176: Volume | I176: Charge | J176: Rate | K176: Volume | L176: Charge | M176: $ Change | N176: % Change
G177: ($) | I177: ($) | J177: ($) | L177: ($)
A178: =F168 -> GENERAL SERVICE 50 to 499 kW SERVICE CLASSIFICATION | D178: GS50_499_F | E178: Monthly Service Charge | G178: =IFERROR(SUMIF(RATES!B:B, '21. Bill Impacts'!D178,RATES!H:H),"") -> 76.79 | H178: 1 | I178: =H178*G178 -> 76.79 | J178: =IFERROR(SUMIF(RATES!B:B,'21. Bill Impacts'!D178,RATES!I:I),"") -> 77.48 | K178: 1 | L178: =K178*J178 -> 77.48 | M178: =L178-I178 -> 0.69 | N178: =IF(ISERROR(M178/I178), "", M178/I178) -> 0.008985544993
A179: =A178 -> GENERAL SERVICE 50 to 499 kW SERVICE CLASSIFICATION | D179: GS50_499_V | E179: Distribution Volumetric Rate | G179: =IFERROR(SUMIF(RATES!B:B, '21. Bill Impacts'!D179,RATES!H:H),"") -> 4.6213 | H179: =IF($F171>0, $F171, $F170) -> 230 | I179: =H179*G179 -> 1062.899 | J179: =IFERROR(SUMIF(RATES!B:B,'21. Bill Impacts'!D179,RATES!I:I),"") -> 4.6629 | K179: =IF($F171>0, $F171, $F170) -> 230 | L179: =K179*J179 -> 1072.467 | M179: 9.568 | N179: =IF(ISERROR(M179/I179), "", M179/I179) -> 0.009001796031
A180: =A179 -> GENERAL SERVICE 50 to 499 kW SERVICE CLASSIFICATION | D180: GS50_499_FRR | E180: Fixed Rate Riders | G180: =IFERROR(SUMIF(RATES!B:B, '21. Bill Impacts'!D180,RATES!H:H),"") -> 1.93 | H180: 1 | I180: 1.93 | J180: =IFERROR(SUMIF(RATES!B:B,'21. Bill Impacts'!D180,RATES!I:I),"") -> 5.28 | K180: 1 | L180: =K180*J180 -> 5.28 | M180: 3.35 | N180: 1.735751295
A181: =A180 -> GENERAL SERVICE 50 to 499 kW SERVICE CLASSIFICATION | D181: GS50_499_VRR | E181: Volumetric Rate Riders | G181: =IFERROR(SUMIF(RATES!B:B, '21. Bill Impacts'!D181,RATES!H:H),"") -> 0.1163 | H181: =IF($F171>0, $F171, $F170) -> 230 | I181: 26.749 | J181: =IFERROR(SUMIF(RATES!B:B,'21. Bill Impacts'!D181,RATES!I:I),"") -> 0.6056 | K181: =IF($F171>0, $F171, $F170) -> 230 | L181: 139.288 | M181: 112.539 | N181: 4.2072227
A182: GENERAL SERVICE 50 to 499 kW SERVICE CLASSIFICATION | B182: ST_A | C182: =B17 -> 3 | E182: Sub-Total A (excluding pass through) | I182: =SUM(I178:I181) -> 1168.368 | L182: =SUM(L178:L181) -> 1294.515 | M182: 126.147 | N182: =IF((I182)=0,"",(M182/I182)) -> 0.107968551
A183: GENERAL SERVICE 50 to 499 kW SERVICE CLASSIFICATION | E183: Line Losses on Cost of Power | G183: =IF((F170*12>=150000), 0, IF(F169="RPP",(G197*0.65+G198*0.17+G199*0.18),IF(F169="Non-RPP (Retailer)",G200,G201))) -> 0 | H183: =IF(G183=0, 0, $F170*F172-F170) -> 0 | I183: =H183*G183 -> 0 | J183: =IF((F170*12>=150000), 0, IF(F169="RPP",(J197*0.65+J198*0.17+J199*0.18),IF(F169="Non-RPP (Retailer)",J200,J201))) -> 0 | K183: =IF(G183=0, 0, $F170*F172-F170) -> 0 | L183: =K183*J183 -> 0 | M183: =L183-I183 -> 0 | N183: =IF(ISERROR(M183/I183), "", M183/I183) -> 
A184: GENERAL SERVICE 50 to 499 kW SERVICE CLASSIFICATION | D184: GS50_499_DVA | E184: Total Deferral/Variance Account Rate Riders | G184: =IFERROR(SUMIF(RATES!B:B, '21. Bill Impacts'!D184,RATES!H:H),"") -> -0.5942 | H184: =IF($F171>0, $F171, $F170) -> 230 | I184: =H184*G184 -> -136.666 | J184: =IFERROR(SUMIF(RATES!B:B,'21. Bill Impacts'!D184,RATES!I:I),"") -> -0.26936 | K184: =IF($F171>0, $F171, $F170) -> 230 | L184: =K184*J184 -> -61.9528 | M184: =L184-I184 -> 74.7132 | N184: =IF(ISERROR(M184/I184), "", M184/I184) -> -0.546684618
A185: GENERAL SERVICE 50 to 499 kW SERVICE CLASSIFICATION | D185: GS50_499_GA | E185: GA Rate Riders | G185: =IFERROR(SUMIF(RATES!B:B, '21. Bill Impacts'!D185,RATES!H:H),"") -> 0.0013 | H185: =F170 -> 100000 | I185: 130 | J185: =IFERROR(SUMIF(RATES!B:B,'21. Bill Impacts'!D185,RATES!I:I),"") -> -0.0005 | K185: =K195 -> 100000 | L185: -50 | M185: -180 | N185: -1.384615385
A186: =A185 -> GENERAL SERVICE 50 to 499 kW SERVICE CLASSIFICATION | D186: GS50_499_LV | E186: Low Voltage Service Charge | G186: =IFERROR(SUMIF(RATES!B:B, '21. Bill Impacts'!D186,RATES!H:H),"") -> 0.0802 | H186: =IF($F171>0, $F171, $F170) -> 230 | I186: 18.446 | J186: =IFERROR(SUMIF(RATES!B:B,'21. Bill Impacts'!D186,RATES!I:I),"") -> 0.0802 | K186: =IF($F171>0, $F171, $F170) -> 230 | L186: 18.446 | M186: 0 | N186: 0
A187: GENERAL SERVICE 50 to 499 kW SERVICE CLASSIFICATION | E187: Smart Meter Entity Charge (if applicable) and/or any fixed ($) Deferral/Variance Account Rate Riders | G187: =IFERROR(SUMIF(RATES!B:B, '21. Bill Impacts'!D187,RATES!H:H),"") -> 0 | H187: 1 | I187: =H187*G187 -> 0 | J187: 0 | K187: 1 | L187: =K187*J187 -> 0 | M187: 0 | N187: =IF(ISERROR(M187/I187), "", M187/I187) -> 
A188: GENERAL SERVICE 50 to 499 kW SERVICE CLASSIFICATION | B188: ST_B | C188: =C182 -> 3 | E188: Sub-Total B - Distribution (includes Sub-Total A) | I188: =SUM(I182:I187) -> 1180.148 | L188: =SUM(L182:L187) -> 1201.0082 | M188: 20.8602 | N188: =IF((I188)=0,"",(M188/I188)) -> 0.01767591861
A189: GENERAL SERVICE 50 to 499 kW SERVICE CLASSIFICATION | D189: GS50_499_TN | E189: RTSR - Network | G189: =IFERROR(SUMIF(RATES!B:B, '21. Bill Impacts'!D189,RATES!H:H),"") -> 2.7431 | H189: =IF($F171>0, $F171, $F170*$F172) -> 230 | I189: =H189*G189 -> 630.913 | J189: =IFERROR(SUMIF(RATES!B:B,'21. Bill Impacts'!D189,RATES!I:I),"") -> 2.7325 | K189: =IF($F171>0, $F171, $F170*$F172) -> 230 | L189: =K189*J189 -> 628.475 | M189: -2.438 | N189: =IF(ISERROR(M189/I189), "", M189/I189) -> -0.003864241187
A190: GENERAL SERVICE 50 to 499 kW SERVICE CLASSIFICATION | D190: GS50_499_TC | E190: RTSR - Connection and/or Line and Transformation Connection | G190: =IFERROR(SUMIF(RATES!B:B, '21. Bill Impacts'!D190,RATES!H:H),"") -> 2.2543 | H190: =IF($F171>0, $F171, $F170*$F172) -> 230 | I190: =H190*G190 -> 518.489 | J190: =IFERROR(SUMIF(RATES!B:B,'21. Bill Impacts'!D190,RATES!I:I),"") -> 2.5347 | K190: =IF($F171>0, $F171, $F170*$F172) -> 230 | L190: =K190*J190 -> 582.981 | M190: 64.492 | N190: =IF(ISERROR(M190/I190), "", M190/I190) -> 0.1243845096
A191: GENERAL SERVICE 50 to 499 kW SERVICE CLASSIFICATION | B191: ST_C | C191: =C182 -> 3 | E191: Sub-Total C - Delivery (including Sub-Total B) | I191: =SUM(I188:I190) -> 2329.55 | L191: =SUM(L188:L190) -> 2412.4642 | M191: 82.9142 | N191: =IF((I191)=0,"",(M191/I191)) -> 0.03559236762
A192: GENERAL SERVICE 50 to 499 kW SERVICE CLASSIFICATION | E192: Wholesale Market Service Charge (WMSC) | G192: 0.0036 | H192: =F170*F172 -> 103600 | I192: =H192*G192 -> 372.96 | J192: 0.0036 | K192: =F170*F172 -> 103600 | L192: =K192*J192 -> 372.96 | M192: 0 | N192: =IF(ISERROR(M192/I192), "", M192/I192) -> 0
A193: GENERAL SERVICE 50 to 499 kW SERVICE CLASSIFICATION | E193: Rural and Remote Rate Protection (RRRP) | G193: 0.0003 | H193: =F170*F172 -> 103600 | I193: 31.08 | J193: 0.0003 | K193: =F170*F172 -> 103600 | L193: 31.08 | M193: 0 | N193: 0
A194: GENERAL SERVICE 50 to 499 kW SERVICE CLASSIFICATION | E194: Standard Supply Service Charge | G194: 0.25 | I194: 0 | J194: 0.25 | L194: 0 | M194: 0
A195: GENERAL SERVICE 50 to 499 kW SERVICE CLASSIFICATION | E195: Debt Retirement Charge (DRC) | G195: 0.007 | H195: =F170 -> 100000 | I195: 700 | J195: 0.007 | K195: =F170 -> 100000 | L195: 700 | M195: 0 | N195: 0
A196: GENERAL SERVICE 50 to 499 kW SERVICE CLASSIFICATION
A197: GENERAL SERVICE 50 to 499 kW SERVICE CLASSIFICATION | B197: RPP | E197: TOU - Off Peak | G197: 0.065 | H197: =IF(AND(F170*12>=150000),0.65*F170*F172,0.65*F170) -> 67340 | I197: =H197*G197 -> 4377.1 | J197: 0.065 | K197: =IF(AND(F170*12>=150000),0.65*F170*F173,0.65*F170) -> 67340 | L197: =K197*J197 -> 4377.1 | M197: =L197-I197 -> 0 | N197: =IF(ISERROR(M197/I197), "", M197/I197) -> 0
A198: GENERAL SERVICE 50 to 499 kW SERVICE CLASSIFICATION | B198: RPP | E198: TOU - Mid Peak | G198: 0.095 | H198: =IF(AND(F170*12>=150000),0.17*F170*F172,0.17*F170) -> 17612 | I198: 1673.14 | J198: 0.095 | K198: =IF(AND(F170*12>=150000),0.17*F170*F173,0.17*F170) -> 17612 | L198: 1673.14 | M198: 0 | N198: 0
A199: GENERAL SERVICE 50 to 499 kW SERVICE CLASSIFICATION | B199: RPP | E199: TOU - On Peak | G199: 0.132 | H199: =IF(AND(F170*12>=150000),0.18*F170*F172,0.18*F170) -> 18648 | I199: 2461.536 | J199: 0.132 | K199: =IF(AND(F170*12>=150000),0.18*F170*F173,0.18*F170) -> 18648 | L199: 2461.536 | M199: 0 | N199: 0
A200: GENERAL SERVICE 50 to 499 kW SERVICE CLASSIFICATION | B200: Non-RPP (Retailer) | E200: Non-RPP Retailer Avg. Price | G200: =0.1061 -> 0.1061 | H200: =IF(AND(F170*12>=150000),F170*F172,F170) -> 103600 | I200: =H200*G200 -> 10991.96 | J200: =G200 -> 0.1061 | K200: =IF(AND(F170*12>=150000),F170*F173,F170) -> 103600 | L200: =K200*J200 -> 10991.96 | M200: 0 | N200: 0
A201: GENERAL SERVICE 50 to 499 kW SERVICE CLASSIFICATION | B201: Non-RPP (Other) | E201: Average IESO Wholesale Market Price | G201: 0.1101 | H201: =IF(AND(F170*12>=150000),F170*F172,F170) -> 103600 | I201: =H201*G201 -> 11406.36 | J201: =G201 -> 0.1101 | K201: =IF(AND(F170*12>=150000),F170*F173,F170) -> 103600 | L201: =K201*J201 -> 11406.36 | M201: 0 | N201: 0
A202: GENERAL SERVICE 50 to 499 kW SERVICE CLASSIFICATION
A203: GENERAL SERVICE 50 to 499 kW SERVICE CLASSIFICATION | B203: RPP | E203: Total Bill on TOU (before Taxes) | I203: =SUM(I192:I199,I191) -> 11945.366 | L203: =SUM(L192:L199,L191) -> 12028.2802 | M203: =L203-I203 -> 82.9142 | N203: =IF((I203)=0,"",(M203/I203)) -> 0.006941118422
A204: GENERAL SERVICE 50 to 499 kW SERVICE CLASSIFICATION | B204: RPP | E204: HST | G204: 0.13 | I204: =I203*G204 -> 1552.89758 | J204: 0.13 | L204: =L203*J204 -> 1563.676426 | M204: =L204-I204 -> 10.778846 | N204: =IF((I204)=0,"",(M204/I204)) -> 0.006941118422
A205: GENERAL SERVICE 50 to 499 kW SERVICE CLASSIFICATION | B205: RPP | E205: 8% Provincial Rebate | G205: -0.08 | I205: =I203*G205 -> -955.62928 | J205: =G205 -> -0.08 | L205: =L203*J205 -> -962.262416 | M205: =L205-I205 -> -6.633136 | N205: =IF((I205)=0,"",(M205/I205)) -> 0.006941118422
A206: GENERAL SERVICE 50 to 499 kW SERVICE CLASSIFICATION | B206: RPP_TOTAL | E206: Total Bill on TOU | I206: =SUM(I203,I204,I205) -> 12542.6343 | L206: =L203+L204+L205 -> 12629.69421 | M206: =L206-I206 -> 87.05991 | N206: =IF((I206)=0,"",(M206/I206)) -> 0.006941118422
A207: GENERAL SERVICE 50 to 499 kW SERVICE CLASSIFICATION | B207: RPP
A208: GENERAL SERVICE 50 to 499 kW SERVICE CLASSIFICATION | B208: Non-RPP (Retailer) | E208: Total Bill on Non-RPP Avg. Price | I208: =SUM(I200,I192:I196,I191) -> 14425.55 | L208: =SUM(L200,L192:L196,L191) -> 14508.4642 | M208: =L208-I208 -> 82.9142 | N208: =IF((I208)=0,"",(M208/I208)) -> 0.005747732322
A209: GENERAL SERVICE 50 to 499 kW SERVICE CLASSIFICATION | B209: Non-RPP (Retailer) | E209: HST | G209: 0.13 | I209: =I208*G209 -> 1875.3215 | J209: 0.13 | L209: =L208*J209 -> 1886.100346 | M209: =L209-I209 -> 10.778846 | N209: =IF((I209)=0,"",(M209/I209)) -> 0.005747732322
A210: GENERAL SERVICE 50 to 499 kW SERVICE CLASSIFICATION | B210: Non-RPP (Retailer) | E210: 8% Provincial Rebate | G210: -0.08 | I210: =I208*G210 -> -1154.044 | J210: =G210 -> -0.08 | L210: =L208*J210 -> -1160.677136 | M210: =L210-I210 -> -6.633136 | N210: =IF((I210)=0,"",(M210/I210)) -> 0.005747732322
A211: GENERAL SERVICE 50 to 499 kW SERVICE CLASSIFICATION | B211: Non-RPP (Retailer)_TOTAL | E211: Total Bill on Non-RPP Avg. Price | I211: =SUM(I208,I209,I210) -> 15146.8275 | L211: =SUM(L208,L209,L210) -> 15233.88741 | M211: =L211-I211 -> 87.05991 | N211: =IF((I211)=0,"",(M211/I211)) -> 0.005747732322
A212: GENERAL SERVICE 50 to 499 kW SERVICE CLASSIFICATION | B212: Non-RPP (Retailer)
A213: GENERAL SERVICE 50 to 499 kW SERVICE CLASSIFICATION | B213: Non-RPP (Other)_BT | C213: 3 | E213: Total Bill on Average IESO Wholesale Market Price | I213: =SUM(I201,I192:I196,I191) -> 14839.95 | L213: =SUM(L201,L192:L196,L191) -> 14922.8642 | M213: =L213-I213 -> 82.9142 | N213: =IF((I213)=0,"",(M213/I213)) -> 0.005587229067
A214: GENERAL SERVICE 50 to 499 kW SERVICE CLASSIFICATION | B214: Non-RPP (Other) | E214: HST | G214: 0.13 | I214: =I213*G214 -> 1929.1935 | J214: 0.13 | L214: =L213*J214 -> 1939.972346 | M214: =L214-I214 -> 10.778846 | N214: =IF((I214)=0,"",(M214/I214)) -> 0.005587229067
A215: GENERAL SERVICE 50 to 499 kW SERVICE CLASSIFICATION | B215: Non-RPP (Other)_NET | C215: 3 | E215: Total Bill on Average IESO WMP (before 8% Provincial Rebate) | I215: =SUM(I213:I214) -> 16769.1435 | L215: =SUM(L213:L214) -> 16862.83655 | M215: =SUM(M213:M214) -> 93.693046 | N215: =IF((I215)=0,"",(M215/I215)) -> 0.005587229067
A216: =A214 -> GENERAL SERVICE 50 to 499 kW SERVICE CLASSIFICATION | B216: Non-RPP (Other) | E216: 8% Provincial Rebate | G216: 0 | I216: =I213*G216 -> 0 | J216: =G216 -> 0 | L216: =L213*J216 -> 0 | M216: =L216-I216 -> 0 | N216: =IF((I216)=0,"",(M216/I216)) -> 
A217: GENERAL SERVICE 50 to 499 kW SERVICE CLASSIFICATION | B217: Non-RPP (Other)_TOTAL | C217: =C182 -> 3 | E217: Total Bill on Average IESO Wholesale Market Price | I217: =SUM(I213,I214,I216) -> 16769.1435 | L217: =SUM(L213,L214,L216) -> 16862.83655 | M217: =L217-I217 -> 93.693046 | N217: =IF((I217)=0,"",(M217/I217)) -> 0.005587229067
A218: GENERAL SERVICE 50 to 499 kW SERVICE CLASSIFICATION | B218: Non-RPP (Other)
E221: Customer Class: | F221: =E18 -> GENERAL SERVICE 500 to 4,999 kW SERVICE CLASSIFICATION | L221: =IF(O172="DEMAND - INTERVAL","RTSR - INTERVAL METERED","") -> 
E222: RPP / Non-RPP: | F222: =H18 -> Non-RPP (Other)
... 405 more rows

Sheet RATES
A1: Back to Index | C1: Back to Index
C4: ='Model Specs'!C4 -> Alectra - Enersource
C5: Rates
A8: A | C8: MONTHLY RATES AND CHARGES - DELIVERY COMPONENT
A10: 1 | C10: =1+A10 -> 2 | E10: 3 | F10: 4 | G10: 5 | H10: 6 | I10: 7
C11: Description | H11: 2017 | I11: 2018
D13: Effective until | E13: Type | F13: Customers | G13: Billing Determinant
C14: RESIDENTIAL
A15: R_F | B15: R_F | C15: Service Charge | E15: Rate | G15: $ | H15: 19.11 | I15: =ROUND('17. Rev2Cost-GDPIPI'!I17,2) -> 21.61
A16: R_V | B16: R_V | C16: Distribution Volumetric Rate | E16: Rate | G16: $/kWh | H16: 0.0069 | I16: =ROUND('17. Rev2Cost-GDPIPI'!J17,4) -> 0.0035
A17: R_LV | B17: R_LV | C17: Low Voltage Service Rate | E17: Rate | G17: $/kWh | H17: 0.0002 | I17: =H17 -> 0.0002
C18: Smart Metering Entity Charge - effective until December 31, 2022 | D18: 2022-12-31 | E18: Rate Rider | G18: $ | H18: 0.79 | I18: 0.57
A19: R_ICM | B19: R_FRR | C19: Rate Rider for Recovery of Incremental Capital Module (2017) - in effect until the effective date of the next cost of service based rate order | E19: Rate Rider | G19: $ | H19: 0.6 | I19: =H19 -> 0.6
A20: R_GA16 | B20: R_GA | C20: Rate Rider for Disposition of Global Adjustment (2017) - effective until December 31, 2017 - Applicable only for Non-RPP Customers | D20: 2017-12-31 | E20: Rate Rider | F20: non-RPP | G20: $/kWh | H20: 0.0013
A21: R_DVA16 | B21: R_DVA | C21: Rate Rider for Disposition of Deferral/Variance Accounts (2017) - effective until December 31, 2017 | D21: 2017-12-31 | E21: Rate Rider | G21: $/kWh | H21: -0.002
A22: R_CBR16 | B22: R_DVA | C22: Rate Rider for Disposition of WMS Sub-account CBR Class B (2017) - effective until December 31, 2017 | D22: 2017-12-31 | E22: Rate Rider | F22: Class B | G22: $/kWh | H22: 0.0003
A23: R_GA17 | B23: R_GA | C23: Rate Rider for Disposition of Global Adjustment Account (2018) - effective until April 30, 2019 Applicable only for Non-RPP Customers | D23: 2019-04-30 | E23: Rate Rider | F23: non-RPP | G23: $/kWh | I23: =ROUND('6. GA Calculation'!M17,4) -> -0.0005
A24: R_DVA17 | B24: R_DVA | C24: Rate Rider for Disposition of Deferral/Variance Accounts (2018) - effective until April 30, 2019 | D24: 2019-04-30 | E24: Rate Rider | G24: $/kWh | I24: =ROUND('8. Calculation of Def-Var RR'!J17,4) -> -0.0007
A25: R_CBR17 | B25: R_DVA | C25: Rate Rider for Disposition of Capacity Based Recovery Account (2018) - effective until April 30, 2019 Applicable Only for Class B Customers | D25: 2019-04-30 | E25: Rate Rider | F25: Class B | G25: $/kWh | I25: =ROUND('7. CBR Allocation'!O22,5) -> -5e-05
A26: R_LRV17 | B26: R_VRR | C26: Rate Rider for Disposition of Lost Revenue Adjustment Mechanism Variance Account (LRAMVA) (2018) - effective until April 30, 2019 | D26: 2019-04-30 | E26: Rate Rider | G26: $/kWh | I26: =ROUND('8. Calculation of Def-Var RR'!L17,4) -> -0.0002
A27: R_ICM | B27: R_FRR | C27: Rate Rider for Recovery of ICM (2018) - in effect from May 1, 2018 until the effective date of the next cost of service based rate order | E27: Rate Rider | G27: $ | I27: =ROUND('19. Additional Rates'!D14,2) -> 0.16
B28: R_FRR | C28: Rate Rider for Recovery of 2018 Foregone Revenue - effective until December 31, 2018 | D28: 2018-12-31 | E28: Rate Rider | G28: $ | I28: =+'19. Additional Rates'!D15 -> 0.17
A38: R_TN | B38: R_TN | C38: Retail Transmission Rate - Network Service Rate | E38: Rate | G38: $/kWh | H38: 0.0076 | I38: =ROUND('16. RTSR-Rates to Forecast'!K43,4) -> 0.0076
A39: R_TC | B39: R_TC | C39: Retail Transmission Rate - Line and Transformation Connection Service Rate | E39: Rate | G39: $/kWh | H39: 0.0063 | I39: =ROUND('16. RTSR-Rates to Forecast'!K56,4) -> 0.0071
C40: GENERAL SERVICE LESS THAN 50 KW
A41: GSL_F | B41: GSL_F | C41: Service Charge | E41: Rate | G41: $ | H41: 43.6 | I41: =ROUND('17. Rev2Cost-GDPIPI'!I18,2) -> 43.99
A42: GSL_V | B42: GSL_V | C42: Distribution Volumetric Rate | E42: Rate | G42: $/kWh | H42: 0.0127 | I42: =ROUND('17. Rev2Cost-GDPIPI'!J18,4) -> 0.0128
A43: GSL_LV | B43: GSL_LV | C43: Low Voltage Service Rate | E43: Rate | G43: $/kWh | H43: 0.0002 | I43: =H43 -> 0.0002
C44: Smart Metering Entity Charge - effective until December 31, 2022 | D44: 2022-12-31 | E44: Rate Rider | G44: $ | H44: 0.79 | I44: 0.57
A45: GSL_ICMF | B45: GSL_FRR | C45: Rate Rider for Recovery of Incremental Capital Module (2017) - in effect until the effective date of the next cost of service based rate order | E45: Rate Rider | G45: $ | H45: 1.1 | I45: =H45 -> 1.1
A46: GSL_GA16 | B46: GSL_GA | C46: Rate Rider for Disposition of Global Adjustment (2017) - effective until December 31, 2017 - Applicable only for Non-RPP Customers | D46: 2017-12-31 | E46: Rate Rider | G46: $/kWh | H46: 0.0013
A47: GSL_DVA16 | B47: GSL_DVA | C47: Rate Rider for Disposition of Deferral/Variance Accounts (2017) - effective until December 31, 2017 | D47: 2017-12-31 | E47: Rate Rider | G47: $/kWh | H47: -0.002
A48: GSL_ICMV | B48: GSL_VRR | C48: Rate Rider for Recovery of Incremental Capital Module (2017) - in effect until the effective date of the next cost of service based rate order | E48: Rate Rider | G48: $/kWh | H48: 0.0003 | I48: =H48 -> 0.0003
A49: GSL_CBR16 | B49: GSL_DVA | C49: Rate Rider for Disposition of WMS Sub-account CBR Class B (2017) - effective until December 31, 2017 | D49: 2017-12-31 | E49: Rate Rider | G49: $/kWh | H49: 0.0003
